{"text_format":"1","workbook":"xlsx","n_sheets":1,"sheets":["ورقة1"],"not_rendered":{"charts":0,"images":0,"macros":1,"external_links":0,"defined_names":1,"comments":0,"pivot_tables":0},"unopened":[],"bounds":{"document_bytes":16777216,"sheet_cells":100000,"rows_first":2000,"rows_last":500,"rows_between":2000,"halvings":0,"cell_chars":16384,"cell_head_chars":4096},"cells_cut":0,"cells_raw":0,"read":"whole","date_system":"1900"}

{"sheet":"ورقة1","index":0,"n_rows":1374,"n_cols":7,"rows_kept":1374,"cut":false,"hidden":false,"merged":[[9,6,13,9]]}
["اسم الصنف الأصلي","اسم الصنف المعروض","نتيجة التشابه","نتيجة الأصلي","نتيجة المعروض","نتيجه البحث في اسم الصنف المعروض"]
["ا فيتون اقراص","ا فيتون 50000وحدة كبسول",{"$f":"VLOOKUP(D2,E:E,1,FALSE)","v":"ا فيتون "},{"$f":"LEFT(A2,8)","v":"ا فيتون "},{"$f":"LEFT(B2,8)","v":"ا فيتون "},{"$f":"VLOOKUP(\"*\"&C2&\"*\",$B$2:$B$2000,1,0)","v":"ا فيتون 50000وحدة كبسول"}]
["اباندروكير اقراص ","اباندروكير 150 مجم 2 قرص","اباندروك",{"$f":"LEFT(A3,8)","v":"اباندروك"},{"$f":"LEFT(B3,8)","v":"اباندروك"},"اباندروكير 150 مجم 2 قرص"]
["ابروفال 300مجم اقراص","ابريميرتاز 30 مجم 30 قرص","ابروفال ","ابروفال ","ابريميرت","ابروفال 150 مجم 14 قرص"]
["ابك وايت 60 جرام كريم تفتيح","ابل لايت 30 قرص","ابك وايت","ابك وايت","ابل لايت","ابك وايت 60 جرام كريم"]
["ابل لايت اقراص","ابياموكس 400 مجم شراب 80 مللى","ابل لايت","ابل لايت","ابياموكس","ابل لايت 30 قرص"]
["ابياموكس 400مجم شراب","ابيدروكسيل 1جم 8 قرص","ابياموكس","ابياموكس","ابيدروكس","ابياموكس 400 مجم شراب 80 مللى"]
["ابياموكس 500مجم كبسول@+","ابيدروكسيل 250 مجم شراب","ابياموكس","ابياموكس","ابيدروكس","ابياموكس 400 مجم شراب 80 مللى"]
["ابيجونال 75 امبول","ابيدون 125مل.شراب","ابيجونال","ابيجونال","ابيدون 1","ابيجونال 75 مجم 1 امبول"]
["ابيدروكسيل 1 جم اقراص","ابيسيفين 0.5 جرام عضل","ابيدروكس","ابيدروكس","ابيسيفين","ابيدروكسيل 1جم 8 قرص","اريد من داله vlookup في العمود F عند الوصول لأول نتيجه مطابقه بين العمود C و A\n لا تتوقف عن العمل بل تكمل البحث عن جميع النتائج \nالمطابقه حتي يظهر باقي العناصر من العمود A \nكالمثال باللون الأصفر"]
["ابيدروكسيل 500مجم شراب@ ","ابيسيفين 1 جرام عضل","ابيدروكس","ابيدروكس","ابيسيفين","ابيدروكسيل 1جم 8 قرص"]
["ابيدروكسيل 500مجم كبسول@","ابيفاسى 5000 وحدة 1 امبول","ابيدروكس","ابيدروكس","ابيفاسى ","ابيدروكسيل 1جم 8 قرص"]
["ابيدروكسيل250مجم شراب@","ابيفناك 100 مجم اس ار 10 قرص","ابيدروكس","ابيدروكس","ابيفناك ","ابيدروكسيل 1جم 8 قرص"]
["ابيدرون فيال+","ابيفناك 25 مجم 20 قرص","ابيدرون ","ابيدرون ","ابيفناك ","ابيدرون 4مجم 1مللى حقن"]
["ابيدون شراب@","ابيكسيدون 1 مجم شراب",{"$error":"#N/A"},"ابيدون ش","ابيكسيدو",{"$error":"#N/A"}]
["ابيرازول  20 مجم اقراص","ابيكسيدون 2 مجم 20 قرص","ابيرازول","ابيرازول","ابيكسيدو","ابيرازول 20مجم 14 كبسولة"]
["ابيريزين اقراص","ابيكوانتيل 600 مجم 4 قرص","ابيريزين","ابيريزين","ابيكوانت","ابيريزين 10مجم 10 قرص"]
["ابيريزين شراب","ابيكوجيل 180مل. شراب","ابيريزين","ابيريزين","ابيكوجيل","ابيريزين 10مجم 10 قرص"]
["ابيستجمين . 25 مجم فيال","ابيكوفلوسين 200 مجم 10 قرص","ابيستجمي","ابيستجمي","ابيكوفلو","ابيستجمين 2.5 مجم 1 فيال"]
["ابيستجمين . 5 مجم فيال","ابيكوفيللين شراب","ابيستجمي","ابيستجمي","ابيكوفيل","ابيستجمين 2.5 مجم 1 فيال"]
["ابيسيفين 1/2جرام عضل@","ابيليا 15 مجم 30 قرص","ابيسيفين","ابيسيفين","ابيليا 1","ابيسيفين 0.5 جرام عضل"]
["ابيسيفين 1جرام عضل","ابيليا 20 مجم  30 قرص","ابيسيفين","ابيسيفين","ابيليا 2","ابيسيفين 0.5 جرام عضل"]
["ابيسيفين 1جرام وريد@","ابيليبكس 10 مجم 30 قرص","ابيسيفين","ابيسيفين","ابيليبكس","ابيسيفين 0.5 جرام عضل"]
["ابيسيفين 2 جم وريد@","ابيليبكس 30 مجم 30 قرص","ابيسيفين","ابيسيفين","ابيليبكس","ابيسيفين 0.5 جرام عضل"]
["ابيسيفين500مجم فيال وريد","ابيليبكس 30 مجم 30 قرص","ابيسيفين","ابيسيفين","ابيليبكس","ابيسيفين 0.5 جرام عضل"]
["ابيفاسى 5000 امبول س ج","ابيليفاى 10 مجم 10 قرص","ابيفاسى ","ابيفاسى ","ابيليفاى","ابيفاسى 5000 وحدة 1 امبول"]
["ابيفورتيل كبسول","ابيليفاى 15 مجم 10 قرص","ابيفورتي","ابيفورتي","ابيليفاى","ابيفورتيل 30 كبسولة"]
["ابيكوجيل شراب@","اتروفينت كومب 200 جرعه","ابيكوجيل","ابيكوجيل","اتروفينت","ابيكوجيل 180مل. شراب"]
["ابيكوزيم شراب@","اتش فورميلا  20 جم كريم","ابيكوزيم","ابيكوزيم","اتش فورم","ابيكوزيم 125 مللى شراب"]
["ابيكوسيللين  2/1 جم فيال+","اتش فورميلا  6 لبوسات","ابيكوسيل","ابيكوسيل","اتش فورم","ابيكوسيللين 250مجم.فيال"]
["ابيكوسيللين  500 جم كبسول","اتشى 10 قرص","ابيكوسيل","ابيكوسيل","اتشى 10 ","ابيكوسيللين 250مجم.فيال"]
["ابيكوسيللين 1 جرام فيال+","اتكونافيل 100 مجم 4 قرص","ابيكوسيل","ابيكوسيل","اتكونافي","ابيكوسيللين 250مجم.فيال"]
["ابيكوسيللين4/1جم امبول/ايبيكو","اتكونافيل 200 مجم 4 قرص","ابيكوسيل","ابيكوسيل","اتكونافي","ابيكوسيللين 250مجم.فيال"]
["ابيكوفللين شراب عادى","اتميسيبيا 10 مجم 20 قرص",{"$error":"#N/A"},"ابيكوفلل","اتميسيبي",{"$error":"#N/A"}]
["ابيكوفللين فينوباربيتون شراب","اتنسيرا 40 مجم 30 قرص",{"$error":"#N/A"},"ابيكوفلل","اتنسيرا ",{"$error":"#N/A"}]
["ابيكوفلوسين اقراص","اتورستات  10 مجم 14 قرص","ابيكوفلو","ابيكوفلو","اتورستات","ابيكوفلوسين 200 مجم 10 قرص"]
["ابيليبكس 5مجم","اتومافيوتكس 10 مجم 30 كبسولة","ابيليبكس","ابيليبكس","اتومافيو","ابيليبكس 10 مجم 30 قرص"]
["ابيليبكس10مجم اقراص","اتومافيوتكس 40 مجم 30 كبسولة","ابيليبكس","ابيليبكس","اتومافيو","ابيليبكس 10 مجم 30 قرص"]
["ابيليبكس30مجم اقراص","اتوموريلاكس 20 مجم 100 مل شراب","ابيليبكس","ابيليبكس","اتوموريل","ابيليبكس 10 مجم 30 قرص"]
["ابيليفاى 10 مجم اقراص","اتوموريلاكس 20 مجم 100 مل شراب","ابيليفاى","ابيليفاى","اتوموريل","ابيليفاى 10 مجم 10 قرص"]
["ابيليفاى 15مجم اقراص","اتوموكس ايبكس 10 مجم 30 كبسولة","ابيليفاى","ابيليفاى","اتوموكس ","ابيليفاى 10 مجم 10 قرص"]
["ابيليفاى 5مجم 10اقراص","اتوموكس ايبكس 18مجم 30 كبسولة","ابيليفاى","ابيليفاى","اتوموكس ","ابيليفاى 10 مجم 10 قرص"]
["ابيماج فوار سعر جديد","اتوموكس ايبكس 25مجم 30 كبسولة","ابيماج ف","ابيماج ف","اتوموكس ","ابيماج فوار 12 كيس 5 جم"]
["ابيمول اقراص@","اتوموكس ايبكس 40 مجم 30 كبسولة","ابيمول ا","ابيمول ا","اتوموكس ","ابيمول اكسترا 500مجم20ق"]
["ابيمول اكسترا اقراص@","اتوموكس ايبكس 60مجم 30 كبسولة","ابيمول ا","ابيمول ا","اتوموكس ","ابيمول اكسترا 500مجم20ق"]
["ابيمول لبوس@","اتينوريتك  30 كبسولة",{"$error":"#N/A"},"ابيمول ل","اتينوريت",{"$error":"#N/A"}]
["اتاكاند 16مجم 14قرص $","ادابالين جيل 30 جرام","اتاكاند ","اتاكاند ","ادابالين","اتاكاند 16 مجم 14 قرص"]
["اتاكاند 16مجم بلس اقراص $","ادانكور 10 مجم 30 قرص","اتاكاند ","اتاكاند ","ادانكور ","اتاكاند 16 مجم 14 قرص"]
["اتاكاند 4مجم اقراص ","ادرينالين  - ابنيفرين 25 امبولة","اتاكاند ","اتاكاند ","ادرينالي","اتاكاند 16 مجم 14 قرص"]
["اتاكاند 8مجم اقراص","ادرينالين 1 مجم ابنفرين 100 امبولة","اتاكاند ","اتاكاند ","ادرينالي","اتاكاند 16 مجم 14 قرص"]
["اتاكاند بلس 32/25مجم اقراص","ادرينوكورتين 1 مجم ا امبول ثلاجة","اتاكاند ","اتاكاند ","ادرينوكو","اتاكاند 16 مجم 14 قرص"]
["اترافنجكس 15 كبسولة","ادفوميكاسين 500 مجم فيال 2 مل","اترافنجك","اترافنجك","ادفوميكا","اترافنجكس 4 كبسولة"]
["اترافنجيكس 4 كبسول","ادكوبانتين كريم 20 جرام","اترافنجي","اترافنجي","ادكوبانت","اترافنجيكس 15 كبسولة"]
["اتراكتا ريفورس امبول للشعر","ادولور 10 مجم 20 قرص","اتراكتا ","اتراكتا ","ادولور 1","اتراكتا ريفورس شامبو 250 مل"]
["اترانوكس 15كبسول","ادولور 30 مجم 3 امبولة","اترانوكس","اترانوكس","ادولور 3","اترانوكس  15 كبسولة"]
["اترانوكس 5 كبسولة","ادويبرازول 10 مجم 30 قرص","اترانوكس","اترانوكس","ادويبراز","اترانوكس  15 كبسولة"]
["اتروبين 25 امبول - مصر","ادويتين 60 مجم 10 كبسولة","اتروبين ","اتروبين ","ادويتين ","اتروبين 25 اميولة"]
["اتروبين امبول ممفيس","ادويتين 60 مجم 30 كبسولة","اتروبين ","اتروبين ","ادويتين ","اتروبين 25 اميولة"]
["اتروزيمب 10/10مجم 20قرص","ادويفلام 12.5 مجم 5 اقماع","اتروزيمب","اتروزيمب","ادويفلام","اتروزيمب 10-10 مجم 30 قرص"]
["اتروزيمب 10/20 اقراص 3شريط","ادويفلام 25مجم 5 اقماع","اتروزيمب","اتروزيمب","ادويفلام","اتروزيمب 10-10 مجم 30 قرص"]
["اتش فورميلا كريم","اديلوكس 400 مجم 10 قرص","اتش فورم","اتش فورم","اديلوكس ","اتش فورميلا  20 جم كريم"]
["اتش فورميلا لبوس","اديلوكس 5 مجم 5 مل قطرة عين","اتش فورم","اتش فورم","اديلوكس ","اتش فورميلا  20 جم كريم"]
["اتكونافيل100مجم اقراص","اديمكس 20 قرص","اتكونافي","اتكونافي","اديمكس 2","اتكونافيل 100 مجم 4 قرص"]
["اتكونافيل200مجم اقراص","اديولير 10 مجم 7 قرص","اتكونافي","اتكونافي","اديولير ","اتكونافيل 100 مجم 4 قرص"]
["اتنسيرا 40 م","ار جى - بى3  30 جرام كريم","اتنسيرا ","اتنسيرا ","ار جى - ","اتنسيرا 40 مجم 30 قرص"]
["اتورستات 10مجم اقراص","اربيبرازول20 مجم 2 شريط",{"$f":"VLOOKUP(D66,E:E,1,FALSE)","v":"اتورستات"},"اتورستات","اربيبراز",{"$f":"VLOOKUP(\"*\"&C66&\"*\",$B$2:$B$2000,1,0)","v":"اتورستات  10 مجم 14 قرص"}]
["اتورستات 20مجم اقراص","اربيبرازول30 مجم للذوبان 2 شريط","اتورستات",{"$f":"LEFT(A67,8)","v":"اتورستات"},{"$f":"LEFT(B67,8)","v":"اربيبراز"},"اتورستات  10 مجم 14 قرص"]
["اتورستات 40مجم اقراص","اربيفيوتال 150 مجم 30 قرص","اتورستات","اتورستات","اربيفيوت","اتورستات  10 مجم 14 قرص"]
["اتورستات 80مجم اقراص","اربيفيوتال 300 مجم 30 قرص","اتورستات","اتورستات","اربيفيوت","اتورستات  10 مجم 14 قرص"]
["اتوريزا 10/10مجم اقراص","اربيفيوتال كو 150 -12.5 مجم 30 قرص","اتوريزا ","اتوريزا ","اربيفيوت","اتوريزا 10-10 مجم 28 قرص"]
["اتوريزا 10/20مجم اقراص","اربيفيوتال كو 300 -12.5 مجم 30 قرص","اتوريزا ","اتوريزا ","اربيفيوت","اتوريزا 10-10 مجم 28 قرص"]
["اتوريزا 10/40مجم اقراص","ارتيك 20 كبسولة","اتوريزا ","اتوريزا ","ارتيك 20","اتوريزا 10-10 مجم 28 قرص"]
["اتومافيوتكس 10 مجم","ارتيكافول 75 مجم محلول للتنقيط عضل/وريد","اتومافيو","اتومافيو","ارتيكافو","اتومافيوتكس 10 مجم 30 كبسولة"]
["اتوموكس ابيكس 10مجم","ارتيكسيبان 2.5 مجم 30 قرص","اتوموكس ","اتوموكس ","ارتيكسيب","اتوموكس ايبكس 10 مجم 30 كبسولة"]
["اتوموكس ابيكس 18 مجم","ارتيكسيبان 5 مجم 30 قرص","اتوموكس ","اتوموكس ","ارتيكسيب","اتوموكس ايبكس 10 مجم 30 كبسولة"]
["اتوموكس ابيكس 25مجم","ارتيلاك قطرة للعين 10ملل 2زجاجة","اتوموكس ","اتوموكس ","ارتيلاك ","اتوموكس ايبكس 10 مجم 30 كبسولة"]
["اتوموكس ابيكس 40مجم","ارثروفاست 150 مجم 14 قرص","اتوموكس ","اتوموكس ","ارثروفاس","اتوموكس ايبكس 10 مجم 30 كبسولة"]
["اتوموكس ايبكس 60مجم اقراص","ارثينور 10 كبسولات","اتوموكس ","اتوموكس ","ارثينور ","اتوموكس ايبكس 10 مجم 30 كبسولة"]
["اتينوريتيك كبسول","ارجينافكت 5 مجم 20 قرص","اتينوريت","اتينوريت","ارجينافك","اتينوريتك  30 كبسولة"]
["اجوفالد  25 مجم اقراص","اركسترا 2.5مجم 10 حقن","اجوفالد ","اجوفالد ","اركسترا ","اجوفالد 25 مجم 21 قرص"]
["اجيرا كريم","اركوكسيا 90 مجم 14 قرص","اجيرا كر","اجيرا كر","اركوكسيا","اجيرا كريم 50 جرام"]
["اجيولاكس حبيبات","ارموويك 50 مجم 20 قرص","اجيولاكس","اجيولاكس","ارموويك ","اجيولاكس حبيبات"]
["ادابالين جيل","اريببركس 9.75 مجم فيال","ادابالين","ادابالين","اريببركس","ادابالين جيل 30 جرام"]
["ادرينوكورتين 1مجم عضل","اريثركس 200 مجم 20 كبسولة","ادرينوكو","ادرينوكو","اريثركس ","ادرينوكورتين 1 مجم ا امبول ثلاجة"]
["ادفوكول 10  مجم 2 شريط","اريسبت 10 مجم  14 قرص","ادفوكول ","ادفوكول ","اريسبت 1","ادفوكول 10 مجم 14قرص"]
["ادفوميكاسين 500 فيال","اريسبت 5مجم  14 قرص","ادفوميكا","ادفوميكا","اريسبت 5","ادفوميكاسين 500 مجم فيال 2 مل"]
["ادكوبانتين كريم","اريسبت 5مجم  7قرص","ادكوبانت","ادكوبانت","اريسبت 5","ادكوبانتين كريم 20 جرام"]
["ادولور 10 مجم اقراص","ازارجا 5 مل قطره عين","ادولور 1","ادولور 1","ازارجا 5","ادولور 10 مجم 20 قرص"]
["ادولور 15مل امبول@","ازاستاتين 10-40 مجم 30 قرص","ادولور 1","ادولور 1","ازاستاتي","ادولور 10 مجم 20 قرص"]
["ادويتين 30مجم 3شريط","ازجوفانس 20 مجم 7 كبسولة","ادويتين ","ادويتين ","ازجوفانس","ادويتين 60 مجم 10 كبسولة"]
["ادويتين 60 مجم","ازجوفانس 40 مجم 7 كبسولة","ادويتين ","ادويتين ","ازجوفانس","ادويتين 60 مجم 10 كبسولة"]
["ادويفلام 12.5مجم لبوس","ازروليد 3 قرص","ادويفلام","ادويفلام","ازروليد ","ادويفلام 12.5 مجم 5 اقماع"]
["ادويفلام 25 لبوس","ازماتك 20 مجم 7 كبسولة","ادويفلام","ادويفلام","ازماتك 2","ادويفلام 12.5 مجم 5 اقماع"]
["ادويفلام 50مجم  كبسول","ازماتك 40 مجم 14 كبسولة","ادويفلام","ادويفلام","ازماتك 4","ادويفلام 12.5 مجم 5 اقماع"]
["ادويفلام 6 امبول@","ازماكاست 10 مجم 20 قرص","ادويفلام","ادويفلام","ازماكاست","ادويفلام 12.5 مجم 5 اقماع"]
["ادويفلام اكياس","ازماكاست 10 مجم 20 قرص","ادويفلام","ادويفلام","ازماكاست","ادويفلام 12.5 مجم 5 اقماع"]
["ادويفلام جيل","ازماكاست 5 مجم 30 قرض للمضغ","ادويفلام","ادويفلام","ازماكاست","ادويفلام 12.5 مجم 5 اقماع"]
["ادويفلام لبوس 75مجم","ازماكاست 5 مجم 30 قرض للمضغ","ادويفلام","ادويفلام","ازماكاست","ادويفلام 12.5 مجم 5 اقماع"]
["ادويفلوكساسين 400 مجم 7 قرص","ازمالير 10 مجم 10 قرص","ادويفلوك","ادويفلوك","ازمالير ","ادويفلوكساسين 400 مجم 7 قرص"]
["اديلوكس 400مجم 10 اقراص","ازى وانس 200 مجم  22.5 مل شراب","اديلوكس ","اديلوكس ","ازى وانس","اديلوكس 400 مجم 10 قرص"]
["اديلوكس 400مجم 5اقراص","ازى وانس 200 مجم  30 مل شراب","اديلوكس ","اديلوكس ","ازى وانس","اديلوكس 400 مجم 10 قرص"]
["اديمكس اقراص $","ازيروا 1 جم 2 قرص",{"$error":"#N/A"},"اديمكس ا","ازيروا 1",{"$error":"#N/A"}]
["اديمكس امبول $","ازيلاست بلس بخاخ للانف 25 مل",{"$error":"#N/A"},"اديمكس ا","ازيلاست ",{"$error":"#N/A"}]
["اديولير 10 مجم 7قرص","اس 26 برو جولد لبن 400 جرام","اديولير ","اديولير ","اس 26 بر","اديولير 10 مجم 7 قرص"]
["اديولير 5مجم 7قرص","اس 26بروجرس جولد لبن 400 جرام","اديولير ","اديولير ","اس 26برو","اديولير 10 مجم 7 قرص"]
["اربيبرازول 15 مجم اقراص","اسبريكارلو 81 مجم 30 قرص","اربيبراز","اربيبراز","اسبريكار","اربيبرازول20 مجم 2 شريط"]
["اربيبرازول 5مجم اقراص","اسبرين بروتكت باير 100 مجم20 قرص","اربيبراز","اربيبراز","اسبرين ب","اربيبرازول20 مجم 2 شريط"]
["اربيبرازول10مجم اقراص","اسبوسيد 75 مجم 30 قرص للمضغ","اربيبراز","اربيبراز","اسبوسيد ","اربيبرازول20 مجم 2 شريط"]
["اربيبرازول10مجم سريع الزوبان","اسبوسيد 75مجم 20 قرص","اربيبراز","اربيبراز","اسبوسيد ","اربيبرازول20 مجم 2 شريط"]
["اربيبرازول20مجم اقراص","استرانيدا 500 مجم 10 قرص","اربيبراز","اربيبراز","استرانيد","اربيبرازول20 مجم 2 شريط"]
["اربيبرازول30 مجم سريع الذوبان 126ج","استريلا كريم 60 جرام","اربيبراز","اربيبراز","استريلا ","اربيبرازول20 مجم 2 شريط"]
["اربيبرازول30مجم اقراص 112ج","استوهالت 40 مجم 14 كبسولة","اربيبراز","اربيبراز","استوهالت","اربيبرازول20 مجم 2 شريط"]
["ارتيكافول3 امبول@","اسكوزنتال 6 كيس","ارتيكافو","ارتيكافو","اسكوزنتا","ارتيكافول 75 مجم محلول للتنقيط عضل/وريد"]
["ارتيكسيبان 5 مجم اقراص","اسيتا 10 مجم 14 قرص","ارتيكسيب","ارتيكسيب","اسيتا 10","ارتيكسيبان 2.5 مجم 30 قرص"]
["ارتيلاك قطرة+","اسيتابرام 20 مجم 10 قرص","ارتيلاك ","ارتيلاك ","اسيتابرا","ارتيلاك قطرة للعين 10ملل 2زجاجة"]
["ارثروفاست اقراص@","اسيتيلسيستدار 600 مجم 12 قرص فوار","ارثروفاس","ارثروفاس","اسيتيلسي","ارثروفاست 150 مجم 14 قرص"]
["ارثينور كبسول","اسيزادكس ان جيل 40 جرام","ارثينور ","ارثينور ","اسيزادكس","ارثينور 10 كبسولات"]
["ارثينيا كريم+","اسيفيراكس 20 قرص","ارثينيا ","ارثينيا ","اسيفيراك","ارثينيا كريم 20 جرام"]
["ارجنت بلس كبير كريم ","اسيكلوفير 5% كريم","ارجنت بل","ارجنت بل","اسيكلوفي","ارجنت بلس مساج كريم 50 جرام"]
["ارجينافكت 10م اقراص","اسينابين 10 مجم 30 قرص","ارجينافك","ارجينافك","اسينابين","ارجينافكت 5 مجم 20 قرص"]
["ارجينافكت 5مجم اقراص","اسينابين 5 مجم 30 قرص","ارجينافك","ارجينافك","اسينابين","ارجينافكت 5 مجم 20 قرص"]
["اردوليتيك 300 اقراص","اسينابين 5 مجم 30 قرص","اردوليتي","اردوليتي","اسينابين","اردوليتيك 300 مجم 20 كبسولة"]
["اركاليون 200مجم 40 ق","اسيناديا 10 مجم 10 قرص","اركاليون","اركاليون","اسيناديا","اركاليون 200   2 * 20 قرص"]
["اركاليون فورت اقراص","اعشاب سيكم الام 15 فلتر","اركاليون","اركاليون","اعشاب سي","اركاليون 200   2 * 20 قرص"]
["اركوكسيا 60م","اعشاب سيكم الشتاء  15فلتر","اركوكسيا","اركوكسيا","اعشاب سي","اركوكسيا 90 مجم 14 قرص"]
["اركوكسيا90م","افارا 10 مجم. 30 قرص","اركوكسيا","اركوكسيا","افارا 10","اركوكسيا 90 مجم 14 قرص"]
["اريببركس 10مجم اقراص","افروزوليد 100 مجم 150 مل","اريببركس","اريببركس","افروزولي","اريببركس 9.75 مجم فيال"]
["اريببركس شراب","افروزوليد 600 مجم 10 قرص","اريببركس","اريببركس","افروزولي","اريببركس 9.75 مجم فيال"]
["اريببركس فيال","افروزوليد شراب 60 مللى","اريببركس","اريببركس","افروزولي","اريببركس 9.75 مجم فيال"]
["اريببركس30مجم2شريط","افروزوليد محلول 300 مل تنقيط وريدى",{"$f":"VLOOKUP(D130,E:E,1,FALSE)","v":"اريببركس"},"اريببركس","افروزولي",{"$f":"VLOOKUP(\"*\"&C130&\"*\",$B$2:$B$2000,1,0)","v":"اريببركس 9.75 مجم فيال"}]
["اريبيبراكير 20مجم 20قرص","افلوتيزم 13.9 %  15 جرام","اريبيبرا",{"$f":"LEFT(A131,8)","v":"اريبيبرا"},{"$f":"LEFT(B131,8)","v":"افلوتيزم"},"اريبيبراكير 20 مجم 20 قرص"]
["اريثركس200 مجم كبسول","افودارت 0.5 مجم 30 كبسولة",{"$error":"#N/A"},"اريثركس2","افودارت ",{"$error":"#N/A"}]
["اريسبت 10مجم اقراص 1 شريط","افيبكت 100 ملل شراب","اريسبت 1","اريسبت 1","افيبكت 1","اريسبت 10 مجم  14 قرص"]
["اريسبت 5مجم اقراص 1 شريط","افيتركس جيل 100 جرام","اريسبت 5","اريسبت 5","افيتركس ","اريسبت 5مجم  14 قرص"]
["اريسبت 5مجم اقراص 2 شريط","افيروثيازيد 10-12.5-40 مجم 30 قرص","اريسبت 5","اريسبت 5","افيروثيا","اريسبت 5مجم  14 قرص"]
["اريكتوباك 20 مجم 2 قرص","افيروميلان 50 مجم 30 قرص","اريكتوبا","اريكتوبا","افيروميل","اريكتوباك 20 مجم 2 قرص"]
["ازاثيوبرين  ار بى جى اقراص 10 شرائط","اكانزا سبراى 15 مللي","ازاثيوبر","ازاثيوبر","اكانزا س","ازاثيوبرين ار بى جى50 مجم 30 قرص"]
["ازاثيوبرين 50مجم ار بى جى 3 شريط ","اكتوزنك  20كبسول","ازاثيوبر","ازاثيوبر","اكتوزنك ","ازاثيوبرين ار بى جى50 مجم 30 قرص"]
["ازاثيوبرين 50مجم ميلان 10شرائط ","اكتوزون 30 مجم 10 قرص","ازاثيوبر","ازاثيوبر","اكتوزون ","ازاثيوبرين ار بى جى50 مجم 30 قرص"]
["ازارجا قطرة","اكتوفنت 100 مللي بلس شراب",{"$error":"#N/A"},"ازارجا ق","اكتوفنت ",{"$error":"#N/A"}]
["ازجوفانس 20مجم اقراص","اكتى كولا سى 10 كيس","ازجوفانس","ازجوفانس","اكتى كول","ازجوفانس 20 مجم 7 كبسولة"]
["ازجوفانس 40 مجم اقراص","اكتى كولا سى 10 كيس","ازجوفانس","ازجوفانس","اكتى كول","ازجوفانس 20 مجم 7 كبسولة"]
["ازجوكلاتنس قطرة","اكتيفاست  50 مجم 6 كيس","ازجوكلات","ازجوكلات","اكتيفاست","ازجوكلاتنس قطرة 5 مللي"]
["ازروليد 1200شراب كبير","اكتينون 20 قرص","ازروليد ","ازروليد ","اكتينون ","ازروليد 3 قرص"]
["ازروليد 600 شراب صغير ","اكرتين 0.025% كريم 30 جرام","ازروليد ","ازروليد ","اكرتين 0","ازروليد 3 قرص"]
["ازروليد 900شراب ","اكرتين 0.025% كريم 30 جرام","ازروليد ","ازروليد ","اكرتين 0","ازروليد 3 قرص"]
["ازروليد اقراص","اكرتين 0.05% كريم 30 جرام","ازروليد ","ازروليد ","اكرتين 0","ازروليد 3 قرص"]
["ازماكاست10مجم اقراص","اكرين صابونة 100 جرام","ازماكاست","ازماكاست","اكرين صا","ازماكاست 10 مجم 20 قرص"]
["ازماكاست5مجم اقراص","اكرين كريم 60 جرام","ازماكاست","ازماكاست","اكرين كر","ازماكاست 10 مجم 20 قرص"]
["ازمالير 10مجم اقراص","اكرين كلينسر 250 مل","ازمالير ","ازمالير ","اكرين كل","ازمالير 10 مجم 10 قرص"]
["ازمالير 5مجم اقراص","اكس-اد 24 قرص","ازمالير ","ازمالير ","اكس-اد 2","ازمالير 10 مجم 10 قرص"]
["ازموراب 20 اقراص","اكسارونت 5 مجم 30 قرص","ازموراب ","ازموراب ","اكسارونت","ازموراب 40 مجم 2 شريط"]
["ازموراب 40مجم اقراص","اكساريتك 10 مجم 30 قرص","ازموراب ","ازموراب ","اكساريتك","ازموراب 40 مجم 2 شريط"]
["ازموراب فوار","اكساريتك 20 مجم 30 قرص","ازموراب ","ازموراب ","اكساريتك","ازموراب 40 مجم 2 شريط"]
["ازموراب فيال","اكساميد 10 مجم 1 امبول","ازموراب ","ازموراب ","اكساميد ","ازموراب 40 مجم 2 شريط"]
["ازومايسين شراب","اكساميد 5 مجم 30 قرص","ازومايسي","ازومايسي","اكساميد ","ازومايسين  250 مجم 6 كبسولات"]
["ازومايسين كبسول","اكسبكتيل شراب 120 مللى","ازومايسي","ازومايسي","اكسبكتيل","ازومايسين  250 مجم 6 كبسولات"]
["ازيلاست بلاس بخاخ","اكستروما كريم 25 جرام","ازيلاست ","ازيلاست ","اكستروما","ازيلاست بلس بخاخ للانف 25 مل"]
["ازيلاست قطرة","اكستريم شيكولاته 20 قطعة","ازيلاست ","ازيلاست ","اكستريم ","ازيلاست بلس بخاخ للانف 25 مل"]
["اس ام ار 20قرص","اكستنشن 300 مجم 28 قرص","اس ام ار","اس ام ار","اكستنشن ","اس ام ار 2مجم  20 قرص"]
["اسباتريند فوار ","اكستنشن بلس 150 مجم 28 قرص","اسباترين","اسباترين","اكستنشن ","اسباتريند 6 اكياس"]
["اسباتريند فيال","اكستنشن بلس 300 مجم 28 قرص","اسباترين","اسباترين","اكستنشن ","اسباتريند 6 اكياس"]
["اسبروتكت100مجم","اكسفورج 160/5 مجم 14 قرص","اسبروتكت","اسبروتكت","اكسفورج ","اسبروتكت 100 مجم 30 قرص"]
["اسبريكارلو 81 اقراص","اكسفورج اتش سى تى 10/25/160 مجم 14 قرص","اسبريكار","اسبريكار","اكسفورج ","اسبريكارلو 81 مجم 30 قرص"]
["اسبرين بروتكت اقراص@","اكسفورج اتش سى تى 5/12.5/160 مجم 14 قرص","اسبرين ب","اسبرين ب","اكسفورج ","اسبرين بروتكت باير 100 مجم20 قرص"]
["اسبوسيد 75 مجم اقراص@","اكسفول صابونة 80 جرام","اسبوسيد ","اسبوسيد ","اكسفول ص","اسبوسيد 75 مجم 30 قرص للمضغ"]
["اسبوسيد اطفال@ ","اكسيليسا 10 مجم 14قرص","اسبوسيد ","اسبوسيد ","اكسيليسا","اسبوسيد 75 مجم 30 قرص للمضغ"]
["استرانيدا 500 مجم 10قراص","اكنو صابون 80 جرام","استرانيد","استرانيد","اكنو صاب","استرانيدا 500 مجم 10 قرص"]
["استوهالت 40مجم اقراص","اكنيمايسين 25مل.محلول","استوهالت","استوهالت","اكنيمايس","استوهالت 40 مجم 14 كبسولة"]
["استوهالت10مجم اقراص","اكوا-سيد 120 مللى شراب","استوهالت","استوهالت","اكوا-سيد","استوهالت 40 مجم 14 كبسولة"]
["استيروماب 10 مج 2 شريط","اكوا-سيد 120 مللى شراب","استيروما","استيروما","اكوا-سيد","استيروماب 10 مجم 20 قرص"]
["استيروماب 20مجم اقراص","اكوا  بلس 100 مللى شراب","استيروما","استيروما","اكوا  بل","استيروماب 10 مجم 20 قرص"]
["استيكان 20مجم اقراص","اكوابن- 1 مليون","استيكان ","استيكان ","اكوابن- ","استيكان 20 مجم 2شريط  14قرص"]
["استيل سيستاين 200 @","اكواريم شراب 120 مل",{"$error":"#N/A"},"استيل سي","اكواريم ",{"$error":"#N/A"}]
["استيل سيستايين 600@س.ج","اكياس هدية سبيماكو 1 كيلو",{"$error":"#N/A"},"استيل سي","اكياس هد",{"$error":"#N/A"}]
["استين 10مجم اقراص$","ال-كارنتين شراب 30 مللى ميباكو","استين 10","استين 10","ال-كارنت","استين 10 مجم 20 قرص المستقبل"]
["اسكوزنتال اكياس(سيفامول)","ال-كارنيتين بلاس20 كبسولة","اسكوزنتا","اسكوزنتا","ال-كارني","اسكوزنتال 6 كيس"]
["اسيتابرام 20 مجم اقراص","البندازول 400 مجم  6 قرص","اسيتابرا","اسيتابرا","البندازو","اسيتابرام 20 مجم 10 قرص"]
["اسيديبان معلق 180 مل","البيوستكس 8 مجم 30 قرص","اسيديبان","اسيديبان","البيوستك","اسيديبان معلق 180 مل"]
["اسيكلوفير 400مجم اقراص","الة حاسبة","اسيكلوفي","اسيكلوفي","الة حاسب","اسيكلوفير 5% كريم"]
["اسيكلوفير 800مجم اقراص","التراسولف 10 قرص","اسيكلوفي","اسيكلوفي","التراسول","اسيكلوفير 5% كريم"]
["اسيكلوفير كريم@","التراسولف 10 قرص","اسيكلوفي","اسيكلوفي","التراسول","اسيكلوفير 5% كريم"]
["اسينابين 10 مجم","الترافير صابون لتفتيح البشرة","اسينابين","اسينابين","الترافير","اسينابين 10 مجم 30 قرص"]
["اسيناديا  10 مجم اقراص","التراكين 5% جيل 30 جرام","اسيناديا","اسيناديا","التراكين","اسيناديا 10 مجم 10 قرص"]
["افازير قطرة","الجزال كريم 40 جرام",{"$error":"#N/A"},"افازير ق","الجزال ك",{"$error":"#N/A"}]
["افالون ديابر كريم","الدوميت 250مجم 30 قرص","افالون د","افالون د","الدوميت ","افالون ديابر كريم لمنطقة الحفاظات 100 مل"]
["افالون سترتش مارك كريم","الزاك 10 مجم 20 كبسولة","افالون س","افالون س","الزاك 10","افالون سترتش مارك كريم لتشققات الحمل"]
["افالون نبل كير كريم","الزميندا 10 مجم 20 مللي","افالون ن","افالون ن","الزميندا","افالون نيبل كير 30 مللي"]
["افاميس سبراى@","الزميندا 10 مجم 21 قرص",{"$error":"#N/A"},"افاميس س","الزميندا",{"$error":"#N/A"}]
["افروزوليد اقراص@","الزنتال 200مجم.  2 قرص","افروزولي","افروزولي","الزنتال ","افروزوليد 100 مجم 150 مل"]
["افروزوليد شراب 150مل","الزيكسا 10 مجم 30 قرص","افروزولي","افروزولي","الزيكسا ","افروزوليد 100 مجم 150 مل"]
["افروزوليد محلول وريدى","السوريست 100 مجم 30 قرص","افروزولي","افروزولي","السوريست","افروزوليد 100 مجم 150 مل"]
["افروزوليد60مل شراب صغير","السيتك 40 مجم 20 قرص","افروزولي","افروزولي","السيتك 4","افروزوليد 100 مجم 150 مل"]
["افلوتيزم كريم","الفا نوفا  5 مل قطرة",{"$f":"VLOOKUP(D194,E:E,1,FALSE)","v":"افلوتيزم"},"افلوتيزم","الفا نوف",{"$f":"VLOOKUP(\"*\"&C194&\"*\",$B$2:$B$2000,1,0)","v":"افلوتيزم 13.9 %  15 جرام"}]
["افودارت 0.5 مجم اقراص","الفابروستين 0.5 مجم 1 امبول ثلاجة","افودارت ",{"$f":"LEFT(A195,8)","v":"افودارت "},{"$f":"LEFT(B195,8)","v":"الفابروس"},"افودارت 0.5 مجم 30 كبسولة"]
["افوصويا كبسول","الفافين 100 مجم 120 مل شراب","افوصويا ","افوصويا ","الفافين ","افوصويا 30 كبسولة"]
["افيبكت  شراب","الفافين 600 مجم 2 شريط",{"$error":"#N/A"},"افيبكت  ","الفافين ",{"$error":"#N/A"}]
["افيتركس جل مرطب","الفاكارينو 2 مكج 10 مللى نقط ثلاجه","افيتركس ","افيتركس ","الفاكاري","افيتركس جيل 100 جرام"]
["افيروثيازيد 20/5.21/5 مجم اقرص","الفيولين 100 مللى شراب","افيروثيا","افيروثيا","الفيولين","افيروثيازيد 10-12.5-40 مجم 30 قرص"]
["افيروثيازيد 20/5/12.5 مجم اقراص","الفيولين ب 100 مللى شراب","افيروثيا","افيروثيا","الفيولين","افيروثيازيد 10-12.5-40 مجم 30 قرص"]
["افيروثيازيد 40/10/12.5 مجم اقراص","الكا-مصر  10اكياس","افيروثيا","افيروثيا","الكا-مصر","افيروثيازيد 10-12.5-40 مجم 30 قرص"]
["افيروثيازيد 40/12.5/5 مجم اقرص","الكابرايد 50 مجم 30 قرص","افيروثيا","افيروثيا","الكابراي","افيروثيازيد 10-12.5-40 مجم 30 قرص"]
["افيروثيازيد 40/5.21/5 مجم اقرص","الكابرايد 50 مجم 30 قرص","افيروثيا","افيروثيا","الكابراي","افيروثيازيد 10-12.5-40 مجم 30 قرص"]
["افيروكس كريم 30جرام","الكابريس 5-160 بلس مجم 14قرص","افيروكس ","افيروكس ","الكابريس","افيروكس كريم 30 جرام"]
["افيروميلان 50مجم اقراص","الكابريس 5مجم 20 قرص","افيروميل","افيروميل","الكابريس","افيروميلان 50 مجم 30 قرص"]
["افيفافاسك 10/160 اقراص","الكابريس بلس 10-160 مجم 20 قرص","افيفافاس","افيفافاس","الكابريس","افيفافاسك 10-160 مجم 28 قرص"]
["افيفافاسك5/160 اقراص","الكابريس بلس 10-160 مجم 20 قرص","افيفافاس","افيفافاس","الكابريس","افيفافاسك 10-160 مجم 28 قرص"]
["افيكتورين 40 مجم 20 قرص","الكانازول 150مجم 2 كبسولة","افيكتوري","افيكتوري","الكانازو","افيكتورين 40 مجم 20 قرص"]
["افيميو نقط عين","الكوفان جيل  30 جرام",{"$error":"#N/A"},"افيميو ن","الكوفان ",{"$error":"#N/A"}]
["اكانزا اسبراى","الليربان شراب  100 مللى",{"$error":"#N/A"},"اكانزا ا","الليربان",{"$error":"#N/A"}]
["اكتوزنك اقراص","الليرجيل 20 قرص","اكتوزنك ","اكتوزنك ","الليرجيل","اكتوزنك  20كبسول"]
["اكتوزون 30مجم اقراص","المودوكساسين 250 مجم 10 قرص","اكتوزون ","اكتوزون ","المودوكس","اكتوزون 30 مجم 10 قرص"]
["اكتوفنت بلس شراب@","الوكيتا شامبو دى اس  250 مللى","اكتوفنت ","اكتوفنت ","الوكيتا ","اكتوفنت 100 مللي بلس شراب"]
["اكتوفنت سى ار اقراص","الوكيتا كافيين شامبو 200 مللى","اكتوفنت ","اكتوفنت ","الوكيتا ","اكتوفنت 100 مللي بلس شراب"]
["اكتى كولا اكياس سى اتش الفا","اليكاسال 30 جرام مرهم","اكتى كول","اكتى كول","اليكاسال","اكتى كولا سى 10 كيس"]
["اكتيفاست فوار","اليكويس 5 مجم 20 قرص","اكتيفاست","اكتيفاست","اليكويس ","اكتيفاست  50 مجم 6 كيس"]
["اكتيفيد اقراص","اليكويس 5 مجم 20 قرص","اكتيفيد ","اكتيفيد ","اليكويس ","اكتيفيد  12 ق"]
["اكتيفيد شراب  طارد للبلغم","اليمبوسيس 2.5 مجم 30 قرص","اكتيفيد ","اكتيفيد ","اليمبوسي","اكتيفيد  12 ق"]
["اكتيفيد شراب اصفر@","اليمبوسيس 5 مجم 30 قرص","اكتيفيد ","اكتيفيد ","اليمبوسي","اكتيفيد  12 ق"]
["اكتينون اقراص العربية","اليندوماكس  بلس 2 قرص","اكتينون ","اكتينون ","اليندوما","اكتينون 20 قرص"]
["اكسارونت 2.5مجم اقراص","اماريل ام 2 مجم 500 مجم 30 قرص","اكسارونت","اكسارونت","اماريل ا","اكسارونت 5 مجم 30 قرص"]
["اكسارونت 5 مجم اقراص","اماريل ام 2 مجم 500 مجم 30 قرص","اكسارونت","اكسارونت","اماريل ا","اكسارونت 5 مجم 30 قرص"]
["اكساريتك 10 مجم اقراص","امباجليفورم 12.5– 500 مجم 30 قرص","اكساريتك","اكساريتك","امباجليف","اكساريتك 10 مجم 30 قرص"]
["اكساريتك 20 مجم اقراص","امباجليماكس 25 مجم 30 قرص","اكساريتك","اكساريتك","امباجليم","اكساريتك 10 مجم 30 قرص"]
["اكساريتك امبول","امبليكس محلول 70 مللى","اكساريتك","اكساريتك","امبليكس ","اكساريتك 10 مجم 30 قرص"]
["اكساميد 10مجم اقراص@","امبوفير 100 مجم 5 امبول","اكساميد ","اكساميد ","امبوفير ","اكساميد 10 مجم 1 امبول"]
["اكساميد 20مجم اقراص@","امبيزيم جى 30 قرص","اكساميد ","اكساميد ","امبيزيم ","اكساميد 10 مجم 1 امبول"]
["اكساميد 5مجم اقراص@","امبيزيم جى 30 قرص","اكساميد ","اكساميد ","امبيزيم ","اكساميد 10 مجم 1 امبول"]
["اكساميد امبول","امبيفلوكس 500 مجم 12 كبسولة","اكساميد ","اكساميد ","امبيفلوك","اكساميد 10 مجم 1 امبول"]
["اكسبكتيل شراب","امريز 30 قرص","اكسبكتيل","اكسبكتيل","امريز 30","اكسبكتيل شراب 120 مللى"]
["اكستروما فورت جل 40 مل كبير","املوفيران 5-5 مجم 30 قرص","اكستروما","اكستروما","املوفيرا","اكستروما كريم 25 جرام"]
["اكستروما فورت جل صغير","اموسار 100 مجم 30 قرص","اكستروما","اكستروما","اموسار 1","اكستروما كريم 25 جرام"]
["اكستروما كريم","اموسار 100 مجم 30 قرص","اكستروما","اكستروما","اموسار 1","اكستروما كريم 25 جرام"]
["اكستريم كالسيوم 10 قطع","اموسار 50 مجم 30 قرص","اكستريم ","اكستريم ","اموسار 5","اكستريم شيكولاته 20 قطعة"]
["اكستريم كالسيوم20قطعة@","اموسار فورت  25 /100 مجم 30 قرص","اكستريم ","اكستريم ","اموسار ف","اكستريم شيكولاته 20 قطعة"]
["اكستنشن 150مجم28 قرص","اموسيربرال بلس 30 قرص","اكستنشن ","اكستنشن ","اموسيربر","اكستنشن 300 مجم 28 قرص"]
["اكستنشن 300مجم اقراص","اموسيربرال بلس 30 قرص","اكستنشن ","اكستنشن ","اموسيربر","اكستنشن 300 مجم 28 قرص"]
["اكستنشن بلس 150مجم اقراص","اموفاج 30 قرص","اكستنشن ","اكستنشن ","اموفاج 3","اكستنشن 300 مجم 28 قرص"]
["اكستنشن300بلس 28قرص","اموفلوكسين 1جرام  20قرص",{"$error":"#N/A"},"اكستنشن3","اموفلوكس",{"$error":"#N/A"}]
["اكسدرين اقراص 2شريط@","اموفلوكسين 500 مجم 20 كبسولة","اكسدرين ","اكسدرين ","اموفلوكس","اكسدرين  20 قرص"]
["اكسفورج 5/160 م اقراص@ $","اموكلاوين 457 مجم شراب","اكسفورج ","اكسفورج ","اموكلاوي","اكسفورج 160/5 مجم 14 قرص"]
["اكسفورج160/10مجم اقراص@ $","اموكلاوين 457 مجم شراب",{"$error":"#N/A"},"اكسفورج1","اموكلاوي",{"$error":"#N/A"}]
["اكسفورج@ HCT 10/25 اقراص $","اموكومب كريم 15 جرام",{"$error":"#N/A"},"اكسفورج@","اموكومب ",{"$error":"#N/A"}]
["اكسفورج@ HCT 5/12.5 مجم اقراص $","اميبروستون 24 مجم 20 قرص",{"$error":"#N/A"},"اكسفورج@","اميبروست",{"$error":"#N/A"}]
["اكسفول كريم س.ج","اميبروستون 8 مجم 20 قرص",{"$error":"#N/A"},"اكسفول ك","اميبروست",{"$error":"#N/A"}]
["اكنى بيوتك محلول","اميجران 50 مجم 2 قرص جلاكسو","اكنى بيو","اكنى بيو","اميجران ","اكنى بيوتك محلول 15 مللي"]
["اكنى ستوب كريم","اميكين 250مجم. فيال","اكنى ستو","اكنى ستو","اميكين 2","اكنى ستوب  غسول وجه 250 مللى"]
["اكنى ستوب لوشن","اميلو 5 مجم  3 شريط سعر مخفض","اكنى ستو","اكنى ستو","اميلو 5 ","اكنى ستوب  غسول وجه 250 مللى"]
["اكنيتروكس كريم","اميوجارد 7 اكياس","اكنيتروك","اكنيتروك","اميوجارد","اكنيتروكس كريم 25 جرام"]
["اكنيسكيف جل","اميولانت 20 كبسولة","اكنيسكيف","اكنيسكيف","اميولانت","اكنيسكيف 0.1 جيل 30 جرام"]
["اكنيمايسين  محلول","اميولانت بلاس 20كبسولة","اكنيمايس","اكنيمايس","اميولانت","اكنيمايسين 25مل.محلول"]
["اكنيمايسين  مرهم","اميونفيتا  20 كبسولة","اكنيمايس","اكنيمايس","اميونفيت","اكنيمايسين 25مل.محلول"]
["اكواريم شراب","ان هير كريم 120 مل","اكواريم ","اكواريم ","ان هير ك","اكواريم شراب 120 مل"]
["البافيت حديد شراب ","انتوبرال 40 مجم 14 قرص","البافيت ","البافيت ","انتوبرال","البافيت 60 مللي شراب بالحديد"]
["البافيت كالسيوم شراب","انتوبرال 40 مجم 7 قرص","البافيت ","البافيت ","انتوبرال","البافيت 60 مللي شراب بالحديد"]
["البندازول 6 قرص س ج ","انتودين 20مجم 30 قرص","البندازو","البندازو","انتودين ","البندازول 400 مجم  6 قرص"]
["البندازول شراب","انتودين 20مجم 30 قرص","البندازو","البندازو","انتودين ","البندازول 400 مجم  6 قرص"]
["البوتيل لبوس+","انتودين 40 مجم 30 قرص",{"$f":"VLOOKUP(D258,E:E,1,FALSE)","v":"البوتيل "},"البوتيل ","انتودين ",{"$f":"VLOOKUP(\"*\"&C258&\"*\",$B$2:$B$2000,1,0)","v":"البوتيل 90 مجم لبوس مهبلى"}]
["البيوستكس دى 16/12.5 مجم","انتوكس 30 قرص","البيوستك",{"$f":"LEFT(A259,8)","v":"البيوستك"},{"$f":"LEFT(B259,8)","v":"انتوكس 3"},"البيوستكس 8 مجم 30 قرص"]
["التراسولف شراب","انتيزول 200 مجم 2 قرص","التراسول","التراسول","انتيزول ","التراسولف 10 قرص"]
["التراسولف كبسول","انتيزول شراب 30 مللي","التراسول","التراسول","انتيزول ","التراسولف 10 قرص"]
["التراسيبرو 1جم اقراص","انتينال 24 كبسولة","التراسيب","التراسيب","انتينال ","التراسيبرو  1 جرام 5 قرص"]
["التراسيز شراب","انتينال 60مجم. شراب",{"$error":"#N/A"},"التراسيز","انتينال ",{"$error":"#N/A"}]
["التراسيلين 1500 مجم فيال","انتينال 60مجم. شراب","التراسيل","التراسيل","انتينال ","التراسيللين 1500 مجم 1 فيال"]
["التراسيلين 375 مجم فيال","انثراويست 1 % كريم 20 جرام","التراسيل","التراسيل","انثراويس","التراسيللين 1500 مجم 1 فيال"]
["الترافيت كريم","انجكتمول 100 مللى فيال وريدى","الترافيت","الترافيت","انجكتمول","الترافيت كريم 50 جرام"]
["التراكير كريم","انجيوسارتان 20 مجم 28 قرص",{"$error":"#N/A"},"التراكير","انجيوسار",{"$error":"#N/A"}]
["التيازيم اقراص 4شريط","انجيوسارتان بلس 40-25 مجم 28 قرص","التيازيم","التيازيم","انجيوسار","التيازيم 60 مجم 40 قرص"]
["التيبرو بريزهلر 110/50بخاخ7/21","انداجرا 100 مجم 12 قرص","التيبرو ","التيبرو ","انداجرا ","التيبرو  30 كبسولة + جهاز استنشاق"]
["الجازون كريم  @","انداسين لبوس","الجازون ","الجازون ","انداسين ","الجازون 40جم.كريم"]
["الجزال كريم س ج","اندوبوكسيتين 60 مجم 3 قرص","الجزال ك","الجزال ك","اندوبوكس","الجزال كريم 40 جرام"]
["الدوميت اقراص","اندوريستات 120 مجم 20 قرص","الدوميت ","الدوميت ","اندوريست","الدوميت 250مجم 30 قرص"]
["الزنتال شراب@","اندوسيد كبسول  القاهرة","الزنتال ","الزنتال ","اندوسيد ","الزنتال 200مجم.  2 قرص"]
["الزنتال2 قرص","اندوسيد لبوس  القاهرة",{"$error":"#N/A"},"الزنتال2","اندوسيد ",{"$error":"#N/A"}]
["الزنتال3 شريط","اندوفيمباميد 10 مجم 100 مل شراب",{"$error":"#N/A"},"الزنتال3","اندوفيمب",{"$error":"#N/A"}]
["الزيكسا 10مجم ","اندوميثازين 10لبوسة ادكو","الزيكسا ","الزيكسا ","اندوميثا","الزيكسا 10 مجم 30 قرص"]
["السوريست 100مجم اقراص","انريتش 30 مللى نقط","السوريست","السوريست","انريتش 3","السوريست 100 مجم 30 قرص"]
["الفافين 600مجم اقراص","انفكتوميسين 500 مجم 6 قرص","الفافين ","الفافين ","انفكتومي","الفافين 100 مجم 120 مل شراب"]
["الفافين شراب ","انفكس 100 مجم  60 قرص","الفافين ","الفافين ","انفكس 10","الفافين 100 مجم 120 مل شراب"]
["الفاكارينو نقط ثلاجة#","انفيجا سوستينا 100 مجم 1 سرنجة","الفاكاري","الفاكاري","انفيجا س","الفاكارينو 2 مكج 10 مللى نقط ثلاجه"]
["الفاكالسيدول نقط ثلاجة@#","انكونت 4 مجم 30 قرص","الفاكالس","الفاكالس","انكونت 4","الفاكالسيدول 2 ميكروجرام نقط 10مل ثلاجة"]
["الفاكلينداميسين 300 مجم امبول","انلت اير 10 مجم 10 قرص","الفاكلين","الفاكلين","انلت اير","الفاكلينداميسين 600 مجم 5 امبول"]
["الفاكلينداميسين 600 مجم امبول","انلت اير 4 مجم 14 كيس","الفاكلين","الفاكلين","انلت اير","الفاكلينداميسين 600 مجم 5 امبول"]
["الفيولين ب شراب طارد@","انيجى 10 مجم / 20 مجم 14قرص مخفض","الفيولين","الفيولين","انيجى 10","الفيولين 100 مللى شراب"]
["الفيولين شراب عادى@","انيجى 10 مجم / 40  مجم 14قرص مخفض","الفيولين","الفيولين","انيجى 10","الفيولين 100 مللى شراب"]
["الكابريد50م 30قرص ","اوبتست قطرة عين 5 مللى",{"$error":"#N/A"},"الكابريد","اوبتست ق",{"$error":"#N/A"}]
["الكافتابرو 0.25 % محلول للعين 3 مل","اوبتست قطرة عين 5 مللى","الكافتاب","الكافتاب","اوبتست ق","الكافتابرو 0.25 % محلول للعين 3 مل"]
["الكافتابرو قطرة محلول","اوبتست قطرة عين 5 مللى","الكافتاب","الكافتاب","اوبتست ق","الكافتابرو 0.25 % محلول للعين 3 مل"]
["الكانازول كبسول","اوبتك سالين 5 % قطرة 15 مللي","الكانازو","الكانازو","اوبتك سا","الكانازول 150مجم 2 كبسولة"]
["الكوفان اقراص","اوبتيدكس 5 مللى محلول","الكوفان ","الكوفان ","اوبتيدكس","الكوفان جيل  30 جرام"]
["الكوفان جيل","اوبتيفلوكس 0.3% 5 مللى","الكوفان ","الكوفان ","اوبتيفلو","الكوفان جيل  30 جرام"]
["المودوكساسين250مجم اقراص","اوبندازول 1000 مجم 8 قرص","المودوكس","المودوكس","اوبندازو","المودوكساسين 250 مجم 10 قرص"]
["المودوكساسين500مجم اقراص","اوبيدال سيرم 120 مللى سبراى","المودوكس","المودوكس","اوبيدال ","المودوكساسين 250 مجم 10 قرص"]
["المودوكساسين750مجم اقراص","اوتال 5 مللى  نقط","المودوكس","المودوكس","اوتال 5 ","المودوكساسين 250 مجم 10 قرص"]
["الوكيتا شامبو","اوتريفين بيبى سالين نقط","الوكيتا ","الوكيتا ","اوتريفين","الوكيتا شامبو دى اس  250 مللى"]
["الوكيتا شامبوDSDA","اوتريفين بيبى سالين نقط","الوكيتا ","الوكيتا ","اوتريفين","الوكيتا شامبو دى اس  250 مللى"]
["الوندا اقراص","اوتوكالم نقط",{"$error":"#N/A"},"الوندا ا","اوتوكالم",{"$error":"#N/A"}]
["اليجا كريم","اوجرام 228.5 مجم 60 مل شراب","اليجا كر","اليجا كر","اوجرام 2","اليجا كريم 60 جرام"]
["اليرتام 120مجم اقراص","اوجمنتين 1 جم  14 قرص","اليرتام ","اليرتام ","اوجمنتين","اليرتام 120 مجم 10 قرص"]
["اليرتام 180مجم اقراص","اوجمنتين 1 جم 12 كيس","اليرتام ","اليرتام ","اوجمنتين","اليرتام 120 مجم 10 قرص"]
["اليرتام شراب","اوجمنتين 156مجم 80 مللى","اليرتام ","اليرتام ","اوجمنتين","اليرتام 120 مجم 10 قرص"]
["اليرجوليبر اقراص","اوجمنتين 457 مجم شراب 70 مللي","اليرجولي","اليرجولي","اوجمنتين","اليرجوليبر 10 مجم 10 قرص"]
["اليرفين 180 2شريط","اورافكس 250 مل غرغرة فرولة","اليرفين ","اليرفين ","اورافكس ","اليرفين 180 مجم 20 اقراص"]
["اليرفين60مجم اقراص","اورافكس 250 مللى غرغرة برتقال",{"$error":"#N/A"},"اليرفين6","اورافكس ",{"$error":"#N/A"}]
["اليريد اقراص","اورافكس 250 مللى غرغرة قرنفل",{"$error":"#N/A"},"اليريد ا","اورافكس ",{"$error":"#N/A"}]
["اليريد شراب","اورافكس 250 مللى غرغرة نعناع",{"$error":"#N/A"},"اليريد ش","اورافكس ",{"$error":"#N/A"}]
["اليكاسال 30جم مرهم كبير","اوراكيور جيل 30 جرام","اليكاسال","اليكاسال","اوراكيور","اليكاسال 30 جرام مرهم"]
["اليكاسال مرهم 15جم صغير","اوراكيور جيل 30 جرام","اليكاسال","اليكاسال","اوراكيور","اليكاسال 30 جرام مرهم"]
["اليكسادريكايين أزرق","اورجودينافيل 100 مجم 9 قرص","اليكسادر","اليكسادر","اورجودين","اليكسادريكايين ازرق 50 امبول"]
["اليمبوسيس 2.5 مجم 30 قرص","اورجيكسيوم 20 مجم 21كبسولة","اليمبوسي","اليمبوسي","اورجيكسي","اليمبوسيس 2.5 مجم 30 قرص"]
["اليمبوسيس 5مجم 30 قرص","اورديسكا 2.5 مجم شراب 120 مل","اليمبوسي","اليمبوسي","اورديسكا","اليمبوسيس 2.5 مجم 30 قرص"]
["اليموكس 1جرام 12 قرص","اورديسكا 5 مجم 20 قرص","اليموكس ","اليموكس ","اورديسكا","اليموكس 1 جرام 12 قرص"]
["اليموكس 750 مجم 12 قرص","اورسو بلس 20 كبسولة","اليموكس ","اليموكس ","اورسو بل","اليموكس 1 جرام 12 قرص"]
["ام اكس 3 مجم 1 امبولة","اوركابيبوست محلول للعين 15 مجم 10 مل","ام اكس 3","ام اكس 3","اوركابيب","ام اكس 3 مجم 1 امبولة"]
["ام اكس اقراص","اوركاديكسولين 5 مللى قطرة ثلاجة",{"$error":"#N/A"},"ام اكس ا","اوركاديك",{"$error":"#N/A"}]
["اماجلوست 30/2مجم 30قراص","اوركازيد 10 مللى قطرة","اماجلوست","اماجلوست","اوركازيد","اماجلوست 30-2 مجم 30 قرص"]
["اماجلوست 30/4مجم 30قرص","اوركاسين  5 مللى قطرة","اماجلوست","اماجلوست","اوركاسين","اماجلوست 30-2 مجم 30 قرص"]
["اماريل 1مجم 3شريط@","اوركينوهيست 2.5 مجم محلول للعين 3 مل",{"$error":"#N/A"},"اماريل 1","اوركينوه",{"$error":"#N/A"}]
["اماريل 2مجم3شريط@","اورلى 120 مجم 30 كبسولة","اماريل 2","اماريل 2","اورلى 12","اماريل 2 مجم. 30 قرص"]
["اماريل 3مل 3شريط@","اورليستات 120 مجم 30 كبسولة","اماريل 3","اماريل 3","اورليستا","اماريل 3 مجم. 30 قرص"]
["اماريل 4مجم 30  اقراص@","اورليستايل 120 مجم 30 كبسولة","اماريل 4","اماريل 4","اورليستا","اماريل 4 مجم. 20 قرص"]
["اماريل ام اقراص@","اورليسمارت 120 مجم 10 كبسولة",{"$f":"VLOOKUP(D322,E:E,1,FALSE)","v":"اماريل ا"},"اماريل ا","اورليسما",{"$f":"VLOOKUP(\"*\"&C322&\"*\",$B$2:$B$2000,1,0)","v":"اماريل ام 2 مجم 500 مجم 30 قرص"}]
["امبليكس اسبراى 70مل+","اوستوفال اقراص 2 شريط","امبليكس ",{"$f":"LEFT(A323,8)","v":"امبليكس "},{"$f":"LEFT(B323,8)","v":"اوستوفال"},"امبليكس محلول 70 مللى"]
["امبوفير حديد امبول","اوستوماب 60مجم 20 قرص","امبوفير ","امبوفير ","اوستوماب","امبوفير 100 مجم 5 امبول"]
["امبيزيم جى  3شريط@+","اوستيورين 50 مجم 30 كبسولة","امبيزيم ","امبيزيم ","اوستيوري","امبيزيم جى 30 قرص"]
["امبيفلوكس 250 شراب","اوستيوكير 30 قرص فيتابيوتكس","امبيفلوك","امبيفلوك","اوستيوكي","امبيفلوكس 500 مجم 12 كبسولة"]
["امبيفلوكس 500مجم كبسول","اوستيوكير 30 قرص فيتابيوتكس","امبيفلوك","امبيفلوك","اوستيوكي","امبيفلوكس 500 مجم 12 كبسولة"]
["امريزول 250 اقراص $","اوسوبان 800 مجم 20 قرص","امريزول ","امريزول ","اوسوبان ","امريزول 100 محلول"]
["امريزول 500 اقراص@","اوسوبان 800 مجم 20 قرص","امريزول ","امريزول ","اوسوبان ","امريزول 100 محلول"]
["امريزول ان لبوس مهبلى $","اوسوفورتين 0.25 مجم 30 قرص","امريزول ","امريزول ","اوسوفورت","امريزول 100 محلول"]
["امريزول شراب@","اوسيبكت 120 مللى شراب","امريزول ","امريزول ","اوسيبكت ","امريزول 100 محلول"]
["امريزول لبوس شرجى $","اوسيبكت 120 مللى شراب","امريزول ","امريزول ","اوسيبكت ","امريزول 100 محلول"]
["امريزول لبوس مهبلى $","اوسيلتاميفير 75 مجم 10 قرص","امريزول ","امريزول ","اوسيلتام","امريزول 100 محلول"]
["امريزول محلول وريدى","اوفتاديلات محلول عين 10 جرعة احادية","امريزول ","امريزول ","اوفتاديل","امريزول 100 محلول"]
["املوفيران 10/5 87ج","اوفلوسويكس قطرة 5 مللى","املوفيرا","املوفيرا","اوفلوسوي","املوفيران 5-5 مجم 30 قرص"]
["املوفيران10/10 اقراص","اوفلوكسين  200 مجم  10 اقراص","املوفيرا","املوفيرا","اوفلوكسي","املوفيران 5-5 مجم 30 قرص"]
["املوفيران5/10مجم اقراص  111ج","اوفيلوكوند 0.1 % قطرة عين","املوفيرا","املوفيرا","اوفيلوكو","املوفيران 5-5 مجم 30 قرص"]
["املوفيران5/5 مجم اقراص","اوفيوسيديك قطرة عين 5 مل","املوفيرا","املوفيرا","اوفيوسيد","املوفيران 5-5 مجم 30 قرص"]
["اموسار  25/100مجم فورت اقراص","اوفيون هبتا 28 قرص",{"$error":"#N/A"},"اموسار  ","اوفيون ه",{"$error":"#N/A"}]
["اموسار 100مجم اقراص","اوكاربون اقراص  30 قرص","اموسار 1","اموسار 1","اوكاربون","اموسار 100 مجم 30 قرص"]
["اموفاج 3 شريط اقراص","اوكسازوليد 600 مجم 10 قرص","اموفاج 3","اموفاج 3","اوكسازول","اموفاج 30 قرص"]
["اموفلوكس 1/2جرام حقن","اوكساليبتال شراب","اموفلوكس","اموفلوكس","اوكساليب","اموفلوكسين 1جرام  20قرص"]
["اموفلوكس 1جم فيال","اوكسيبروجيست 1 فيال","اموفلوكس","اموفلوكس","اوكسيبرو","اموفلوكسين 1جرام  20قرص"]
["اموفلوكسين500/500 كبسول","اوكسيتروبيل 1200 مجم 60 قرص","اموفلوكس","اموفلوكس","اوكسيترو","اموفلوكسين 1جرام  20قرص"]
["اموكلاوين1جرام اقراص","اوكيوسيليرج 0.05 % 5 مل محلول للعين","اموكلاوي","اموكلاوي","اوكيوسيل","اموكلاوين 457 مجم شراب"]
["اموكلاوين228.5شراب","اوكيوفينيكول د نقط ثلاجة","اموكلاوي","اموكلاوي","اوكيوفين","اموكلاوين 457 مجم شراب"]
["اموكلاوين457شراب","اوكيوميثيل نقط عين","اموكلاوي","اموكلاوي","اوكيوميث","اموكلاوين 457 مجم شراب"]
["اموكومب كريم","اوكيوميثيل نقط عين","اموكومب ","اموكومب ","اوكيوميث","اموكومب كريم 15 جرام"]
["اميبريد 50 مجم اقراص","اولابكس 5 مجم 30 قرص","اميبريد ","اميبريد ","اولابكس ","اميبريد 50 مجم 20 قرص"]
["اميتركس 2شريط","اولفين 100اس ار كبسول","اميتركس ","اميتركس ","اولفين 1","اميتركس 20 قرص"]
["اميتركس امبول","اولفين 50جم. جيل","اميتركس ","اميتركس ","اولفين 5","اميتركس 20 قرص"]
["اميجران ادكو/سعر جديد@","اولفين 50مجم 20 قرص","اميجران ","اميجران ","اولفين 5","اميجران 50 مجم 2 قرص جلاكسو"]
["اميجران اقراص جلاكسو ","اولميسبيرونوفا 12.5-20 مجم 30 قرص","اميجران ","اميجران ","اولميسبي","اميجران 50 مجم 2 قرص جلاكسو"]
["اميلو 5 مجم اقراص $","اوليبتينا 25 مجم 30 قرص","اميلو 5 ","اميلو 5 ","اوليبتين","اميلو 5 مجم  3 شريط سعر مخفض"]
["امينوليبان محلول","اومنيسف 300 مجم 10 كبسولة","امينوليب","امينوليب","اومنيسف ","امينوليبان 500 مللى  اوتسوكا"]
["اميوجارد اكياس 7 صغير","اومنيك اوكاس 0.4 مجم 30 قرص","اميوجارد","اميوجارد","اومنيك ا","اميوجارد 7 اكياس"]
["اميوجارد اكياس كبير","اوميباك 20مجم. 14كبسولة","اميوجارد","اميوجارد","اوميباك ","اميوجارد 7 اكياس"]
["اميولانت بلس كبسول","اوميجا-3 بلاس 30 كبسولة","اميولانت","اميولانت","اوميجا-3","اميولانت 20 كبسولة"]
["اميولانت شراب","اوميجا 300 مجم 20 كبسولة","اميولانت","اميولانت","اوميجا 3","اميولانت 20 كبسولة"]
["اميولانت كبسول","اوميجا ار اكس 60 قطعه","اميولانت","اميولانت","اوميجا ا","اميولانت 20 كبسولة"]
["اميونفيتا اقراص","اوميجا برس 0.1 مجم 30 قرص","اميونفيت","اميونفيت","اوميجا ب","اميونفيتا  20 كبسولة"]
["اميونفيتا نقط","اوميجا سيف 30 كبسولة","اميونفيت","اميونفيت","اوميجا س","اميونفيتا  20 كبسولة"]
["ان بى بلس كريم 50مجم","اوميجا فيت 1000 مجم 14 ساشيت","ان بى بل","ان بى بل","اوميجا ف","ان بى بلاس كريم 50 جرام"]
["اناسترازول 28 قرص","اوندالينز 8مجم 5 فيلم سريع الذوبان","اناستراز","اناستراز","اوندالين","اناسترازول 28 قرص"]
["انترافير اقراص","ايباستيل 10 مجم 10 قرص","انترافير","انترافير","ايباستيل","انترافير 30 قرص"]
["انتوبرال 40مجم 14 كبسول كبير","ايبوسينو 4000 وحدة فيال ثلاجة","انتوبرال","انتوبرال","ايبوسينو","انتوبرال 40 مجم 14 قرص"]
["انتوبرال20مجم14قرص","ايبيديرم كريم 50 جرام","انتوبرال","انتوبرال","ايبيديرم","انتوبرال 40 مجم 14 قرص"]
["انتوبرال40مجم 7كبسولة صغير@+","ايبيومنتول جيل 50 جرام","انتوبرال","انتوبرال","ايبيومنت","انتوبرال 40 مجم 14 قرص"]
["انتودين  40 مجم اقراص 3 شريط@","ايتراكون 14 كبسولة","انتودين ","انتودين ","ايتراكون","انتودين 20مجم 30 قرص"]
["انتودين 20مجم 3شريط@","ايتراكون 4 كبسولات","انتودين ","انتودين ","ايتراكون","انتودين 20مجم 30 قرص"]
["انتودين امبولات ثلاجة#","ايتراكون 4 كبسولات","انتودين ","انتودين ","ايتراكون","انتودين 20مجم 30 قرص"]
["انتوكس  اقراص","ايجيبرو 30 قرص",{"$error":"#N/A"},"انتوكس  ","ايجيبرو ",{"$error":"#N/A"}]
["انتى ديازوكس شراب","ايجينير 125 مجم 60 مل","انتى ديا","انتى ديا","ايجينير ","انتى ديازوكس 60 مللي بودرة"]
["انتى ديازوكس12قرص","ايجينير 300 مجم 10 كبسولة","انتى ديا","انتى ديا","ايجينير ","انتى ديازوكس 60 مللي بودرة"]
["انتى فلو اقراص س ج","ايراستابكس تريو 10-40-25 مجم 30 قرص","انتى فلو","انتى فلو","ايراستاب","انتى فلو  20كبسولة"]
["انتى كوكس  6 امبول","ايراستابكس تريو 5-20-12.5 مجم 30 قرص","انتى كوك","انتى كوك","ايراستاب","انتى كوكس 15 امبول 6 امبولة"]
["انتى كوكس 15مجم 2 شريط","ايراستابكس كو  10-40 مجم 30 قرص","انتى كوك","انتى كوك","ايراستاب","انتى كوكس 15 امبول 6 امبولة"]
["انتى كوكس 7.5مجم كبسول","ايراستابكس كو  5-20 مجم 30 قرص","انتى كوك","انتى كوك","ايراستاب","انتى كوكس 15 امبول 6 امبولة"]
["انتى كوكس لبوس 10 اقماع","ايراستابكس كو  5-40 مجم 30 قرص","انتى كوك","انتى كوك","ايراستاب","انتى كوكس 15 امبول 6 امبولة"]
["انتيزول شراب 30 مللي","ايراستيبكس بلس12.5/20 مجم 30 قرص","انتيزول ","انتيزول ","ايراستيب","انتيزول 200 مجم 2 قرص"]
["انتينال شراب@","ايروفول 30 كبسولة","انتينال ","انتينال ","ايروفول ","انتينال 24 كبسولة"]
["انتينال كبسول ","ايروكسول مرهم 15 جرام","انتينال ","انتينال ","ايروكسول","انتينال 24 كبسولة"]
["انثراويست 1 % كريم 20 جرام","ايروكسول مرهم 15 جرام","انثراويس","انثراويس","ايروكسول","انثراويست 1 % كريم 20 جرام"]
["انجيوسارتان 10 مجم قرص","ايرونيل  شراب 120 مللي","انجيوسار","انجيوسار","ايرونيل ","انجيوسارتان 20 مجم 28 قرص"]
["انجيوسارتان 12.5/20 بلس 4شريط","ايريك 100 مجم 12 قرص","انجيوسار","انجيوسار","ايريك 10","انجيوسارتان 20 مجم 28 قرص"]
["انجيوسارتان 25/20 بلس 4شريط","ايزابريل 20 مجم 20 قرص",{"$f":"VLOOKUP(D386,E:E,1,FALSE)","v":"انجيوسار"},"انجيوسار","ايزابريل",{"$f":"VLOOKUP(\"*\"&C386&\"*\",$B$2:$B$2000,1,0)","v":"انجيوسارتان 20 مجم 28 قرص"}]
["انجيوسارتان 40/25 بلس 4شريط","ايزابريل كو 20 قرص","انجيوسار",{"$f":"LEFT(A387,8)","v":"انجيوسار"},{"$f":"LEFT(B387,8)","v":"ايزابريل"},"انجيوسارتان 20 مجم 28 قرص"]
["انجيوسارتان20مجم28اقراص","ايزافلور غرغرة  120 مللى","انجيوسار","انجيوسار","ايزافلور","انجيوسارتان 20 مجم 28 قرص"]
["انجيوسارتان40/12.5بلس اقراص","ايزافلور غرغرة  120 مللى","انجيوسار","انجيوسار","ايزافلور","انجيوسارتان 20 مجم 28 قرص"]
["انجيوسارتان40عاده4 شريط","ايزاكارد 75 مجم 30 قرص","انجيوسار","انجيوسار","ايزاكارد","انجيوسارتان 20 مجم 28 قرص"]
["انداجرا 100مجم 12 قرص","ايزموبمب 40 مجم 14 قرص","انداجرا ","انداجرا ","ايزموبمب","انداجرا 100 مجم 12 قرص"]
["انداسين لبوس","ايزو جيل هاند جيل 60 مل","انداسين ","انداسين ","ايزو جيل","انداسين لبوس"]
["اندوبوكسيتين 30مجم اقراص ","ايزوجيست 20 مجم 7 كبسولة","اندوبوكس","اندوبوكس","ايزوجيست","اندوبوكسيتين 60 مجم 3 قرص"]
["اندوبوكسيتين60مجم اقراص","ايزوجيست 40 مجم 14 كبسولة","اندوبوكس","اندوبوكس","ايزوجيست","اندوبوكسيتين 60 مجم 3 قرص"]
["اندودارسين 7.5 مجم 20 قرص","ايزوسويت 200 كيس 1 جرام","اندودارس","اندودارس","ايزوسويت","اندودارسين 7.5 مجم 20 قرص"]
["اندوديرما جيل 50 جرا","ايزوسويت 25 كيس","اندوديرم","اندوديرم","ايزوسويت","اندوديرما اكسترا ايموليت جيل 50 جرام"]
["اندوديرما صن سكرين لوشن 150 مل","ايزوسويت 50 كيس","اندوديرم","اندوديرم","ايزوسويت","اندوديرما اكسترا ايموليت جيل 50 جرام"]
["اندوريفابان 10مجم اقراص","ايزوسويت برطمان 250 جرام","اندوريفا","اندوريفا","ايزوسويت","اندوريفابان 10 مجم 20 قرص"]
["اندوسيد كبسول","ايزوماك ريتارد 40 مجم 20 كبسولة","اندوسيد ","اندوسيد ","ايزوماك ","اندوسيد كبسول  القاهرة"]
["اندوسيد لبوس","ايزوميلودان 40 مجم 20 قرص","اندوسيد ","اندوسيد ","ايزوميلو","اندوسيد كبسول  القاهرة"]
["اندوفيمبامايد 100مجم اقراص","ايزوميم 40 مجم 14 كبسولة","اندوفيمب","اندوفيمب","ايزوميم ","اندوفيمباميد 10 مجم 100 مل شراب"]
["اندوفيمباميد 50مجم اقراص","ايزيتيميب 10 مجم 10 قرص","اندوفيمب","اندوفيمب","ايزيتيمي","اندوفيمباميد 10 مجم 100 مل شراب"]
["اندوميثازين 25 كبسول","ايزيلين شراب","اندوميثا","اندوميثا","ايزيلين ","اندوميثازين 10لبوسة ادكو"]
["اندوميثازين لبوس مصر","ايستراسيبتف 21 قرص","اندوميثا","اندوميثا","ايستراسي","اندوميثازين 10لبوسة ادكو"]
["انريتش بلس كبسول","ايسوبتن 80 مجم 30 قرص",{"$error":"#N/A"},"انريتش ب","ايسوبتن ",{"$error":"#N/A"}]
["انريتش شراب","ايسوبتن ريتارد 240  مجم 30 قرص",{"$error":"#N/A"},"انريتش ش","ايسوبتن ",{"$error":"#N/A"}]
["انريتش نقط","ايسوبتن ريتارد 240  مجم 30 قرص",{"$error":"#N/A"},"انريتش ن","ايسوبتن ",{"$error":"#N/A"}]
["انزاد فيال","ايفاستين 20 قرص","انزاد في","انزاد في","ايفاستين","انزاد فيال + ماء حقن"]
["انسكت بايت جيل","ايفاكيولاكس 20 قرص","انسكت با","انسكت با","ايفاكيول","انسكت بايت 20 جرام جيل"]
["انسيلاكوكس 60مجم اقراص","ايليفيت بروناتال 30 قرص","انسيلاكو","انسيلاكو","ايليفيت ","انسيلاكوكس 60 مجم 30 قرص"]
["انسيلاكوكس 90 مجم اقراص","ايليموليفان 5-160 مجم 28 قرص","انسيلاكو","انسيلاكو","ايليمولي","انسيلاكوكس 60 مجم 30 قرص"]
["انفابرو كبسول","ايما كاردين 20 كبسولة","انفابرو ","انفابرو ","ايما كار","انفابرو 20 قرص"]
["انفكتوكيور 250 مجم 14 قرص","ايموديوم 2 مجم 6 قرص","انفكتوكي","انفكتوكي","ايموديوم","انفكتوكيور 500 مجم 14 قرص"]
["انفكتوكيور 500 مجم 14 قرص","ايموسان كريم 50 جرام","انفكتوكي","انفكتوكي","ايموسان ","انفكتوكيور 500 مجم 14 قرص"]
["انفكتومايسين 500مجم كبسول","ايموسوفت 15 جرام كريم",{"$error":"#N/A"},"انفكتوما","ايموسوفت",{"$error":"#N/A"}]
["انكونت اقراص","ايميرست 4 مجم 5 امبول",{"$error":"#N/A"},"انكونت ا","ايميرست ",{"$error":"#N/A"}]
["انلت اير 10مجم اقراص $","ايميرست 4 مجم 5 امبول","انلت اير","انلت اير","ايميرست ","انلت اير 10 مجم 10 قرص"]
["انهيباميت 500/12.5مجم اقراص","اينالازيد 2 شريط 20 قرص","انهيبامي","انهيبامي","اينالازي","انهيباميت 12.5 - 1000 مجم 30 قرص"]
["انهيباميت12.5/1000اقراص","اينتريستو 100 مجم 28 قرص","انهيبامي","انهيبامي","اينتريست","انهيباميت 12.5 - 1000 مجم 30 قرص"]
["انهيجليب12.5مجم اقراص","اينتريستو 50 مجم 28 قرص","انهيجليب","انهيجليب","اينتريست","انهيجليب 12.5 مجم 30 قرص"]
["انهيجليب25مجم اقراص","اينوكسرت 1 جم حقن وريد","انهيجليب","انهيجليب","اينوكسرت","انهيجليب 12.5 مجم 30 قرص"]
["انوكسيكام لبوس","اينيماكس 120مل.","انوكسيكا","انوكسيكا","اينيماكس","انوكسيكام 20 مجم 10 لبوسة"]
["انوكسيكام20مجم اقراص","ايه بى سى اميون 10 كيس","انوكسيكا","انوكسيكا","ايه بى س","انوكسيكام 20 مجم 10 لبوسة"]
["انيجى 10/10اقراص","باراسيتامول 500 مجم 20 قرص المهن","انيجى 10","انيجى 10","باراسيتا","انيجى 10 مجم / 20 مجم 14قرص مخفض"]
["او ار اس محلول جفاف","باروكستين 25 مجم ممتد المفعول 30 قرص","او ار اس","او ار اس","باروكستي","او ار اس 10 كيس لمعالجة الجفاف"]
["او زد كريم","باروكستين 30 قرص","او زد كر","او زد كر","باروكستي","او زد كريم 100 جرام"]
["اوبتامينس اقراص بديل كيتوستريل","باروكسيديب 12.5 مجم 10 قرص ممتد المفعول","اوبتامين","اوبتامين","باروكسيد","اوبتامينس 150 قرص"]
["اوبتست قطرة","باروكسيديب 37.5 مجم 10 قرص ممتد المفعول","اوبتست ق","اوبتست ق","باروكسيد","اوبتست قطرة عين 5 مللى"]
["اوبتك سالين قطرة","باروكسيديور 25 مجم 30 قرص","اوبتك سا","اوبتك سا","باروكسيد","اوبتك سالين 5 % قطرة 15 مللي"]
["اوبتوزولين قطرة","باريت 20 مجم 2*7 اقراص","اوبتوزول","اوبتوزول","باريت 20","اوبتوزولين 10 مللى قطرة جمجوم"]
["اوبتيبرد قطرة+","باكلوفين 10مجم 20 قرص","اوبتيبرد","اوبتيبرد","باكلوفين","اوبتيبرد  5 مللى قطرة"]
["اوبتيفلوكس قطرة+","بالكيز 0.1 نقط للانف 10 مل","اوبتيفلو","اوبتيفلو","بالكيز 0","اوبتيفلوكس 0.3% 5 مللى"]
["اوبلكس ان شراب@","بالموسولفان 15 مجم 100 مل شراب","اوبلكس ا","اوبلكس ا","بالموسول","اوبلكس ان شراب 125 مل"]
["اوبيدال سيرم","بالميكورت 0.25 مل 20عبوة  استنشاق دريمكس","اوبيدال ","اوبيدال ","بالميكور","اوبيدال سيرم 120 مللى سبراى"]
["اوتريفين  بخاخة@","بامبيديل 30 قرص","اوتريفين","اوتريفين","بامبيديل","اوتريفين بيبى سالين نقط"]
["اوتريفين اطفال@ $","بامبيك 10 مجم  30 قرص استرازنيكا","اوتريفين","اوتريفين","بامبيك 1","اوتريفين بيبى سالين نقط"]
["اوتريفين بيبى سالين س.ج","بانادول اكسترا 24 قرص","اوتريفين","اوتريفين","بانادول ","اوتريفين بيبى سالين نقط"]
["اوتريفين كبار@ $","بانادول كولد اند فلو داى 24 قرص","اوتريفين","اوتريفين","بانادول ","اوتريفين بيبى سالين نقط"]
["اوتوكالم نقط","بانتازول 40 مجم 14 قرص","اوتوكالم","اوتوكالم","بانتازول","اوتوكالم نقط"]
["اوتوكورت نقط","بانتكس شامبو 120 مللى","اوتوكورت","اوتوكورت","بانتكس ش","اوتوكورت نقط"]
["اوجرام 1جم 7قرص س ج","بانتكس فورت لوسيون للشعر الجاف 120 مللى","اوجرام 1","اوجرام 1","بانتكس ف","اوجرام 1 جرام 7 قرص"]
["اوجماسيلين 228.5مجم شراب","بانتكس فورت لوسيون للشعر الدهنى120 مللى","اوجماسيل","اوجماسيل","بانتكس ف","اوجماسيللين 228.5معلق 60مللي"]
["اوجماسيلين 457مجم شراب","بانتوبى 20 مجم 20 قرص","اوجماسيل","اوجماسيل","بانتوبى ","اوجماسيللين 228.5معلق 60مللي"]
["اوجمنتين  156 مجم شراب","بانتوبى 40 مجم 14 قرص","اوجمنتين","اوجمنتين","بانتوبى ","اوجمنتين 1 جم  14 قرص"]
["اوجمنتين 1 جم اقراص@","بانتوجار 90 كبسولة","اوجمنتين","اوجمنتين","بانتوجار","اوجمنتين 1 جم  14 قرص"]
["اوجمنتين 1جم اكياس ","بانتولوك  40 مجم  14 قرص","اوجمنتين","اوجمنتين","بانتولوك","اوجمنتين 1 جم  14 قرص"]
["اوجمنتين 228 مجم شراب","بانتولوك 20 مجم 14 قرص","اوجمنتين","اوجمنتين","بانتولوك","اوجمنتين 1 جم  14 قرص"]
["اوجمنتين 312 مجم شراب@","بانتومكس لوسيون 120 ملى","اوجمنتين","اوجمنتين","بانتومكس","اوجمنتين 1 جم  14 قرص"]
["اوجمنتين 375 مجم اقراص","بانثوفيرا  250 مللى شامبو","اوجمنتين","اوجمنتين","بانثوفير","اوجمنتين 1 جم  14 قرص"]
["اوجمنتين 457 مجم شراب","بانثوفيرا 110 مللى سبراى",{"$f":"VLOOKUP(D450,E:E,1,FALSE)","v":"اوجمنتين"},"اوجمنتين","بانثوفير",{"$f":"VLOOKUP(\"*\"&C450&\"*\",$B$2:$B$2000,1,0)","v":"اوجمنتين 1 جم  14 قرص"}]
["اوجمنتين 625 مجم اقراص","بانثينول 15 جم. كريم","اوجمنتين",{"$f":"LEFT(A451,8)","v":"اوجمنتين"},{"$f":"LEFT(B451,8)","v":"بانثينول"},"اوجمنتين 1 جم  14 قرص"]
["اوجمنتين اى سى 600 شراب@","بانثينول 15 جم. كريم","اوجمنتين","اوجمنتين","بانثينول","اوجمنتين 1 جم  14 قرص"]
["اوجمنتين نقط@","بانثينول 20جم. كريم","اوجمنتين","اوجمنتين","بانثينول","اوجمنتين 1 جم  14 قرص"]
["اورازون شراب","بانثينول كريم 2% 50 جرام","اورازون ","اورازون ","بانثينول","اورازون 120مل. شراب"]
["اورازون غرغرة","بانديرمال كريم 15 جرام","اورازون ","اورازون ","بانديرما","اورازون 120مل. شراب"]
["اوراسترين 200 مللى غرغرة","باور بى كومبليكس 6 امبول","اوراستري","اوراستري","باور بى ","اوراسترين 200 مللى غرغرة"]
["اورافيت ب12كبسول+","باور كابس 20 كبسولة","اورافيت ","اورافيت ","باور كاب","اورافيت ب 12 مجم اس ار 10 كبسولة"]
["اوراكيور جيل كبير30جم+","باوريكتا 10 مجم 6 قرص للتفتت بالفم","اوراكيور","اوراكيور","باوريكتا","اوراكيور جيل 30 جرام"]
["اورجودينافيل100 مل 3ش","باى كيتوجيسيك 150 مجم 30 قرص","اورجودين","اورجودين","باى كيتو","اورجودينافيل 100 مجم 9 قرص"]
["اورجوروكسيبان 10مجم 20 قرص","ببتك كير 14 قرص","اورجوروك","اورجوروك","ببتك كير","اورجوروكسبان 10 مجم 20 قرص"]
["اورجوروكسيبان 20مجم","بتنوفيت لفروة الرأس 30مل","اورجوروك","اورجوروك","بتنوفيت ","اورجوروكسبان 10 مجم 20 قرص"]
["اورجيكسيوم 20 مجم كبسول","بدياشور كومبليت عسل 400 جرام","اورجيكسي","اورجيكسي","بدياشور ","اورجيكسيوم 20 مجم 21كبسولة"]
["اورديسكا 20قرص","بدياشور كومبليت عسل 400 جرام","اورديسكا","اورديسكا","بدياشور ","اورديسكا 2.5 مجم شراب 120 مل"]
["اورديسكا شراب","بدياشور كومبليت فانيليا 400 جرام","اورديسكا","اورديسكا","بدياشور ","اورديسكا 2.5 مجم شراب 120 مل"]
["اورسو بلس كبسول","بديكورت شراب 100 مللي","اورسو بل","اورسو بل","بديكورت ","اورسو بلس 20 كبسولة"]
["اورسوفالك اقراص","بديكورت فورت 100 مللي شراب","اورسوفال","اورسوفال","بديكورت ","اورسوفالك 20 كبسولة"]
["اوركابريد قطرة","براداكسا 150 مجم 30 كبسولة","اوركابري","اوركابري","براداكسا","اوركابريد 10 مل معلق قطرة"]
["اوركاديكسولين قطرة ثلاجة","براديبيكت 7.5 مجم 28 قرص","اوركاديك","اوركاديك","براديبيك","اوركاديكسولين 5 مللى قطرة ثلاجة"]
["اوركازيد قطرة10 مل","برافاماكس 200 مجم 10 قرص","اوركازيد","اوركازيد","برافاماك","اوركازيد 10 مللى قطرة"]
["اوركازيد يونى دوز قطرة","برافاماكس 200 مجم 10 قرص","اوركازيد","اوركازيد","برافاماك","اوركازيد 10 مللى قطرة"]
["اوركاسين قطرة","برافوتين حبيبات 30 كيس","اوركاسين","اوركاسين","برافوتين","اوركاسين  5 مللى قطرة"]
["اوركينوهيست قطرة","براكسيلان 200 مجم 30 قرص","اوركينوه","اوركينوه","براكسيلا","اوركينوهيست 2.5 مجم محلول للعين 3 مل"]
["اورليستات اورجانو سعر جديد","براية معدن المانى","اورليستا","اورليستا","براية مع","اورليستات 120 مجم 30 كبسولة"]
["اورليستات كبسول@","برايم روز بلاس 30 كبسولة","اورليستا","اورليستا","برايم رو","اورليستات 120 مجم 30 كبسولة"]
["اورليسمارت كبسول","بردرم 10جم. كريم","اورليسما","اورليسما","بردرم 10","اورليسمارت 120 مجم 10 كبسولة"]
["اورنيتات  فوار بديل هيباميرز","بردرم 10جم. مرهم","اورنيتات","اورنيتات","بردرم 10","اورنيتات محلول وريدى 5 امبول"]
["اورنيتات امبول بديل هيباميرز","برفكتوديل 5%  60 مللى لوسيون","اورنيتات","اورنيتات","برفكتودي","اورنيتات محلول وريدى 5 امبول"]
["اورنيداز  اقراص","بركسين 10 قرص","اورنيداز","اورنيداز","بركسين 1","اورنيداز 500 مجم 10 قرص"]
["اورنيهيباريت 6 كيس","برناسورس مرهم 2.5 مجم 15 جرام","اورنيهيب","اورنيهيب","برناسورس","اورنيهيباريت 6 اكياس"]
["اوسبن 1000اقراص","بروتوزول  12 قرص","اوسبن 10","اوسبن 10","بروتوزول","اوسبن 1000 اقراص"]
["اوسبن 1500اقراص","بروتوفكس 20 مجم 14قرص",{"$error":"#N/A"},"اوسبن 15","بروتوفكس",{"$error":"#N/A"}]
["اوستوفال اقراص","بروتوفكس 40 مجم 14 اقراص","اوستوفال","اوستوفال","بروتوفكس","اوستوفال اقراص 2 شريط"]
["اوستوماب60مجم اقراص","بروتولوك 20 مجم 14 قرص","اوستوماب","اوستوماب","بروتولوك","اوستوماب 60مجم 20 قرص"]
["اوستيورين 50مجم كبسول","بروثيادين 25مجم 20 كبسولة","اوستيوري","اوستيوري","بروثيادي","اوستيورين 50 مجم 30 كبسولة"]
["اوستيوكير اقراص","بروزاك 20 مجم 14 كبسولة","اوستيوكي","اوستيوكي","بروزاك 2","اوستيوكير 30 قرص فيتابيوتكس"]
["اوستيوكير شراب","بروس شامبو 250 مللى","اوستيوكي","اوستيوكي","بروس شام","اوستيوكير 30 قرص فيتابيوتكس"]
["اوستيونات 70 مجم 4قرص","بروست اد  20 كبسولة","اوستيونا","اوستيونا","بروست اد","اوستيونات 70 مجم 4قرص"]
["اوسوبان 800 اقراص","بروستانورم 30 كبسولة","اوسوبان ","اوسوبان ","بروستانو","اوسوبان 800 مجم 20 قرص"]
["اوسوفورتين 0.25 مجم اقراص","بروستبلازيا 0.5 مجم 30 كبسولة","اوسوفورت","اوسوفورت","بروستبلا","اوسوفورتين 0.25 مجم 30 قرص"]
["اوسوفورتين 1 جرام 30 قرص","بروستريد كبسول 30 كبسولة","اوسوفورت","اوسوفورت","بروستريد","اوسوفورتين 0.25 مجم 30 قرص"]
["اوسيبكت شراب","بروستيترول 30 قرص 10 مجم","اوسيبكت ","اوسيبكت ","بروستيتر","اوسيبكت 120 مللى شراب"]
["اوسيلتاميفير75مجم","بروستيترول 30 قرص 10 مجم","اوسيلتام","اوسيلتام","بروستيتر","اوسيلتاميفير 75 مجم 10 قرص"]
["اوفراماكس 1 جم فيال عضل","بروفيرون25مجم20 قرص","اوفراماك","اوفراماك","بروفيرون","اوفراماكس 1 جرام عضل"]
["اوفراماكس 1/4 جم عضل","بروفين 150 ملل شراب","اوفراماك","اوفراماك","بروفين 1","اوفراماكس 1 جرام عضل"]
["اوفراماكس 1جم وريد","بروفين 200 مجم 30 قرص","اوفراماك","اوفراماك","بروفين 2","اوفراماكس 1 جرام عضل"]
["اوفلام 50مجم اقراص@","بروفين 400مجم 30 قرص","اوفلام 5","اوفلام 5","بروفين 4","اوفلام 50 لاكتاب  20 قرص"]
["اوفلوسويكس قطرة","بروفين حبيبات 20 كيس","اوفلوسوي","اوفلوسوي","بروفين ح","اوفلوسويكس قطرة 5 مللى"]
["اوفلوكس قطرة+","بروفين فلو 10 قرص",{"$error":"#N/A"},"اوفلوكس ","بروفين ف",{"$error":"#N/A"}]
["اوفلوكساسين اقراص","بروفين فلو شراب 60 مللى",{"$error":"#N/A"},"اوفلوكسا","بروفين ف",{"$error":"#N/A"}]
["اوفلوكسين اقراص","بروفين كولد 10 قرص","اوفلوكسي","اوفلوكسي","بروفين ك","اوفلوكسين  200 مجم  10 اقراص"]
["اوفلوكسين قطرة","بروفينيد 100 مجم 3 امبول","اوفلوكسي","اوفلوكسي","بروفينيد","اوفلوكسين  200 مجم  10 اقراص"]
["اوفيوسيديك قطرة","بروكتو فور 15 جم كريم","اوفيوسيد","اوفيوسيد","بروكتو ف","اوفيوسيديك قطرة عين 5 مل"]
["اوكاربون اقراص@","بروكسيمول 40 قرص","اوكاربون","اوكاربون","بروكسيمو","اوكاربون اقراص  30 قرص"]
["اوكسازوليد اقراص","بروكورلان 7.5 مجم 28 قرص","اوكسازول","اوكسازول","بروكورلا","اوكسازوليد 600 مجم 10 قرص"]
["اوكسازوليد شراب","بروليا 60مجم محلول معد للحقن ثلاجة","اوكسازول","اوكسازول","بروليا 6","اوكسازوليد 600 مجم 10 قرص"]
["اوكساليبتال 300مجم اقراص","بروموكربتين 2.5 مجم 30 قرص","اوكساليب","اوكساليب","بروموكرب","اوكساليبتال شراب"]
["اوكساليبتال 600مجم اقراص","بروموهكسين 20 قرص","اوكساليب","اوكساليب","بروموهكس","اوكساليبتال شراب"]
["اوكسيبرال  كبسول","برونكوبرو ريتارد 10 كبسولة",{"$error":"#N/A"},"اوكسيبرا","برونكوبر",{"$error":"#N/A"}]
["اوكسيمت نقط اطفال0.25%15مل@","بريباويست 4 اكياس","اوكسيمت ","اوكسيمت ","بريباويس","اوكسيمت نقط اطفال 15 ملل"]
["اوكسيمت نقط كبار0.5%15مل@","بريجناكير 30 قرص فيتابيوتكس","اوكسيمت ","اوكسيمت ","بريجناكي","اوكسيمت نقط اطفال 15 ملل"]
["اوكسيميتازولين بخاخ","بريجناكير 30 قرص فيتابيوتكس","اوكسيميت","اوكسيميت","بريجناكي","اوكسيميتازولين بخاخة للانف 20 مل"]
["اوكيو جارد كبسول","بريدابوكس 30 مجم 6 قرص","اوكيو جا","اوكيو جا","بريدابوك","اوكيو جارد  30 كبسولة"]
["اوكيوسيلرج قطرة","بريدنزيلون 20 مجم 20 قرص مضغ","اوكيوسيل","اوكيوسيل","بريدنزيل","اوكيوسيليرج 0.05 % 5 مل محلول للعين"]
["اوكيوفينيكول نقط ثلاجة#","بريدوكاين كريم 15 جرام",{"$f":"VLOOKUP(D514,E:E,1,FALSE)","v":"اوكيوفين"},"اوكيوفين","بريدوكاي",{"$f":"VLOOKUP(\"*\"&C514&\"*\",$B$2:$B$2000,1,0)","v":"اوكيوفينيكول د نقط ثلاجة"}]
["اوكيوفينيكول-د نقط ثلاجة#","بريدوكاين كريم 15 جرام","اوكيوفين",{"$f":"LEFT(A515,8)","v":"اوكيوفين"},{"$f":"LEFT(B515,8)","v":"بريدوكاي"},"اوكيوفينيكول د نقط ثلاجة"]
["اوكيوميثيل قطرة","بريدونا غسول نسائى 250 مل","اوكيوميث","اوكيوميث","بريدونا ","اوكيوميثيل نقط عين"]
["اولابكس 10مجم اقراص","بريدونا كلينسر 250 مل","اولابكس ","اولابكس ","بريدونا ","اولابكس 5 مجم 30 قرص"]
["اولابكس 5مجم اقراص","بريزولين نقط 15 مللى","اولابكس ","اولابكس ","بريزولين","اولابكس 5 مجم 30 قرص"]
["اولانزابين 7.5مجم 14قرص","بريستافلام 100مجم 20قرص","اولانزاب","اولانزاب","بريستافل","اولانزابين 7.5 مجم 14 قرص"]
["اولفنت شراب  @","بريفيكس سبراى 60 مللى",{"$error":"#N/A"},"اولفنت ش","بريفيكس ",{"$error":"#N/A"}]
["اولميسبيرونوفا 20/12.5 مجم","بريمبران اقراص 10 قرص","اولميسبي","اولميسبي","بريمبران","اولميسبيرونوفا 12.5-20 مجم 30 قرص"]
["اولميسبيرونوفا 20/25 مجم","بريمبران اقراص 10 قرص","اولميسبي","اولميسبي","بريمبران","اولميسبيرونوفا 12.5-20 مجم 30 قرص"]
["اولوبات قطرة","بريمبران امبول 12 امبولة","اولوبات ","اولوبات ","بريمبران","اولوبات قطرة 5 مللى"]
["اولوباليت قطره","بريمبران امبول 12 امبولة","اولوبالي","اولوبالي","بريمبران","اولوباليت محلول للعين 5 مللى"]
["اولوبتانول قطرة ","بريمبران امبول 12 امبولة","اولوبتان","اولوبتان","بريمبران","اولوبتانول نقط عين 5 مل"]
["اوليبتينا 12.5مجم 30قرص","برينجو لوسيون 120 مللى","اوليبتين","اوليبتين","برينجو ل","اوليبتينا 25 مجم 30 قرص"]
["اوليبتينا 25مجم 30 قرص","برينوريلاكس 30 مجم 10 كبسولة","اوليبتين","اوليبتين","برينوريل","اوليبتينا 25 مجم 30 قرص"]
["اوليبتينا 6.25 اقراص","بسكيت  الوان ابيض ","اوليبتين","اوليبتين","بسكيت  ا","اوليبتينا 25 مجم 30 قرص"]
["اومنيسف شراب","بكتروفورم 15 جرام مرهم","اومنيسف ","اومنيسف ","بكتروفور","اومنيسف 300 مجم 10 كبسولة"]
["اومنيسف كبسول","بكتيكلور 125 مج معلق","اومنيسف ","اومنيسف ","بكتيكلور","اومنيسف 300 مجم 10 كبسولة"]
["اومنيفورا محلول عضلى","بكتيكلور 250 مج معلق","اومنيفور","اومنيفور","بكتيكلور","اومنيفورا 8 امبول"]
["اومنيك اوكاز","بكسى فايف صابون 100 جرام","اومنيك ا","اومنيك ا","بكسى فاي","اومنيك اوكاس 0.4 مجم 30 قرص"]
["اومنيك عادى اقراص ","بلاسيد اقراص",{"$error":"#N/A"},"اومنيك ع","بلاسيد ا",{"$error":"#N/A"}]
["اوميباك 10 مجم كبسول","بلافيكتونال 75 مجم 20 قرص","اوميباك ","اوميباك ","بلافيكتو","اوميباك 20مجم. 14كبسولة"]
["اوميباك 20 مجم  7 كبسولة@","بلافيكس 28 قرص","اوميباك ","اوميباك ","بلافيكس ","اوميباك 20مجم. 14كبسولة"]
["اوميباك 20مجم 14 كبسولة","بلانتا كومب كيس 400 جرام","اوميباك ","اوميباك ","بلانتا ك","اوميباك 20مجم. 14كبسولة"]
["اوميباك 40 / 14 كبسول","بلانتا كومب كيس 400 جرام","اوميباك ","اوميباك ","بلانتا ك","اوميباك 20مجم. 14كبسولة"]
["اوميجا 3 بلس كبسول @","بلسم شراب 120 مللي","اوميجا 3","اوميجا 3","بلسم شرا","اوميجا 300 مجم 20 كبسولة"]
["اوميجا 300 كبسول","بلسم شراب اطفال 120 مللى","اوميجا 3","اوميجا 3","بلسم شرا","اوميجا 300 مجم 20 كبسولة"]
["اوميجا ار اكس كبسول","بلندى 300 قرص","اوميجا ا","اوميجا ا","بلندى 30","اوميجا ار اكس 60 قطعه"]
["اوميجا برس1مجم مينيرين60","بلنديل 10 مجم 30 قرص","اوميجا ب","اوميجا ب","بلنديل 1","اوميجا برس 0.1 مجم 30 قرص"]
["اوميجا برس2مجم مينيرين120","بلنديل 10 مجم 30 قرص استرازنيكا","اوميجا ب","اوميجا ب","بلنديل 1","اوميجا برس 0.1 مجم 30 قرص"]
["اوميجا سيف اقراص","بلنديل 10 مجم 30 قرص استرازنيكا","اوميجا س","اوميجا س","بلنديل 1","اوميجا سيف 30 كبسولة"]
["اوميجا شاى تخسيس 30فلتر ","بلنديل 2.5 مجم 30 قرص",{"$error":"#N/A"},"اوميجا ش","بلنديل 2",{"$error":"#N/A"}]
["اوميجا شاى تخسيس بودر ","بلنديل 2.5 مجم 30 قرص",{"$error":"#N/A"},"اوميجا ش","بلنديل 2",{"$error":"#N/A"}]
["اوميجا كف شراب 120مل","بلنديل 2.5 مجم 30 قرص استرازنيكا",{"$error":"#N/A"},"اوميجا ك","بلنديل 2",{"$error":"#N/A"}]
["اوميز 10مجم كبسول@","بلوكاتنس 80/5 مجم 28 قرص","اوميز 10","اوميز 10","بلوكاتنس","اوميز 10 مجم 14 كبسولة"]
["اوميز 20مجم كبسول@","بلوكيم-ديو  15 قرص","اوميز 20","اوميز 20","بلوكيم-د","اوميز 20 مجم 14 كبسولة"]
["اوميز 40 اقراص@","بلوكيم 100مجم 15 قرص","اوميز 40","اوميز 40","بلوكيم 1","اوميز 40 مجم 10 كبسولة"]
["اوميهلث كبسول","بليتال 50 مجم 20 قرص","اوميهلث ","اوميهلث ","بليتال 5","اوميهلث 7 كبسولة"]
["اوندالينز 4 مجم","بليداسيز 0.1 مجم 5 امبول","اوندالين","اوندالين","بليداسيز","اوندالينز 8مجم 5 فيلم سريع الذوبان"]
["اوندالينز 8 مجم اقراص","بنتاتروكس 1000 مجم 1 فيال + مذيب","اوندالين","اوندالين","بنتاتروك","اوندالينز 8مجم 5 فيلم سريع الذوبان"]
["اونوفيت شراب","بنجيرايد 0.5 مجم 30 كبسولة","اونوفيت ","اونوفيت ","بنجيرايد","اونوفيت 120 مللي شراب"]
["اونوكرون 30ام ار","بنسيتارد فيال","اونوكرون","اونوكرون","بنسيتارد","اونوكرون 60 مجم ام ار 30 قرص"]
["اونوكرون 60ام ار اقراص","بو كولد 100 مل شراب","اونوكرون","اونوكرون","بو كولد ","اونوكرون 60 مجم ام ار 30 قرص"]
["ايبا اكت لوشن","بوباى صن بلوك كريم 50 جرام اس بى اف 80","ايبا اكت","ايبا اكت","بوباى صن","ايبا اكت لوسيون للشعر 120 مللى"]
["ايباتركس شامبو","بوباى صن سكرين كريم 50 جرام اس بى اف 80","ايباتركس","ايباتركس","بوباى صن","ايباتركس شامبو 200 مللى"]
["ايباستيل اقراص","بوباى هاند جيل 60 مل","ايباستيل","ايباستيل","بوباى ها","ايباستيل 10 مجم 10 قرص"]
["ايباستيل شراب ","بوباى هاند جيل 80 مل","ايباستيل","ايباستيل","بوباى ها","ايباستيل 10 مجم 10 قرص"]
["ايباستين برج اقراص","بوتاسبيرونو  100 مجم 20 قرص","ايباستين","ايباستين","بوتاسبير","ايباستين برج 10 مجم 10 قرص"]
["ايباستين-برج شراب","بوتاسبيرونو  25 مجم 20 قرص","ايباستين","ايباستين","بوتاسبير","ايباستين برج 10 مجم 10 قرص"]
["ايبوتين 4000 و.د فيال ثلاجة#","بورجافيكس 75 مجم 30 قرص","ايبوتين ","ايبوتين ","بورجافيك","ايبوتين 4000 وحدة فيال سيديكو ثلاجة"]
["ايبوسينو4000فيال #ثلاجة","بوريك صابون طبى 45 جرام","ايبوسينو","ايبوسينو","بوريك صا","ايبوسينو 4000 وحدة فيال ثلاجة"]
["ايبيومنتول جل","بوسبار اقراص 15 مجم 10 قرص","ايبيومنت","ايبيومنت","بوسبار ا","ايبيومنتول جيل 50 جرام"]
["ايتراكون 14كبسول","بولى فريش اكسترا محلول للعين 30 جرعة","ايتراكون","ايتراكون","بولى فري","ايتراكون 14 كبسولة"]
["ايتراكون 4 كبسول","بولى فريش محلول عين احادى الجرعة 20 جرعة","ايتراكون","ايتراكون","بولى فري","ايتراكون 14 كبسولة"]
["ايتم شامبو@","بولى مير اطفال هيبرتونيك 2.3 % 100 سبراى","ايتم شام","ايتم شام","بولى مير","ايتم شامبو ان 60 مل"]
["ايتوبرايد 3شريط","بولى مير بيبى ايزوتونيك 0.9% 100مل سبراى","ايتوبراي","ايتوبراي","بولى مير","ايتوبرايد 50 مجم 30 قرص"]
["ايجى جروث باللبن","بونابكس  10 مجم  30 قرص","ايجى جرو","ايجى جرو","بونابكس ","ايجى جروث 1 كيس 200 جرام"]
["ايجيبرو 5م اقراص","بى اكتيف 30 كبسولة","ايجيبرو ","ايجيبرو ","بى اكتيف","ايجيبرو 30 قرص"]
["ايجيكوسات شراب ملين","بى تونيك 20 كبسولة","ايجيكوسا","ايجيكوسا","بى تونيك","ايجيكوسات 100 مللى"]
["ايجينير 10 كبسول","بى فريش احمر  0.05 %  250 مللى","ايجينير ","ايجينير ","بى فريش ","ايجينير 125 مجم 60 مل"]
["ايرالون لوسيون","بى فريش اخضر  0.05 %  500 مللى",{"$error":"#N/A"},"ايرالون ","بى فريش ",{"$error":"#N/A"}]
["ايرالونير25مجم اقراص","بى فريش اخضر 0.05 %  250 مللى","ايرالوني","ايرالوني","بى فريش ","ايرالونير 50 مجم 20 قرص"]
["ايرالونير50مجم اقراص","بى فريش ازرق 0.05 %  250 مللى","ايرالوني","ايرالوني","بى فريش ","ايرالونير 50 مجم 20 قرص"]
["ايروفانافيل 100 مج 4 قرص","بيبتازول 30 مجم  14 قرص","ايروفانا","ايروفانا","بيبتازول","ايروفانافيل 200 مجم 4 قرص"]
["ايروفانافيل 200 مجم اقراص","بيبتون شراب جوافه 120 مللى","ايروفانا","ايروفانا","بيبتون ش","ايروفانافيل 200 مجم 4 قرص"]
["ايروكسول مرهم+ س.ق","بيبتون شراب جوافه خالى من السكر 120 مللى",{"$f":"VLOOKUP(D578,E:E,1,FALSE)","v":"ايروكسول"},"ايروكسول","بيبتون ش",{"$f":"VLOOKUP(\"*\"&C578&\"*\",$B$2:$B$2000,1,0)","v":"ايروكسول مرهم 15 جرام"}]
["ايرولامين اقراص","بيبريدين 2 مجم 30 قرص","ايرولامي",{"$f":"LEFT(A579,8)","v":"ايرولامي"},{"$f":"LEFT(B579,8)","v":"بيبريدين"},"ايرولامين 30 كبسولة"]
["ايرونوجلور كبسول حديد","بيبريدين 2 مجم 30 قرص","ايرونوجل","ايرونوجل","بيبريدين","ايرونوجلور 30 كبسولة"]
["ايرونيل اقراص","بيبزول 20 مجم ام ار  14 كبسولة","ايرونيل ","ايرونيل ","بيبزول 2","ايرونيل  شراب 120 مللي"]
["ايرونيل شراب","بيبزول 20 مجم ام ار  14 كبسولة","ايرونيل ","ايرونيل ","بيبزول 2","ايرونيل  شراب 120 مللي"]
["ايزابريل 10مجم اقراص","بيبزول 40 مجم  14 كبسولة","ايزابريل","ايزابريل","بيبزول 4","ايزابريل 20 مجم 20 قرص"]
["ايزابريل كو اقراص@","بيبزول 40 مجم  14 كبسولة","ايزابريل","ايزابريل","بيبزول 4","ايزابريل 20 مجم 20 قرص"]
["ايزابريل20مجم اقراص@","بيبزول 40 مجم  7 كبسولة","ايزابريل","ايزابريل","بيبزول 4","ايزابريل 20 مجم 20 قرص"]
["ايزافلور مضمضة","بيبزول 40 مجم  7 كبسولة","ايزافلور","ايزافلور","بيبزول 4","ايزافلور غرغرة  120 مللى"]
["ايزاكارد اقراص","بيبو-اوتيك نقط للاذن 15 ملل","ايزاكارد","ايزاكارد","بيبو-اوت","ايزاكارد 75 مجم 30 قرص"]
["ايزامول_سى اقراص","بيبون بلاس 20 كبسولة",{"$error":"#N/A"},"ايزامول_","بيبون بل",{"$error":"#N/A"}]
["ايزموبمب20مجم اقراص","بيبى رليف 12.5   5 اقماع","ايزموبمب","ايزموبمب","بيبى رلي","ايزموبمب 40 مجم 14 قرص"]
["ايزموبمب40مجم اقراص","بيبى رليف 25 مجم 5 اقماع","ايزموبمب","ايزموبمب","بيبى رلي","ايزموبمب 40 مجم 14 قرص"]
["ايزوبرينوزين اقراص","بيبى كينج التركيبة الخاصة 100 جرام","ايزوبرين","ايزوبرين","بيبى كين","ايزوبرينوزين 500 مجم 8 قرص"]
["ايزوبرينوزين شراب","بيبى ويل اعشاب 150 جرام","ايزوبرين","ايزوبرين","بيبى ويل","ايزوبرينوزين 500 مجم 8 قرص"]
["ايزوتريتينوين10مجم اقراص","بيبى ويل اعشاب 7 كيس","ايزوتريت","ايزوتريت","بيبى ويل","ايزوتريتينوين 10 مجم 10 كبسولة"]
["ايزوتريتينوين20مجم اقراص","بيبى ويل كاموميل 150 جرام","ايزوتريت","ايزوتريت","بيبى ويل","ايزوتريتينوين 10 مجم 10 كبسولة"]
["ايزوروميدرم جل حب شباب ","بيتا-فال كريم 20 جرام","ايزورومي","ايزورومي","بيتا-فال","ايزوروميديرم جيل 30 جرام"]
["ايزوسويت 200كيس","بيتا سى سبراى 200 مل","ايزوسويت","ايزوسويت","بيتا سى ","ايزوسويت 200 كيس 1 جرام"]
["ايزوسويت 25 كيس","بيتابرونات بلس كريم 30 جرام","ايزوسويت","ايزوسويت","بيتابرون","ايزوسويت 200 كيس 1 جرام"]
["ايزوسويت برطمان","بيتادرم كريم 15 جم","ايزوسويت","ايزوسويت","بيتادرم ","ايزوسويت 200 كيس 1 جرام"]
["ايزوسويت50كيس ","بيتادين شامبو 120  مللى","ايزوسويت","ايزوسويت","بيتادين ","ايزوسويت 200 كيس 1 جرام"]
["ايزوماك 20 ملجم كبسول","بيتادين شامبو 200 مللى","ايزوماك ","ايزوماك ","بيتادين ","ايزوماك ريتارد 40 مجم 20 كبسولة"]
["ايزوماك 40 ملجم كبسول","بيتادين غرغرة 120 مللي","ايزوماك ","ايزوماك ","بيتادين ","ايزوماك ريتارد 40 مجم 20 كبسولة"]
["ايزوميلودان20مجم اقراص","بيتادين محلول مطهر120مل","ايزوميلو","ايزوميلو","بيتادين ","ايزوميلودان 40 مجم 20 قرص"]
["ايزوميلودان40مجم اقراص","بيتادين مرهم 20 جرام","ايزوميلو","ايزوميلو","بيتادين ","ايزوميلودان 40 مجم 20 قرص"]
["ايزوميم 40مجم 14كبسوووول","بيتادين مرهم 60 جم","ايزوميم ","ايزوميم ","بيتادين ","ايزوميم 40 مجم 14 كبسولة"]
["ايزوميم40مجم 7كبسووول","بيتادين مرهم 60 جم",{"$error":"#N/A"},"ايزوميم4","بيتادين ",{"$error":"#N/A"}]
["ايزيلين شراب","بيدالكين بودرة 12 كيس","ايزيلين ","ايزيلين ","بيدالكين","ايزيلين شراب"]
["ايستراسيبتف منع الحمل بديل جينيرا","بيرفورما اكسترا  60 مللى","ايستراسي","ايستراسي","بيرفورما","ايستراسيبتف 21 قرص"]
["ايسوبتن 240 مجم ريتارد 3 شريط","بيرنازين كريم 20 جرام","ايسوبتن ","ايسوبتن ","بيرنازين","ايسوبتن 80 مجم 30 قرص"]
["ايسوبتن80مجم اقراص","بيرنازين كريم 20 جرام",{"$error":"#N/A"},"ايسوبتن8","بيرنازين",{"$error":"#N/A"}]
["استين 20مجم اقراص$","ال-كارنتين شراب 30 مللى ميباكو","استين 20","استين 20","ال-كارنت","ايفاستين 20 قرص"]
["ايفاستين اقراص","بيزوكارد 5 مجم 3شريط","ايفاستين","ايفاستين","بيزوكارد","ايفاستين 20 قرص"]
["ايفاستين شراب","بيزوكارد بلاس 5مجم 30 قرص","ايفاستين","ايفاستين","بيزوكارد","ايفاستين 20 قرص"]
["ايفاكيولاكس  اقراص","بيزوكارد بلاس 5مجم 30 قرص","ايفاكيول","ايفاكيول","بيزوكارد","ايفاكيولاكس 20 قرص"]
["ايفرزين اقراص $","بيستول 2.5 مجم 20 قرص","ايفرزين ","ايفرزين ","بيستول 2","ايفرزين 6مجم 8قرص"]
["ايفرزين لوشن $","بيستول 2.5 مجم 20 قرص","ايفرزين ","ايفرزين ","بيستول 2","ايفرزين 6مجم 8قرص"]
["ايفرزين لوشن120مل","بيستول 5 مجم 20 قرص","ايفرزين ","ايفرزين ","بيستول 5","ايفرزين 6مجم 8قرص"]
["ايفكتينكس5مجم اقراص","بيستول 5 مجم 20 قرص","ايفكتينك","ايفكتينك","بيستول 5","ايفكتينكس 5 مجم 20 قرص"]
["ايفيبرونت شراب@ ","بيفاتراسين سبراى 150 مل","ايفيبرون","ايفيبرون","بيفاتراس","ايفيبرونت 120 مللى شراب"]
["ايفيجاد75مجم اقراص","بيكتول عرقسوس علبة 24 شريط",{"$error":"#N/A"},"ايفيجاد7","بيكتول ع",{"$error":"#N/A"}]
["ايفيروسبان شراب@","بيكتول ليمون علبة 24 شريط","ايفيروسب","ايفيروسب","بيكتول ل","ايفيروسبان 100 مللى شراب"]
["ايفيرينز غسول","بيكسى فيرم جيل 60 جم","ايفيرينز","ايفيرينز","بيكسى في","ايفيرينز محلول منظف 250 مل"]
["ايكاندرا 50مجم 3شريط","بيكلو سبراى 200 جرعة","ايكاندرا","ايكاندرا","بيكلو سب","ايكاندرا بلس 50-1000 مجم 30 قرص سعر مخفض"]
["ايكاندرا بلس 3 شرائط","بيكولاكس نقط","ايكاندرا","ايكاندرا","بيكولاكس","ايكاندرا بلس 50-1000 مجم 30 قرص سعر مخفض"]
["ايليفيت بروناتال 30 قرص","بينوكس نقط للعين","ايليفيت ","ايليفيت ","بينوكس ن","ايليفيت بروناتال 30 قرص"]
["ايليموليفان 5/160","بيوبركس 7.5 مجم 30 قرص","ايليمولي","ايليمولي","بيوبركس ","ايليموليفان 5-160 مجم 28 قرص"]
["ايما ايتوبرايد اقراص 3 شريط ","بيوبروبلس 400 مجم كبسولات","ايما ايت","ايما ايت","بيوبروبل","ايما ايتوبرايد 50 مجم 30 قرص"]
["ايمباكوزا 10مجم 30قرص","بيوتاكسيمارك كريم 15 جرام","ايمباكوز","ايمباكوز","بيوتاكسي","ايمباكوزا 10 مجم 30 قرص"]
["ايمباكوزا 25 مجم 30قرص","بيوتاكسيمارك كريم 15 جرام","ايمباكوز","ايمباكوز","بيوتاكسي","ايمباكوزا 10 مجم 30 قرص"]
["ايموديوم كبسول","بيوجليتا بلس 15- 500 مجم 20 قرص","ايموديوم","ايموديوم","بيوجليتا","ايموديوم 2 مجم 6 قرص"]
["ايموسوفت 15جم كريم","بيوجليتا بلس 15- 850 مجم 20 قرص","ايموسوفت","ايموسوفت","بيوجليتا","ايموسوفت 15 جرام كريم"]
["ايموسوفت كريم 30جم كبير","بيودروكسيل 1000 مجم 8 كبسولة","ايموسوفت","ايموسوفت","بيودروكس","ايموسوفت 15 جرام كريم"]
["ايموفيت كريم","بيودروكسيل 500 مجم 8 كبسولة","ايموفيت ","ايموفيت ","بيودروكس","ايموفيت 15جم0 كريم"]
["ايموفيت مرهم ","بيودروكسيل250 مللى شراب","ايموفيت ","ايموفيت ","بيودروكس","ايموفيت 15جم0 كريم"]
["ايموكس  500 مجم كبسول@+","بيور لان كريم",{"$error":"#N/A"},"ايموكس  ","بيور لان",{"$error":"#N/A"}]
["ايموكس 125 مجم شراب","بيورينكس 1مجم. 20 قرص",{"$error":"#N/A"},"ايموكس 1","بيورينكس",{"$error":"#N/A"}]
["ايموكس 1جم فيال+","بيورينكس 1مجم. 20 قرص",{"$error":"#N/A"},"ايموكس 1","بيورينكس",{"$error":"#N/A"}]
["ايموكس 250  فيال","بيورينكس 1مجم. 20 قرص",{"$error":"#N/A"},"ايموكس 2","بيورينكس",{"$error":"#N/A"}]
["ايموكس 250 مجم شراب","بيوسترونج 21 كبسولة",{"$error":"#N/A"},"ايموكس 2","بيوسترون",{"$error":"#N/A"}]
["ايموكس 500مجم  فيال","بيوسيرتازول 2 % كريم 30 جرام","ايموكس 5","ايموكس 5","بيوسيرتا","ايموكس 500 مجم كبسول  2 شريط"]
["ايموكس كريم ","بيوفريز 59 مللى جيل",{"$error":"#N/A"},"ايموكس ك","بيوفريز ",{"$error":"#N/A"}]
["ايموكسكلاف 156 مجم شراب@","بيوفريز سبراى","ايموكسكل","ايموكسكل","بيوفريز ","ايموكسكلاف 156مجم. شراب"]
["ايموكسكلاف 1جم اقراص@","بيوفيت 12 ديبو  2 امبول",{"$f":"VLOOKUP(D642,E:E,1,FALSE)","v":"ايموكسكل"},"ايموكسكل","بيوفيت 1",{"$f":"VLOOKUP(\"*\"&C642&\"*\",$B$2:$B$2000,1,0)","v":"ايموكسكلاف 156مجم. شراب"}]
["ايموكسكلاف 228مجم شراب@","بيوفيت 12 ديبو  2 امبول","ايموكسكل",{"$f":"LEFT(A643,8)","v":"ايموكسكل"},{"$f":"LEFT(B643,8)","v":"بيوفيت 1"},"ايموكسكلاف 156مجم. شراب"]
["ايموكسكلاف 312 شراب@","بيوفيتا 60 قطعة","ايموكسكل","ايموكسكل","بيوفيتا ","ايموكسكلاف 156مجم. شراب"]
["ايموكسكلاف 375 مجم اقراص+","بيومبريد 30-4 مجم 30 قرص","ايموكسكل","ايموكسكل","بيومبريد","ايموكسكلاف 156مجم. شراب"]
["ايموكسكلاف 625 مجم اقراص+","بيوموكس 500مجم 12 كبسولة","ايموكسكل","ايموكسكل","بيوموكس ","ايموكسكلاف 156مجم. شراب"]
["ايموكسكلاف457 شراب@","بيونال 30 كبسولة","ايموكسكل","ايموكسكل","بيونال 3","ايموكسكلاف 156مجم. شراب"]
["ايميرست امبول","تادالونج 20 مجم 4 قرص","ايميرست ","ايميرست ","تادالونج","ايميرست 4 مجم 5 امبول"]
["اينالازيد اقراص 2شريط","تادانيرفى 20 مجم 4 فيلم سريع الذوبان","اينالازي","اينالازي","تادانيرف","اينالازيد 2 شريط 20 قرص"]
["اينوكسرت 0.5 جم فيال ","تارج 160 مجم 28 قرص","اينوكسرت","اينوكسرت","تارج 160","اينوكسرت 1 جم حقن وريد"]
["اينوكسرت 1جم فيال","تارج 320 مجم 10 قرص","اينوكسرت","اينوكسرت","تارج 320","اينوكسرت 1 جم حقن وريد"]
["ايه بى سى اميولانت 10كيس","تارج 80 مجم 14 كبسولة","ايه بى س","ايه بى س","تارج 80 ","ايه بى سى اميون 10 كيس"]
["ايه بى سى اوميجا شوكولاتة شراب","تارجوسيد 400 مجم فيال","ايه بى س","ايه بى س","تارجوسيد","ايه بى سى اميون 10 كيس"]
["ايه زد  كير معجون كبير","تارجوسيد 400 مجم فيال",{"$error":"#N/A"},"ايه زد  ","تارجوسيد",{"$error":"#N/A"}]
["ايه زد جلوبين 30 كبسولة","تارجوفلكسين 750 مجم 10 قرص","ايه زد ج","ايه زد ج","تارجوفلك","ايه زد جلوبين 30 كبسولة"]
["اكسترا 1000  كبسول","امريزول 100 محلول",{"$error":"#N/A"},"اكسترا 1","امريزول ",{"$error":"#N/A"}]
["اكسترا بروتين شيكولاتة","امريزول 120 مل. شراب",{"$error":"#N/A"},"اكسترا ب","امريزول ",{"$error":"#N/A"}]
["اكسترا بروتين فانيليا","امريزول 500 مجم 20 قرص",{"$error":"#N/A"},"اكسترا ب","امريزول ",{"$error":"#N/A"}]
["اكسترا جينيرال بروتين","املوسازايد 5-25-40 مجم 20 قرص",{"$error":"#N/A"},"اكسترا ج","املوسازا",{"$error":"#N/A"}]
["اكسترا فى غسول","املوفيران 10-10 مجم 30 قرص","اكسترا ف","اكسترا ف","املوفيرا","اكسترا فى دش مهبلى 250 مل"]
["اكسترا كريم","املوفيران 10-5 مجم 30  قرص",{"$error":"#N/A"},"اكسترا ك","املوفيرا",{"$error":"#N/A"}]
["ابراتروبيم25 مجم امبولات استنشاق","ابروفال 150 مجم 14 قرص",{"$error":"#N/A"},"ابراتروب","ابروفال ",{"$error":"#N/A"}]
["ابرافنت اس بخاخ","ابروفال 300 مجم  14 قرص",{"$error":"#N/A"},"ابرافنت ","ابروفال ",{"$error":"#N/A"}]
["ابروفيل 150مجم اقراص","ابك وايت 60 جرام كريم",{"$error":"#N/A"},"ابروفيل ","ابك وايت",{"$error":"#N/A"}]
["ابلونج نوفالجين اقراص@","ابياموكس 400 مجم شراب 80 مللى",{"$error":"#N/A"},"ابلونج ن","ابياموكس",{"$error":"#N/A"}]
["ابو فاس علبة12ق","ابياموكس 500مجم. 12 كبسولة",{"$error":"#N/A"},"ابو فاس ","ابياموكس",{"$error":"#N/A"}]
["ابى جرو اكياس","ابياموكس 500مجم. 12 كبسولة",{"$error":"#N/A"},"ابى جرو ","ابياموكس",{"$error":"#N/A"}]
["ابى رايز شراب","ابيجنت 80مجم. امبول",{"$error":"#N/A"},"ابى رايز","ابيجنت 8",{"$error":"#N/A"}]
["ابى كير كريم كبير","ابيجونال 75 مجم 1 امبول",{"$error":"#N/A"},"ابى كير ","ابيجونال",{"$error":"#N/A"}]
["ابيتاكسول قطره","ابيدروكسيل 500 مجم 8 كبسولة",{"$error":"#N/A"},"ابيتاكسو","ابيدروكس",{"$error":"#N/A"}]
["ابيتنس اقراص","ابيدرون 4مجم 1مللى حقن",{"$error":"#N/A"},"ابيتنس ا","ابيدرون ",{"$error":"#N/A"}]
["ابيتويد 20مجم اقراص","ابيدرون 4مجم 1مللى حقن",{"$error":"#N/A"},"ابيتويد ","ابيدرون ",{"$error":"#N/A"}]
["ابيتيموزال قطره","ابيدون 125مل.شراب",{"$error":"#N/A"},"ابيتيموز","ابيدون 1",{"$error":"#N/A"}]
["ابيجينت 20 مجم امبول+","ابيرازول 20مجم 14 كبسولة",{"$error":"#N/A"},"ابيجينت ","ابيرازول",{"$error":"#N/A"}]
["ابيجينت 80 مجم امبول+","ابيرليفان 40 مجم - 1 ملل 1 فيال",{"$error":"#N/A"},"ابيجينت ","ابيرليفا",{"$error":"#N/A"}]
["ابيجينت نقط","ابيريزين 10مجم 10 قرص",{"$error":"#N/A"},"ابيجينت ","ابيريزين",{"$error":"#N/A"}]
["ابيدرا سولوستار ثلاجة#","ابيستجمين 2.5 مجم 1 فيال",{"$error":"#N/A"},"ابيدرا س","ابيستجمي",{"$error":"#N/A"}]
["ابيدكسون قطرة","ابيفورتيل 30 كبسولة",{"$error":"#N/A"},"ابيدكسون","ابيفورتي",{"$error":"#N/A"}]
["ابيدكسون مرهم","ابيكسيدون 1 مجم شراب",{"$error":"#N/A"},"ابيدكسون","ابيكسيدو",{"$error":"#N/A"}]
["ابيروفاستين10مجم اقرص","ابيكسيدون 4 مجم 30 قرص",{"$error":"#N/A"},"ابيروفاس","ابيكسيدو",{"$error":"#N/A"}]
["ابيروفاستين20مجم اقراص","ابيكسيدون 4 مجم 30 قرص",{"$error":"#N/A"},"ابيروفاس","ابيكسيدو",{"$error":"#N/A"}]
["ابيريليفان فيال بديل كيناكورت","ابيكوزيم 125 مللى شراب",{"$error":"#N/A"},"ابيريليف","ابيكوزيم",{"$error":"#N/A"}]
["ابيزولون ديبو امبول","ابيكوسيللين 250مجم.فيال",{"$error":"#N/A"},"ابيزولون","ابيكوسيل",{"$error":"#N/A"}]
["ابيزيثرو 500مجم كبسول","ابيكوسيللين 500 مجم  2 شريط",{"$error":"#N/A"},"ابيزيثرو","ابيكوسيل",{"$error":"#N/A"}]
["ابيسوبت نقط","ابيكوفيللين فينوب شراب",{"$error":"#N/A"},"ابيسوبت ","ابيكوفيل",{"$error":"#N/A"}]
["ابيسينيو 4000 وحدة","ابيليبكس 5 مجم 30 قرص",{"$error":"#N/A"},"ابيسينيو","ابيليبكس",{"$error":"#N/A"}]
["ابيفيناك 100  اس ار اقراص","ابيليفاى 5  مجم 10 قرص",{"$error":"#N/A"},"ابيفيناك","ابيليفاى",{"$error":"#N/A"}]
["ابيفيناك 100مجم لبوس","ابيماج فوار 12 كيس 5 جم",{"$error":"#N/A"},"ابيفيناك","ابيماج ف",{"$error":"#N/A"}]
["ابيفيناك 12.5مجم لبوس ","ابيمول 300مجم0  5لبوسه",{"$error":"#N/A"},"ابيفيناك","ابيمول 3",{"$error":"#N/A"}]
["ابيفيناك 25مجم اقراص","ابيمول اكسترا 500مجم20ق",{"$error":"#N/A"},"ابيفيناك","ابيمول ا",{"$error":"#N/A"}]
["ابيفيناك 25مجم لبوس","ابيميرفلوا 75 مجم 10 كبسولة",{"$error":"#N/A"},"ابيفيناك","ابيميرفل",{"$error":"#N/A"}]
["ابيفيناك 50مجم اقراص $","اتاكاند 16 مجم 14 قرص",{"$error":"#N/A"},"ابيفيناك","اتاكاند ",{"$error":"#N/A"}]
["ابيفيناك 75مجم 10اس ار اقراص $","اتاكاند 4 مجم 14 قرص استرازنيكا",{"$error":"#N/A"},"ابيفيناك","اتاكاند ",{"$error":"#N/A"}]
["ابيفيناك حقن","اتاكاند 4 مجم 14 قرص استرازنيكا",{"$error":"#N/A"},"ابيفيناك","اتاكاند ",{"$error":"#N/A"}]
["ابيفيناك قطرة","اتاكاند 4 مجم 14 قرص استرازنيكا",{"$error":"#N/A"},"ابيفيناك","اتاكاند ",{"$error":"#N/A"}]
["ابيفيناك50مجم لبوس ","اتاكاند 8 مجم 14 قرص استرازنيكا",{"$error":"#N/A"},"ابيفيناك","اتاكاند ",{"$error":"#N/A"}]
["ابيكافيت امبول","اتاكاند بلاس 16/12.5مجم 14قرص استرازنيكا",{"$error":"#N/A"},"ابيكافيت","اتاكاند ",{"$error":"#N/A"}]
["ابيكروم قطرة","اتاكاند بلاس 16/12.5مجم 14قرص استرازنيكا",{"$error":"#N/A"},"ابيكروم ","اتاكاند ",{"$error":"#N/A"}]
["ابيكسا 2شريط","اتاكاند بلاس 32-25 مجم 14 قرص دريمكس",{"$error":"#N/A"},"ابيكسا 2","اتاكاند ",{"$error":"#N/A"}]
["ابيكساويستان 2.5 مجم 10 قرص","اتاكاند بلاس 32-25 مجم 14 قرص دريمكس",{"$error":"#N/A"},"ابيكساوي","اتاكاند ",{"$error":"#N/A"}]
["ابيكسدون 1/2 اقراص","اترافنجكس 4 كبسولة",{"$error":"#N/A"},"ابيكسدون","اترافنجك",{"$error":"#N/A"}]
["ابيكسدون 1مجم اقراص","اترافنجكس 4 كبسولة",{"$error":"#N/A"},"ابيكسدون","اترافنجك",{"$error":"#N/A"}]
["ابيكسدون 2 مجم اقراص","اترافنجيكس 15 كبسولة",{"$error":"#N/A"},"ابيكسدون","اترافنجي",{"$error":"#N/A"}]
["ابيكسدون 3مجم اقراص","اتراكتا ريفورس شامبو 250 مل",{"$error":"#N/A"},"ابيكسدون","اتراكتا ",{"$error":"#N/A"}]
["ابيكسدون 4مجم اقراص","اترانوكس  15 كبسولة",{"$error":"#N/A"},"ابيكسدون","اترانوكس",{"$error":"#N/A"}]
["ابيكسدون شراب","اترانوكس 5  كبسولة",{"$f":"VLOOKUP(D706,E:E,1,FALSE)","v":{"$error":"#N/A"}},"ابيكسدون","اترانوكس",{"$f":"VLOOKUP(\"*\"&C706&\"*\",$B$2:$B$2000,1,0)","v":{"$error":"#N/A"}}]
["ابيكوبريد 5 مجم 30قرص","اتروبين 25 اميولة",{"$error":"#N/A"},{"$f":"LEFT(A707,8)","v":"ابيكوبري"},{"$f":"LEFT(B707,8)","v":"اتروبين "},{"$error":"#N/A"}]
["ابيكوتيل اقراص","اتروزيمب 10-10 مجم 30 قرص",{"$error":"#N/A"},"ابيكوتيل","اتروزيمب",{"$error":"#N/A"}]
["ابيكوتيل اقماع  ثلاجة","اتروفينت 250 مكجم 20 فيال",{"$error":"#N/A"},"ابيكوتيل","اتروفينت",{"$error":"#N/A"}]
["ابيكوتيل فيال  س ق","اتروفينت 500 مكجم 20 فيال",{"$error":"#N/A"},"ابيكوتيل","اتروفينت",{"$error":"#N/A"}]
["ابيكونتيل اقراص","اتورستات 20 مجم 14قرص",{"$error":"#N/A"},"ابيكونتي","اتورستات",{"$error":"#N/A"}]
["ابيلات  ريتارد اقراص","اتورستات 40 مجم 14 قرص",{"$error":"#N/A"},"ابيلات  ","اتورستات",{"$error":"#N/A"}]
["ابيلات كبسول","اتورستات 80 مجم  10 اقراص",{"$error":"#N/A"},"ابيلات ك","اتورستات",{"$error":"#N/A"}]
["ابيليا15مجم30قرص","اتوريزا 10-10 مجم 28 قرص",{"$error":"#N/A"},"ابيليا15","اتوريزا ",{"$error":"#N/A"}]
["ابينفرن 25امبول","اجركس 75 مجم 60 قرص",{"$error":"#N/A"},"ابينفرن ","اجركس 75",{"$error":"#N/A"}]
["ابينور اقراص","اجوفالد 25 مجم 21 قرص",{"$error":"#N/A"},"ابينور ا","اجوفالد ",{"$error":"#N/A"}]
["ابينوسين ب فورت امبول","اجيجستريز 100 مجم 60 مل معلق",{"$error":"#N/A"},"ابينوسين","اجيجستري",{"$error":"#N/A"}]
["ابيوفلام ان شراب","اجيجستريز 500 مجم 20 قرص",{"$error":"#N/A"},"ابيوفلام","اجيجستري",{"$error":"#N/A"}]
["ابيوفلكس اقراص","اجيرا كريم 50 جرام",{"$error":"#N/A"},"ابيوفلكس","اجيرا كر",{"$error":"#N/A"}]
["ابيوفين شراب بروفين","اجيولاكس حبيبات",{"$error":"#N/A"},"ابيوفين ","اجيولاكس",{"$error":"#N/A"}]
["اترابكس 15 كبسولة","ادفوكول 10 مجم 14قرص",{"$error":"#N/A"},"اترابكس ","ادفوكول ",{"$error":"#N/A"}]
["اترابكس 4  كبسوله","ادفوكول 10 مجم 28 قرص",{"$error":"#N/A"},"اترابكس ","ادفوكول ",{"$error":"#N/A"}]
["اتراكس 20قرص","ادولور 30 مجم 3 امبولة",{"$error":"#N/A"},"اتراكس 2","ادولور 3",{"$error":"#N/A"}]
["اتروفنت كومب  200 بخاخ","ادويفلام 50 مجم  10 كيس",{"$error":"#N/A"},"اتروفنت ","ادويفلام",{"$error":"#N/A"}]
["اتروفنت250مجم امبول","ادويفلام 50 مل  20 كبسولة",{"$error":"#N/A"},"اتروفنت2","ادويفلام",{"$error":"#N/A"}]
["اتروفنت500مجم امبول","ادويفلام 75 مجم 5 اقماع",{"$error":"#N/A"},"اتروفنت5","ادويفلام",{"$error":"#N/A"}]
["اترين 2  مجم 30 قرص","ادويفلام امبول 6 امبولة",{"$error":"#N/A"},"اترين 2 ","ادويفلام",{"$error":"#N/A"}]
["اترين 5 مجم اقراص","ادويفلام امبول 6 امبولة",{"$error":"#N/A"},"اترين 5 ","ادويفلام",{"$error":"#N/A"}]
["اتش بكتول استحلاب برتقال","ادويفلوكساسين 400 مجم 7 قرص",{"$error":"#N/A"},"اتش بكتو","ادويفلوك",{"$error":"#N/A"}]
["اتش بكتول استحلاب عسل وليمون","ادويفلوكساسين 400 مجم 7 قرص",{"$error":"#N/A"},"اتش بكتو","ادويفلوك",{"$error":"#N/A"}]
["اتشى اقراص","اديمكس  3 امبول",{"$error":"#N/A"},"اتشى اقر","اديمكس  ",{"$error":"#N/A"}]
["اتور 10مجم@","ارباتج شراب 100 مللى",{"$error":"#N/A"},"اتور 10م","ارباتج ش",{"$error":"#N/A"}]
["اتور20 مجم اقراص @","اربيبرازول 10 مجم 2 شريط",{"$error":"#N/A"},"اتور20 م","اربيبراز",{"$error":"#N/A"}]
["اتور40مجم اقراص","اربيبرازول 5 مجم 10 قرص",{"$error":"#N/A"},"اتور40مج","اربيبراز",{"$error":"#N/A"}]
["اتوزيت 10/40  اقراص","ارتيكافول 75 مجم محلول للتنقيط عضل/وريد",{"$error":"#N/A"},"اتوزيت 1","ارتيكافو",{"$error":"#N/A"}]
["اتينسيرا 25مجم","ارثينيا كريم 20 جرام",{"$error":"#N/A"},"اتينسيرا","ارثينيا ",{"$error":"#N/A"}]
["اتينو 100 مجم اقراص","ارجنت بلس مساج كريم 50 جرام",{"$error":"#N/A"},"اتينو 10","ارجنت بل",{"$error":"#N/A"}]
["اتينو 50مجم  اقراص","ارجنت مساج كريم 50 جرام",{"$error":"#N/A"},"اتينو 50","ارجنت مس",{"$error":"#N/A"}]
["اتينو سي 100/25مجم 20قرص","ارجنت مساج كريم 75 جرام",{"$error":"#N/A"},"اتينو سي","ارجنت مس",{"$error":"#N/A"}]
["اتينو سي25/50مجم 20قرص","ارجينافكت 5 مجم 20 قرص",{"$error":"#N/A"},"اتينو سي","ارجينافك",{"$error":"#N/A"}]
["اجار اكياس ","اردوليتيك 300 مجم 20 كبسولة",{"$error":"#N/A"},"اجار اكي","اردوليتي",{"$error":"#N/A"}]
["اجركس اقراص","اركاليون 200   2 * 20 قرص",{"$error":"#N/A"},"اجركس اق","اركاليون",{"$error":"#N/A"}]
["اجنوكاستون اقراص","اركاليون 400 مجم فورت 30 قرص",{"$error":"#N/A"},"اجنوكاست","اركاليون",{"$error":"#N/A"}]
["اجى جستريز اقراص","اركسترا 7.5 مجم 10 حقن",{"$error":"#N/A"},"اجى جستر","اركسترا ",{"$error":"#N/A"}]
["اجى جستريز شراب ","اركوكسيا 60 مجم 14 قرص",{"$error":"#N/A"},"اجى جستر","اركوكسيا",{"$error":"#N/A"}]
["اختبار حمل بيبى تشك","اريببركس 10 مجم 20  قرص",{"$error":"#N/A"},"اختبار ح","اريببركس",{"$error":"#N/A"}]
["اختبار حمل نونوتشك شرايط علبة100ق","اريببركس 100 مللى شراب",{"$error":"#N/A"},"اختبار ح","اريببركس",{"$error":"#N/A"}]
["ادامين اقراص","اريبيبراكير 20 مجم 20 قرص",{"$error":"#N/A"},"ادامين ا","اريبيبرا",{"$error":"#N/A"}]
["ادفانكريب اقراص","اريس 5 مجم 20 قرص",{"$error":"#N/A"},"ادفانكري","اريس 5 م",{"$error":"#N/A"}]
["ادكوسيكلين مرهم جلد+","اريسبت 5مجم  7قرص",{"$error":"#N/A"},"ادكوسيكل","اريسبت 5",{"$error":"#N/A"}]
["ادنكور  10 مجم اقراص+","اريكانوفا 10 مجم 4 قرص",{"$error":"#N/A"},"ادنكور  ","اريكانوف",{"$error":"#N/A"}]
["ادنكور 20 مجم اقراص جديد","اريكتوباك 20 مجم 2 قرص",{"$error":"#N/A"},"ادنكور 2","اريكتوبا",{"$error":"#N/A"}]
["ادول اقراص@","ازاثيوبرين ار بى جى50 مجم 30 قرص",{"$error":"#N/A"},"ادول اقر","ازاثيوبر",{"$error":"#N/A"}]
["ادول اكسترا اقراص@","ازاثيوبرين ميلان 50 مجم 10 قرص* 10 شريط",{"$error":"#N/A"},"ادول اكس","ازاثيوبر",{"$error":"#N/A"}]
["ادول ساينس","ازادرم كريم 30 جم",{"$error":"#N/A"},"ادول ساي","ازادرم ك",{"$error":"#N/A"}]
["ادولور30مل امبول@","ازاستاتين 10-40 مجم 30 قرص",{"$error":"#N/A"},"ادولور30","ازاستاتي",{"$error":"#N/A"}]
["ادويفالسار160مجم اقراص","ازجوكلاتنس قطرة 5 مللي",{"$error":"#N/A"},"ادويفالس","ازجوكلات",{"$error":"#N/A"}]
["ادويموف جل","ازموراب 40 مجم 2 شريط",{"$error":"#N/A"},"ادويموف ","ازموراب ",{"$error":"#N/A"}]
["اديباكت 550مجم اقراص 2 شريط","ازوبت 1 % 5 مل قطرة عين",{"$error":"#N/A"},"اديباكت ","ازوبت 1 ",{"$error":"#N/A"}]
["اديباكت200مجم اقراص","ازوبت 1 % 5 مل قطرة عين",{"$error":"#N/A"},"اديباكت2","ازوبت 1 ",{"$error":"#N/A"}]
["اديكسور 150 اكس ار","ازومايسين  250 مجم 6 كبسولات",{"$error":"#N/A"},"اديكسور ","ازومايسي",{"$error":"#N/A"}]
["اديكسور 75 اكس ار","ازويك 250 كبسول",{"$error":"#N/A"},"اديكسور ","ازويك 25",{"$error":"#N/A"}]
["ادينوسين  امبول","اس 26 ايه ار جولد لبن 400 جرام",{"$error":"#N/A"},"ادينوسين","اس 26 اي",{"$error":"#N/A"}]
["اديوروبان 8مجم 20 قرص","اس 26 برو جولد لبن 400 جرام",{"$error":"#N/A"},"اديوروبا","اس 26 بر",{"$error":"#N/A"}]
["ار اكس جيل","اس ام ار 2مجم  20 قرص",{"$error":"#N/A"},"ار اكس ج","اس ام ار",{"$error":"#N/A"}]
["ار اكس كريم","اسباتريند 6 اكياس",{"$error":"#N/A"},"ار اكس ك","اسباترين",{"$error":"#N/A"}]
["ار ايز كبسول","اسبروتكت 100 مجم 30 قرص",{"$error":"#N/A"},"ار ايز ك","اسبروتكت",{"$error":"#N/A"}]
["اربيدرين 150مجم اقراص","استيروماب 10 مجم 20 قرص",{"$error":"#N/A"},"اربيدرين","استيروما",{"$error":"#N/A"}]
["اربيدرين 150مجم ديو اقراص","استيروماب 20 مجم 20 قرص",{"$error":"#N/A"},"اربيدرين","استيروما",{"$error":"#N/A"}]
["اربيدرين 300مجم اقراص","استيكان 20 مجم 2شريط  14قرص",{"$f":"VLOOKUP(D770,E:E,1,FALSE)","v":{"$error":"#N/A"}},"اربيدرين","استيكان ",{"$f":"VLOOKUP(\"*\"&C770&\"*\",$B$2:$B$2000,1,0)","v":{"$error":"#N/A"}}]
["اربيدرين 300مجم ديو اقراص","استيكان 20 مجم 2شريط  14قرص",{"$error":"#N/A"},{"$f":"LEFT(A771,8)","v":"اربيدرين"},{"$f":"LEFT(B771,8)","v":"استيكان "},{"$error":"#N/A"}]
["اربيكسان 30مجم اقراص","استيكة 1 قطعة",{"$error":"#N/A"},"اربيكسان","استيكة 1",{"$error":"#N/A"}]
["ارتاجون 3 شريط كبسول","استيل سستايين  10 كيس 200 مجم",{"$error":"#N/A"},"ارتاجون ","استيل سس",{"$error":"#N/A"}]
["ارتكيوسيف 50مجم 3شريط","استين 10 مجم 20 قرص المستقبل",{"$error":"#N/A"},"ارتكيوسي","استين 10",{"$error":"#N/A"}]
["ارتيك اقراص","استين 20 مجم 20 قرص المستقبل",{"$error":"#N/A"},"ارتيك اق","استين 20",{"$error":"#N/A"}]
["ارثروزامين 30 كبسولة","اسيتالجان 1 جم فيال 100 مل",{"$error":"#N/A"},"ارثروزام","اسيتالجا",{"$error":"#N/A"}]
["ارثفرى3 شريط","اسيديبان معلق 180 مل",{"$error":"#N/A"},"ارثفرى3 ","اسيديبان",{"$error":"#N/A"}]
["ارجنت كريم 50جم صغير ","اسيكلوفير 800 ستادا اقراص 35 قرص",{"$error":"#N/A"},"ارجنت كر","اسيكلوفي",{"$error":"#N/A"}]
["ارجنت كريم كبير","اسيكلوفير 800 ستادا اقراص 35 قرص",{"$error":"#N/A"},"ارجنت كر","اسيكلوفي",{"$error":"#N/A"}]
["ارمو ويك 50 مجم اقراص","افارا 20 مجم. 30 قرص",{"$error":"#N/A"},"ارمو ويك","افارا 20",{"$error":"#N/A"}]
["اروتي 14 كبسول لاكتوفرين","افازير 10 مللى قطرة",{"$error":"#N/A"},"اروتي 14","افازير 1",{"$error":"#N/A"}]
["اروزول كبسول","افالون ديابر كريم لمنطقة الحفاظات 100 مل",{"$error":"#N/A"},"اروزول ك","افالون د",{"$error":"#N/A"}]
["اروسيلز برتقال 100قرص","افالون سترتش مارك كريم لتشققات الحمل",{"$error":"#N/A"},"اروسيلز ","افالون س",{"$error":"#N/A"}]
["اروسيلز عسل وليمون 100قرص","افالون نيبل كير 30 مللي",{"$error":"#N/A"},"اروسيلز ","افالون ن",{"$error":"#N/A"}]
["اروسيلز عسل وليمون20شريط","افاميس بخاخة انف 27.5 مكجم 120 جرعة",{"$error":"#N/A"},"اروسيلز ","افاميس ب",{"$error":"#N/A"}]
["اروسيلز نعناع100قرص","افتاميد شيلد 8  مل",{"$error":"#N/A"},"اروسيلز ","افتاميد ",{"$error":"#N/A"}]
["اروسيلز نعناع20شريط","افتر ميلز 20 كبسولة 2 شريط",{"$error":"#N/A"},"اروسيلز ","افتر ميل",{"$error":"#N/A"}]
["اروسيلزبرتقال20شريط","افتر ميلز 20 كبسولة 2 شريط",{"$error":"#N/A"},"اروسيلزب","افتر ميل",{"$error":"#N/A"}]
["اريثرومين 250مجم 6كبسولة","افوصويا 30 كبسولة",{"$error":"#N/A"},"اريثرومي","افوصويا ",{"$error":"#N/A"}]
["اريسبت10مجم اقراص 2 شريط","افيروثيازيد 5-12.5-20 مجم 30 قرص",{"$error":"#N/A"},"اريسبت10","افيروثيا",{"$error":"#N/A"}]
["اريك اقراص ","افيروثيازيد 5-12.5-40 مجم 30 قرص",{"$error":"#N/A"},"اريك اقر","افيروثيا",{"$error":"#N/A"}]
["اريكتاليس20م/اقراص فياجرا","افيروثيازيد 5-25-40 مجم 30 قرص",{"$error":"#N/A"},"اريكتالي","افيروثيا",{"$error":"#N/A"}]
["اريكتاماكس اقراص","افيروكس كريم 30 جرام",{"$error":"#N/A"},"اريكتاما","افيروكس ",{"$error":"#N/A"}]
["اريكسترا 2.5 مجم امبول","افيفافاسك 10-160 مجم 28 قرص",{"$error":"#N/A"},"اريكسترا","افيفافاس",{"$error":"#N/A"}]
["اريكسترا 7.5  حقن","افيكتورين 40 مجم 20 قرص",{"$error":"#N/A"},"اريكسترا","افيكتوري",{"$error":"#N/A"}]
["اريميدكس1مجم اقراص","افيل 2 ملل 6 امبول",{"$error":"#N/A"},"اريميدكس","افيل 2 م",{"$error":"#N/A"}]
["ارينيباثيك 150 مجم","افيل 2 ملل 6 امبول",{"$error":"#N/A"},"ارينيباث","افيل 2 م",{"$error":"#N/A"}]
["ارينيباثيك 75مجم","افيميو 10 مل معلق للعين",{"$error":"#N/A"},"ارينيباث","افيميو 1",{"$error":"#N/A"}]
["ازاديرم كريم","اكتوزون 30 مجم 10 قرص",{"$error":"#N/A"},"ازاديرم ","اكتوزون ",{"$error":"#N/A"}]
["ازالايد 500جم 3 قرص","اكتوفنت س.ار  20قرص",{"$error":"#N/A"},"ازالايد ","اكتوفنت ",{"$error":"#N/A"}]
["ازالايد شراب","اكتونيكس بخاخة انف اطفال 20 مل",{"$error":"#N/A"},"ازالايد ","اكتونيكس",{"$error":"#N/A"}]
["ازجوبيون اقراص ","اكتونيكس بخاخة انف كبار 20 مل",{"$error":"#N/A"},"ازجوبيون","اكتونيكس",{"$error":"#N/A"}]
["ازجوفلوكس 400مجم اقراص","اكتيفاست  50 مجم  30 قرص",{"$error":"#N/A"},"ازجوفلوك","اكتيفاست",{"$error":"#N/A"}]
["ازروا 1 مجم 2 قرص","اكتيفيد  12 ق",{"$error":"#N/A"},"ازروا 1 ","اكتيفيد ",{"$error":"#N/A"}]
["ازماتك20مجم7كبسولة","اكرين صابونة 100 جرام",{"$error":"#N/A"},"ازماتك20","اكرين صا",{"$error":"#N/A"}]
["ازماتك40مجم14قرص","اكرين صابونة 100 جرام",{"$error":"#N/A"},"ازماتك40","اكرين صا",{"$error":"#N/A"}]
["ازمك 10مجم اقراص","اكسارونت 2.5 مجم 30 قرص",{"$error":"#N/A"},"ازمك 10م","اكسارونت",{"$error":"#N/A"}]
["ازمك 20مجم اقراص","اكسارونت 2.5 مجم 30 قرص",{"$error":"#N/A"},"ازمك 20م","اكسارونت",{"$error":"#N/A"}]
["ازوبت قطرة","اكساميد 20 مجم 20 قرص",{"$error":"#N/A"},"ازوبت قط","اكساميد ",{"$error":"#N/A"}]
["ازوميبكس40مجم14قرص","اكسترا فى دش مهبلى 250 مل",{"$error":"#N/A"},"ازوميبكس","اكسترا ف",{"$error":"#N/A"}]
["ازى ونس 15 مل شراب ","اكستروما جيل فورت  25 جرام",{"$error":"#N/A"},"ازى ونس ","اكستروما",{"$error":"#N/A"}]
["ازى ونس 250مجم اقراص","اكستروما جيل فورت 40 جرام",{"$error":"#N/A"},"ازى ونس ","اكستروما",{"$error":"#N/A"}]
["ازى ونس 30 مل شراب","اكستروما جيل فورت 40 جرام",{"$error":"#N/A"},"ازى ونس ","اكستروما",{"$error":"#N/A"}]
["ازى ونس22.5مجم شراب","اكستروما كريم 25 جرام",{"$error":"#N/A"},"ازى ونس2","اكستروما",{"$error":"#N/A"}]
["ازيوتك300اقراص","اكستنشن 150 مجم 28 قرص",{"$error":"#N/A"},"ازيوتك30","اكستنشن ",{"$error":"#N/A"}]
["اسبراى تركى150ممل","اكسدرين  20 قرص",{"$error":"#N/A"},"اسبراى ت","اكسدرين ",{"$error":"#N/A"}]
["اسبوكارد اقراص","اكسيوبار 15 مجم 20 قرص",{"$error":"#N/A"},"اسبوكارد","اكسيوبار",{"$error":"#N/A"}]
["اسبيكو 81 مجم بديل جوسبرين","اكلاسير",{"$error":"#N/A"},"اسبيكو 8","اكلاسير",{"$error":"#N/A"}]
["استربسلز  برتقال","اكنى بيوتك محلول 15 مللي",{"$error":"#N/A"},"استربسلز","اكنى بيو",{"$error":"#N/A"}]
["استربسلز برتقال عرض 55جنيه","اكنى ستوب  غسول وجه 250 مللى",{"$error":"#N/A"},"استربسلز","اكنى ستو",{"$error":"#N/A"}]
["استربسلز عسل وليمون","اكنى ستوب كريم 30 جم",{"$error":"#N/A"},"استربسلز","اكنى ستو",{"$error":"#N/A"}]
["استربسلز عسل وليمون عرض 55 جنيه","اكنى فيرا صابون",{"$error":"#N/A"},"استربسلز","اكنى فير",{"$error":"#N/A"}]
["استربسلز كوول+","اكني-فرى كريم 30جم",{"$error":"#N/A"},"استربسلز","اكني-فرى",{"$error":"#N/A"}]
["استربسلز ليمون بدون سكر+","اكني-فرى كريم 30جم",{"$error":"#N/A"},"استربسلز","اكني-فرى",{"$error":"#N/A"}]
["استربسلز نعناع+","اكنيتروكس كريم 25 جرام",{"$error":"#N/A"},"استربسلز","اكنيتروك",{"$error":"#N/A"}]
["استوزا اقراص حديد","اكنيسكيف 0.1 جيل 30 جرام",{"$error":"#N/A"},"استوزا ا","اكنيسكيف",{"$error":"#N/A"}]
["استونين اتش اقراص","اكنيمايسين 25مل.محلول",{"$error":"#N/A"},"استونين ","اكنيمايس",{"$error":"#N/A"}]
["استين شراب","ال-كارنيتين 1 جرام 5 امبولة ميباكو",{"$error":"#N/A"},"استين شر","ال-كارني",{"$error":"#N/A"}]
["اسكاديل 50 جرام","ال-كارنيتين 20 كبسولة ميباكو",{"$error":"#N/A"},"اسكاديل ","ال-كارني",{"$error":"#N/A"}]
["اسماسيد  اقراص","البافيت 60 مللي شراب بالحديد",{"$error":"#N/A"},"اسماسيد ","البافيت ",{"$error":"#N/A"}]
["اسمولين اقراص","البافيت 60 مللي شراب بالحديد",{"$error":"#N/A"},"اسمولين ","البافيت ",{"$error":"#N/A"}]
["اسيتا10مجم 14كبسول","البافيت 60 مللي شراب كالسيوم",{"$error":"#N/A"},"اسيتا10م","البافيت ",{"$error":"#N/A"}]
["اسيتالوبرج 20 مجم ","البندازول 400 مجم شراب 30 مللى",{"$error":"#N/A"},"اسيتالوب","البندازو",{"$error":"#N/A"}]
["اسيتريتين 10 مللى 30 كبسوله","البوتيل 90 مجم لبوس مهبلى",{"$f":"VLOOKUP(D834,E:E,1,FALSE)","v":{"$error":"#N/A"}},"اسيتريتي","البوتيل ",{"$f":"VLOOKUP(\"*\"&C834&\"*\",$B$2:$B$2000,1,0)","v":{"$error":"#N/A"}}]
["اسيتريتين 25 مجم اقراص","البيدرم كريم 50 جم",{"$error":"#N/A"},{"$f":"LEFT(A835,8)","v":"اسيتريتي"},{"$f":"LEFT(B835,8)","v":"البيدرم "},{"$error":"#N/A"}]
["اسيتون فيرا","البيوستكس 8 مجم 30 قرص",{"$error":"#N/A"},"اسيتون ف","البيوستك",{"$error":"#N/A"}]
["اسيفراكس 800مجم اقراص","البيوستكس دى 16 مجم 30 قرص",{"$error":"#N/A"},"اسيفراكس","البيوستك",{"$error":"#N/A"}]
["اسيكلو ستاد كريم","البيوستكس دى 32 مجم 30 قرص",{"$error":"#N/A"},"اسيكلو س","البيوستك",{"$error":"#N/A"}]
["اسيكلوكوبا 100 مجم 20 قرص","التراسولف شراب 120 مللى",{"$error":"#N/A"},"اسيكلوكو","التراسول",{"$error":"#N/A"}]
["اسيلايت اقراص","التراسولف شراب 120 مللى",{"$error":"#N/A"},"اسيلايت ","التراسول",{"$error":"#N/A"}]
["اسيلوك 300مجم 20 قرص","التراسيبرو  1 جرام 5 قرص",{"$error":"#N/A"},"اسيلوك 3","التراسيب",{"$error":"#N/A"}]
["اسيلوك 75مجم 20 قرص","التراسيللين 1500 مجم 1 فيال",{"$error":"#N/A"},"اسيلوك 7","التراسيل",{"$error":"#N/A"}]
["اسيلوك اكياس","التراسيللين 375 مجم 1 فيال",{"$error":"#N/A"},"اسيلوك ا","التراسيل",{"$error":"#N/A"}]
["اسيليوفيناز 100 مجم","الترافيت كريم 50 جرام",{"$error":"#N/A"},"اسيليوفي","الترافيت",{"$error":"#N/A"}]
["اصالة زيت شعر 100ممل","التيازيم 60 مجم 40 قرص",{"$error":"#N/A"},"اصالة زي","التيازيم",{"$error":"#N/A"}]
["اف اس اتش امبول","التيبرو  30 كبسولة + جهاز استنشاق",{"$error":"#N/A"},"اف اس ات","التيبرو ",{"$error":"#N/A"}]
["افارا20مجم اقراص","الجازون 40جم.كريم",{"$error":"#N/A"},"افارا20م","الجازون ",{"$error":"#N/A"}]
["افالوكس كبسول","الجزال كريم 40 جرام",{"$error":"#N/A"},"افالوكس ","الجزال ك",{"$error":"#N/A"}]
["افترميلز اقراص 2 شريط","الزميندا 20 مجم 21 قرص",{"$error":"#N/A"},"افترميلز","الزميندا",{"$error":"#N/A"}]
["افنتا اكياس","الفا نوفا بلس 5 مل قطرة",{"$error":"#N/A"},"افنتا اك","الفا نوف",{"$error":"#N/A"}]
["افيدرين  100 امبول","الفاكالسيدول 2 ميكروجرام نقط 10مل ثلاجة",{"$error":"#N/A"},"افيدرين ","الفاكالس",{"$error":"#N/A"}]
["افيروبيرج  100مجم قراص ","الفاكلينداميسين 600 مجم 5 امبول",{"$error":"#N/A"},"افيروبير","الفاكلين",{"$error":"#N/A"}]
["افيروبيرج  50مجم قراص","الفانت  500 مجم 20 كبسولة",{"$error":"#N/A"},"افيروبير","الفانت  ",{"$error":"#N/A"}]
["افيروبيوز 642.9 مجم/ 75 مل شراب","الفينترن 30 قرص",{"$error":"#N/A"},"افيروبيو","الفينترن",{"$error":"#N/A"}]
["افيروبيوز 642.9مجم /60 مل شراب","الفينترن 30 قرص",{"$error":"#N/A"},"افيروبيو","الفينترن",{"$error":"#N/A"}]
["افيروفاج  15/500   اقراص","الكابريس 10 مجم 30 قرص",{"$error":"#N/A"},"افيروفاج","الكابريس",{"$error":"#N/A"}]
["افيروفاج 15/850  اقراص","الكابريس 10 مجم 30 قرص",{"$error":"#N/A"},"افيروفاج","الكابريس",{"$error":"#N/A"}]
["افيرون حديد اقراص","الكابريس 5مجم 20 قرص",{"$error":"#N/A"},"افيرون ح","الكابريس",{"$error":"#N/A"}]
["افيكال كبسول كالسيوم","الكافتابرو 0.25 % محلول للعين 3 مل",{"$error":"#N/A"},"افيكال ك","الكافتاب",{"$error":"#N/A"}]
["افيكير جيل لاسنان 25 جم","الكور  بلس 20 مجم 14 قرص",{"$error":"#N/A"},"افيكير ج","الكور  ب",{"$error":"#N/A"}]
["افيل 6امبولات@","الكور  بلس 40 مجم 14 قرص",{"$error":"#N/A"},"افيل 6ام","الكور  ب",{"$error":"#N/A"}]
["افيلاك ادرار للبن","الكور 10 مجم  14 قرص",{"$error":"#N/A"},"افيلاك ا","الكور 10",{"$error":"#N/A"}]
["افينوكريم","الليربان اس ار 20 قرص",{"$error":"#N/A"},"افينوكري","الليربان",{"$error":"#N/A"}]
["اكت زنك اقراص مكمل غذائى","الليرجكس 20 قرص",{"$error":"#N/A"},"اكت زنك ","الليرجكس",{"$error":"#N/A"}]
["اكت لايف كبسول","الليرجكس كافيين اقراص",{"$error":"#N/A"},"اكت لايف","الليرجكس",{"$error":"#N/A"}]
["اكتاجور 100 اقراص","الليرجيل 20 قرص",{"$error":"#N/A"},"اكتاجور ","الليرجيل",{"$error":"#N/A"}]
["اكتوس15مجم اقراص","الوفيرا بالصبار 5 امبولات 10 مللى",{"$error":"#N/A"},"اكتوس15م","الوفيرا ",{"$error":"#N/A"}]
["اكتوس30مجم اقراص ","الوفيرا بالصبار 5 امبولات 10 مللى",{"$error":"#N/A"},"اكتوس30م","الوفيرا ",{"$error":"#N/A"}]
["اكتوموتول اقراص","الوندا 0.5 مجم 2 قرص",{"$error":"#N/A"},"اكتوموتو","الوندا 0",{"$error":"#N/A"}]
["اكتوميثرين 2.5 غسول اطفال","اليجا كريم 60 جرام",{"$error":"#N/A"},"اكتوميثر","اليجا كر",{"$error":"#N/A"}]
["اكتوميثرين 5% لوسيون للكبار","اليرتام 120 مجم 10 قرص",{"$error":"#N/A"},"اكتوميثر","اليرتام ",{"$error":"#N/A"}]
["اكتوميثرين مستحلب","اليرتام 180مجم 10 قرص",{"$error":"#N/A"},"اكتوميثر","اليرتام ",{"$error":"#N/A"}]
["اكتونكس بخاخ اطفال $","اليرجوليبر 10 مجم 10 قرص",{"$error":"#N/A"},"اكتونكس ","اليرجولي",{"$error":"#N/A"}]
["اكتونكس بخاخ كبار $","اليرفين 180 مجم 20 اقراص",{"$error":"#N/A"},"اكتونكس ","اليرفين ",{"$error":"#N/A"}]
["اكتوهيلو قطره عين 10 امبول","اليرفين 60 مجم  30 قرص",{"$error":"#N/A"},"اكتوهيلو","اليرفين ",{"$error":"#N/A"}]
["اكتوين اطفال قطره","اليريد 5 مجم 120 مل شراب",{"$error":"#N/A"},"اكتوين ا","اليريد 5",{"$error":"#N/A"}]
["اكتوين كبار قطره","اليفو 5 مجم 20 قرص",{"$error":"#N/A"},"اكتوين ك","اليفو 5 ",{"$error":"#N/A"}]
["اكتى فاست 50 كبسول","اليفو 5 مجم 20 قرص",{"$error":"#N/A"},"اكتى فاس","اليفو 5 ",{"$error":"#N/A"}]
["اكتيف زيت 120مل","اليكاسال 30 جرام مرهم",{"$error":"#N/A"},"اكتيف زي","اليكاسال",{"$error":"#N/A"}]
["اكتيف شامبو250مل","اليكسادريكايين ازرق 50 امبول",{"$error":"#N/A"},"اكتيف شا","اليكسادر",{"$error":"#N/A"}]
["اكتيف كريم 100جم","اليكسادريكايين بنى 50 امبول",{"$error":"#N/A"},"اكتيف كر","اليكسادر",{"$error":"#N/A"}]
["اكتيف هير لوسيون","اليكويس 2.5 مجم 20 قرص",{"$error":"#N/A"},"اكتيف هي","اليكويس ",{"$error":"#N/A"}]
["اكتيمار 5  شريط","اليمبوسيس 5 مجم 30 قرص",{"$error":"#N/A"},"اكتيمار ","اليمبوسي",{"$error":"#N/A"}]
["اكتيمرا فيال ثلاجة","اليموكس 1 جرام 12 قرص",{"$error":"#N/A"},"اكتيمرا ","اليموكس ",{"$error":"#N/A"}]
["اكتيموكسيفلوكس 400مجم اقراص","اليموكس 1 جرام 12 قرص",{"$error":"#N/A"},"اكتيموكس","اليموكس ",{"$error":"#N/A"}]
["اكرن غسول","اليير 5 مجم 20 قرص",{"$error":"#N/A"},"اكرن غسو","اليير 5 ",{"$error":"#N/A"}]
["اكرن كريم","ام اكس 1 مجم 10 قرص",{"$error":"#N/A"},"اكرن كري","ام اكس 1",{"$error":"#N/A"}]
["اكرو كريم","ام اكس 1 مجم 3 امبولة",{"$error":"#N/A"},"اكرو كري","ام اكس 1",{"$error":"#N/A"}]
["اكريتين .05 كريم+","ام اكس 3 مجم 1 امبولة",{"$error":"#N/A"},"اكريتين ","ام اكس 3",{"$error":"#N/A"}]
["اكريتين.25 كريم+","اماجلوست 30-2 مجم 30 قرص",{"$error":"#N/A"},"اكريتين.","اماجلوست",{"$error":"#N/A"}]
["اكرينال ايه ان بى غسول","اماجلوست 30-4 مجم 30 قرص",{"$error":"#N/A"},"اكرينال ","اماجلوست",{"$error":"#N/A"}]
["اكس ايد كبسول","اماريل 2 مجم. 30 قرص",{"$error":"#N/A"},"اكس ايد ","اماريل 2",{"$error":"#N/A"}]
["اكس توب شراب","اماريل 3 مجم. 30 قرص",{"$error":"#N/A"},"اكس توب ","اماريل 3",{"$error":"#N/A"}]
["اكس سبراى شيكولاتة","اماريل 4 مجم. 20 قرص",{"$error":"#N/A"},"اكس سبرا","اماريل 4",{"$error":"#N/A"}]
["اكس كويست جل","اماريل 4 مجم. 30 قرص",{"$error":"#N/A"},"اكس كويس","اماريل 4",{"$error":"#N/A"}]
["اكستراجيسيك اقراص","املوفيران 5-10 مجم 30 قرص",{"$error":"#N/A"},"اكستراجي","املوفيرا",{"$error":"#N/A"}]
["اكسريد 20قرص مكمل غذائى","اموكلاوين 457 مجم شراب",{"$error":"#N/A"},"اكسريد 2","اموكلاوي",{"$error":"#N/A"}]
["اكسيلسا 10مجم 14 قرص","اميبريد 50 مجم 20 قرص",{"$f":"VLOOKUP(D898,E:E,1,FALSE)","v":{"$error":"#N/A"}},"اكسيلسا ","اميبريد ",{"$f":"VLOOKUP(\"*\"&C898&\"*\",$B$2:$B$2000,1,0)","v":{"$error":"#N/A"}}]
["اكسيلسا 20مجم 7قرص","اميتركس 20 قرص",{"$error":"#N/A"},{"$f":"LEFT(A899,8)","v":"اكسيلسا "},{"$f":"LEFT(B899,8)","v":"اميتركس "},{"$error":"#N/A"}]
["اكسيليتون اقراص","اميتركس 20 قرص",{"$error":"#N/A"},"اكسيليتو","اميتركس ",{"$error":"#N/A"}]
["اكلاستا امبول","اميتريتين 50 مجم 30 قرص",{"$error":"#N/A"},"اكلاستا ","اميتريتي",{"$error":"#N/A"}]
["اكنى اكت جيل","اميجران 30 قرص العربية",{"$error":"#N/A"},"اكنى اكت","اميجران ",{"$error":"#N/A"}]
["اكنى زنك لوسيون","اميجروويست 2.5 مجم 4 قرص",{"$error":"#N/A"},"اكنى زنك","اميجرووي",{"$error":"#N/A"}]
["اكنى فرى كريم","امينوليبان 500 مللى  اوتسوكا",{"$error":"#N/A"},"اكنى فرى","امينوليب",{"$error":"#N/A"}]
["اكنيتاز جيل","اميوجارد 14 كيس",{"$error":"#N/A"},"اكنيتاز ","اميوجارد",{"$error":"#N/A"}]
["اكنيروكسيد جيل+","اميولانت 120 مللى شراب",{"$error":"#N/A"},"اكنيروكس","اميولانت",{"$error":"#N/A"}]
["اكوا بلس شراب","اميونو ماش 30 قرص",{"$error":"#N/A"},"اكوا بلس","اميونو م",{"$error":"#N/A"}]
["اكوابن فيال بديل بنسيتارد","ان بى بلاس كريم 50 جرام",{"$error":"#N/A"},"اكوابن ف","ان بى بل",{"$error":"#N/A"}]
["اكواسيد شراب","ان هير لوشن 200 مل",{"$error":"#N/A"},"اكواسيد ","ان هير ل",{"$error":"#N/A"}]
["اكوف كريم للحروق","اناجين لوسيون 120 مللى",{"$error":"#N/A"},"اكوف كري","اناجين ل",{"$error":"#N/A"}]
["اكيتالايت كريم تفتيح","اناسترازول 28 قرص",{"$error":"#N/A"},"اكيتالاي","اناستراز",{"$error":"#N/A"}]
["اكينوبريد بلس قطره","انافرونيل 25 مجم  30 قرص",{"$error":"#N/A"},"اكينوبري","انافروني",{"$error":"#N/A"}]
["اكيوكورت كريم مساج","انافرونيل 75 مجم اس ار 20 قرص",{"$error":"#N/A"},"اكيوكورت","انافروني",{"$error":"#N/A"}]
["اكيولار ال اس قطرة+","اناليرج 3 شريط 60 قرص",{"$error":"#N/A"},"اكيولار ","اناليرج ",{"$error":"#N/A"}]
["ال كارنتين  كبسول ميباكو $","اناليرج 3 شريط 60 قرص",{"$error":"#N/A"},"ال كارنت","اناليرج ",{"$error":"#N/A"}]
["ال كارنتين امبول ميباكو  $","انترافير 30 قرص",{"$error":"#N/A"},"ال كارنت","انترافير",{"$error":"#N/A"}]
["ال كارنتين بلس كبسول","انترافير ب 30 قرص",{"$error":"#N/A"},"ال كارنت","انترافير",{"$error":"#N/A"}]
["ال كارنتين شراب $","انتوبرال 20 مجم 14 قرص",{"$error":"#N/A"},"ال كارنت","انتوبرال",{"$error":"#N/A"}]
["البا حديد شيكولاته قطع","انتوبرال 40 مجم 14 قرص",{"$error":"#N/A"},"البا حدي","انتوبرال",{"$error":"#N/A"}]
["البيوسيتكس 32/12.5 اقراص","انتى ديازوكس 60 مللي بودرة",{"$error":"#N/A"},"البيوسيت","انتى ديا",{"$error":"#N/A"}]
["البيوسيتكس 8 مجم اقراص","انتى فلو  20كبسولة",{"$error":"#N/A"},"البيوسيت","انتى فلو",{"$error":"#N/A"}]
["الترا سليم اقراص","انتى كوكس 15 امبول 6 امبولة",{"$error":"#N/A"},"الترا سل","انتى كوك",{"$error":"#N/A"}]
["الترا لايت سولت ملح مدعم باليود","انتى كوكس 20 كبسولة",{"$error":"#N/A"},"الترا لا","انتى كوك",{"$error":"#N/A"}]
["الترا لايتنج كريم تفتيح 50 مجم","انتى كوكس 5 لبوسة",{"$error":"#N/A"},"الترا لا","انتى كوك",{"$error":"#N/A"}]
["التراجريزوفلفين  اقراص","انتى كوكس اا 5ر7 مجم 10 كبسولة",{"$error":"#N/A"},"التراجري","انتى كوك",{"$error":"#N/A"}]
["التراجريزوفلفين100م شراب ","انتى كوكس|| 15  30 ق",{"$error":"#N/A"},"التراجري","انتى كوك",{"$error":"#N/A"}]
["التراكايين جيل","انجيوسارتان 10 مجم 28 قرص",{"$error":"#N/A"},"التراكاي","انجيوسار",{"$error":"#N/A"}]
["التراموكس 1جرام 12 قرص","انجيوسارتان 20 مجم 28 قرص",{"$error":"#N/A"},"التراموك","انجيوسار",{"$error":"#N/A"}]
["التراميدانين كبسول","انجيوسارتان 40 مجم 28 قرص",{"$error":"#N/A"},"التراميد","انجيوسار",{"$error":"#N/A"}]
["التراميدانيين محلول 15مل","انجيوسارتان 40 مجم 28 قرص",{"$error":"#N/A"},"التراميد","انجيوسار",{"$error":"#N/A"}]
["التراميلادينين كبسول","انجيوسارتان بلس 20-12.5 مجم 28 قرص",{"$error":"#N/A"},"التراميل","انجيوسار",{"$error":"#N/A"}]
["التراميلادينين محلول","انجيوسارتان بلس 20-12.5 مجم 28 قرص",{"$error":"#N/A"},"التراميل","انجيوسار",{"$error":"#N/A"}]
["الترانيل كبسول","انجيوسارتان بلس 20-25 مجم 28 قرص",{"$error":"#N/A"},"الترانيل","انجيوسار",{"$error":"#N/A"}]
["التروكسين 100مجم اقراص@","انجيوسارتان بلس 20-25 مجم 28 قرص",{"$error":"#N/A"},"التروكسي","انجيوسار",{"$error":"#N/A"}]
["التروكسين 50مجم اقراص سعر جديد@","انجيوسارتان بلس 40-12.5  مجم 28 قرص",{"$error":"#N/A"},"التروكسي","انجيوسار",{"$error":"#N/A"}]
["التومنيرا10/40مجم اقراص","انجيوسارتان بلس 40-12.5  مجم 28 قرص",{"$error":"#N/A"},"التومنير","انجيوسار",{"$error":"#N/A"}]
["الجيناسكون شراب بديل جيفسكون","اندودارسين 7.5 مجم 20 قرص",{"$error":"#N/A"},"الجيناسك","اندودارس",{"$error":"#N/A"}]
["الداكتازيد اقراص","اندوديرما اكسترا ايموليت جيل 50 جرام",{"$error":"#N/A"},"الداكتاز","اندوديرم",{"$error":"#N/A"}]
["الداكتون 100مجم اقراص","اندوديرما اكسترا ايموليت جيل 50 جرام",{"$error":"#N/A"},"الداكتون","اندوديرم",{"$error":"#N/A"}]
["الداكتون 25 مجم اقراص","اندوديرما صن سكرين لوشن 150 مل",{"$error":"#N/A"},"الداكتون","اندوديرم",{"$error":"#N/A"}]
["الزاميندا 10 مجم اقراص","اندوريستات 80 مجم 20 قرص",{"$error":"#N/A"},"الزاميند","اندوريست",{"$error":"#N/A"}]
["الزاميندا 20 مجم اقراص","اندوريفابان 10 مجم 20 قرص",{"$error":"#N/A"},"الزاميند","اندوريفا",{"$error":"#N/A"}]
["الزاميندا 5 مجم اقراص","اندوريفابان 2.5 مجم 20 قرص",{"$error":"#N/A"},"الزاميند","اندوريفا",{"$error":"#N/A"}]
["الزاميندا نقط","اندوريفابان 20 مجم 20 قرص",{"$error":"#N/A"},"الزاميند","اندوريفا",{"$error":"#N/A"}]
["الزيبيزيل10مجم اقراص","اندوفيمباميد 100 مجم 20 قرص",{"$error":"#N/A"},"الزيبيزي","اندوفيمب",{"$error":"#N/A"}]
["الزيبيزيل5مجم اقراص","اندوفيمباميد 50 مجم 20 قرص",{"$error":"#N/A"},"الزيبيزي","اندوفيمب",{"$error":"#N/A"}]
["الس فرى كبسول","اندوميثازين لبوس  مصر ثلاجة",{"$error":"#N/A"},"الس فرى ","اندوميثا",{"$error":"#N/A"}]
["الستيك40مجم اقراص","انريتش 100 مللى شراب",{"$error":"#N/A"},"الستيك40","انريتش 1",{"$error":"#N/A"}]
["السيزول 60 مجم 20قرص","انزاد فيال + ماء حقن",{"$error":"#N/A"},"السيزول ","انزاد في",{"$error":"#N/A"}]
["الفابونيد 10 امبول وريد","انسكت بايت 20 جرام جيل",{"$error":"#N/A"},"الفابوني","انسكت با",{"$error":"#N/A"}]
["الفابونيد نقط ثلاجة#","انسيلاكوكس 60 مجم 30 قرص",{"$error":"#N/A"},"الفابوني","انسيلاكو",{"$error":"#N/A"}]
["الفاجان بى قطره","انسيلاكوكس 60 مجم 30 قرص",{"$error":"#N/A"},"الفاجان ","انسيلاكو",{"$error":"#N/A"}]
["الفادوبا اقراص بديل الدوميت","انسيلاكوكس 90 مجم 30 قرص",{"$error":"#N/A"},"الفادوبا","انسيلاكو",{"$error":"#N/A"}]
["الفاسبكت 500اقراص","انشور بودر 400 جرام فانيليا",{"$error":"#N/A"},"الفاسبكت","انشور بو",{"$error":"#N/A"}]
["الفاسبكت750مجم اقراص","انفابرو 20 قرص",{"$error":"#N/A"},"الفاسبكت","انفابرو ",{"$error":"#N/A"}]
["الفاسيف 750 فيال","انفاركا 50 مجم 20 قرص",{"$error":"#N/A"},"الفاسيف ","انفاركا ",{"$error":"#N/A"}]
["الفاسيف 750 مجم اقراص","انفكتوكيور 500 مجم 14 قرص",{"$error":"#N/A"},"الفاسيف ","انفكتوكي",{"$error":"#N/A"}]
["الفاكادول  مرهم قديم","انفيجا 6مجم 7 قرص",{"$error":"#N/A"},"الفاكادو","انفيجا 6",{"$error":"#N/A"}]
["الفاكيموتربسين امبول+","انهيباميت 12.5 - 1000 مجم 30 قرص",{"$error":"#N/A"},"الفاكيمو","انهيبامي",{"$error":"#N/A"}]
["الفانت500جم اقراص","انهيباميت 12.5 - 500 مجم 30 قرص",{"$error":"#N/A"},"الفانت50","انهيبامي",{"$error":"#N/A"}]
["الفانوفا بلس قطرة","انهيباميت 12.5 - 500 مجم 30 قرص",{"$error":"#N/A"},"الفانوفا","انهيبامي",{"$error":"#N/A"}]
["الفانوفا قطرة","انهيجليب 12.5 مجم 30 قرص",{"$f":"VLOOKUP(D962,E:E,1,FALSE)","v":{"$error":"#N/A"}},"الفانوفا","انهيجليب",{"$f":"VLOOKUP(\"*\"&C962&\"*\",$B$2:$B$2000,1,0)","v":{"$error":"#N/A"}}]
["الفنترن اقراص","انهيجليب 25 مجم 30 قرص",{"$error":"#N/A"},{"$f":"LEFT(A963,8)","v":"الفنترن "},{"$f":"LEFT(B963,8)","v":"انهيجليب"},{"$error":"#N/A"}]
["الفيتال شراب  كالسيوم $","انوفا 50 مجم  د  10 اقراص",{"$error":"#N/A"},"الفيتال ","انوفا 50",{"$error":"#N/A"}]
["الفيتال شراب حديد $","انوكسيكام 20 مجم 10 لبوسة",{"$error":"#N/A"},"الفيتال ","انوكسيكا",{"$error":"#N/A"}]
["الفيف سيرم 100ممل","انيجى 10 مجم / 10 مجم 14قرص مخفض",{"$error":"#N/A"},"الفيف سي","انيجى 10",{"$error":"#N/A"}]
["الكا مصر اكياس@","انيماكورت حقنة شرجية",{"$error":"#N/A"},"الكا مصر","انيماكور",{"$error":"#N/A"}]
["الكابرس 10مجم بلس+","او ار اس 10 كيس لمعالجة الجفاف",{"$error":"#N/A"},"الكابرس ","او ار اس",{"$error":"#N/A"}]
["الكابرس 5 بلاس اقراص","او زد كريم 100 جرام",{"$error":"#N/A"},"الكابرس ","او زد كر",{"$error":"#N/A"}]
["الكابرس 5مجم 2شريط+","اوبتامينس 150 قرص",{"$error":"#N/A"},"الكابرس ","اوبتامين",{"$error":"#N/A"}]
["الكابرس10مجم3شريط","اوبتامينس 200 قرص",{"$error":"#N/A"},"الكابرس1","اوبتامين",{"$error":"#N/A"}]
["الكور 20مجم اقراص","اوبتوزولين 10 مللى قطرة جمجوم",{"$error":"#N/A"},"الكور 20","اوبتوزول",{"$error":"#N/A"}]
["الكور 40 مجم اقراص","اوبتى فرى اكسبرس 120مل لا يرتجع",{"$error":"#N/A"},"الكور 40","اوبتى فر",{"$error":"#N/A"}]
["الكور بلس 20/10 اقراص","اوبتيبرد  5 مللى قطرة",{"$error":"#N/A"},"الكور بل","اوبتيبرد",{"$error":"#N/A"}]
["الكور بلس 40/10 اقراص","اوبتيبرد  5 مللى قطرة",{"$error":"#N/A"},"الكور بل","اوبتيبرد",{"$error":"#N/A"}]
["الكيران اقراص  ","اوبلكس ان شراب 125 مل",{"$error":"#N/A"},"الكيران ","اوبلكس ا",{"$error":"#N/A"}]
["اللير اقراص","اوبلونج نوفالجين 10 قرص",{"$error":"#N/A"},"اللير اق","اوبلونج ",{"$error":"#N/A"}]
["اللير شراب","اوبلونج نوفالجين 10 قرص",{"$error":"#N/A"},"اللير شر","اوبلونج ",{"$error":"#N/A"}]
["الليروزون كريم","اوبلونج نوفالجين 10 قرص",{"$error":"#N/A"},"الليروزو","اوبلونج ",{"$error":"#N/A"}]
["الندوماكس بلس 70مجم 2قرص","اوتال 5 مللى  نقط",{"$error":"#N/A"},"الندوماك","اوتال 5 ",{"$error":"#N/A"}]
["الوبانتين شامبو النيل","اوتريفين 10مل. بخاخ انف",{"$error":"#N/A"},"الوبانتي","اوتريفين",{"$error":"#N/A"}]
["الوبانتين لوسيون النيل","اوتريفين 15مل. نقط اطفال",{"$error":"#N/A"},"الوبانتي","اوتريفين",{"$error":"#N/A"}]
["الوفير شيكولاتة فيتامين د","اوتريفين 15مل. نقط اطفال",{"$error":"#N/A"},"الوفير ش","اوتريفين",{"$error":"#N/A"}]
["الوكال اقراص للمضغ","اوتريفين 15مل. نقط كبار",{"$error":"#N/A"},"الوكال ا","اوتريفين",{"$error":"#N/A"}]
["الوكنتا هير تونيك","اوتريفين 15مل. نقط كبار",{"$error":"#N/A"},"الوكنتا ","اوتريفين",{"$error":"#N/A"}]
["اليتاك كريم","اوتوكورت نقط",{"$error":"#N/A"},"اليتاك ك","اوتوكورت",{"$error":"#N/A"}]
["اليجا غسول للوجه 150 م","اوجرام 1 جرام 7 قرص",{"$error":"#N/A"},"اليجا غس","اوجرام 1",{"$error":"#N/A"}]
["اليجا لوسيون س ج","اوجرام 312.5 مجم اقراص للمضغ",{"$error":"#N/A"},"اليجا لو","اوجرام 3",{"$error":"#N/A"}]
["اليجين غسول","اوجرام 457 مجم 10 اقراص للمضغ",{"$error":"#N/A"},"اليجين غ","اوجرام 4",{"$error":"#N/A"}]
["اليديل كريم","اوجرام 642.9 مجم 60 مل شراب",{"$error":"#N/A"},"اليديل ك","اوجرام 6",{"$error":"#N/A"}]
["اليربان 2 مجم اقراص","اوجماسيللين 228.5معلق 60مللي",{"$error":"#N/A"},"اليربان ","اوجماسيل",{"$error":"#N/A"}]
["اليربان شراب","اوجماسيللين 457معلق 60مللي",{"$error":"#N/A"},"اليربان ","اوجماسيل",{"$error":"#N/A"}]
["اليرجكس اقراص$","اوجمنتين 312مجم 80 مللى شراب",{"$error":"#N/A"},"اليرجكس ","اوجمنتين",{"$error":"#N/A"}]
["اليرجكس كافيين اقراص","اوجمنتين 312مجم 80 مللى شراب",{"$error":"#N/A"},"اليرجكس ","اوجمنتين",{"$error":"#N/A"}]
["اليرجكس كررررريم$","اوجمنتين 457 مجم شراب 70 مللي",{"$error":"#N/A"},"اليرجكس ","اوجمنتين",{"$error":"#N/A"}]
["اليرجيل اقراص","اوجمنتين اى اس 600 مجم معلق",{"$error":"#N/A"},"اليرجيل ","اوجمنتين",{"$error":"#N/A"}]
["اليرجيل شراب","اورازان غرغرة 125 مللى",{"$error":"#N/A"},"اليرجيل ","اورازان ",{"$error":"#N/A"}]
["اليرديب بخاخه","اورازون 120مل. شراب",{"$error":"#N/A"},"اليرديب ","اورازون ",{"$error":"#N/A"}]
["اليرست  كبسول","اوراسترين 200 مللى غرغرة",{"$error":"#N/A"},"اليرست  ","اوراستري",{"$error":"#N/A"}]
["اليرست كولد س ج","اورافكس 250 مل ديليكت غسول للفم",{"$error":"#N/A"},"اليرست ك","اورافكس ",{"$error":"#N/A"}]
["اليفو5مجم اقراص","اورافكس اتش غرغرة 150 مل",{"$error":"#N/A"},"اليفو5مج","اورافكس ",{"$error":"#N/A"}]
["اليفيت اقراص","اورافكس مضمضة تفاح اخضر 250مل",{"$error":"#N/A"},"اليفيت ا","اورافكس ",{"$error":"#N/A"}]
["اليكا ام كريم ","اورافيت ب 12 مجم اس ار 10 كبسولة",{"$error":"#N/A"},"اليكا ام","اورافيت ",{"$error":"#N/A"}]
["اليكسجينتا كريم جينتاميسين ","اورجودينافيل 100 مجم 9 قرص",{"$error":"#N/A"},"اليكسجين","اورجودين",{"$error":"#N/A"}]
["اليكون كريم","اورجوروكسبان 10 مجم 20 قرص",{"$error":"#N/A"},"اليكون ك","اورجوروك",{"$error":"#N/A"}]
["اليكون مرهم","اورجوروكسبان 20 مجم 30 قرص",{"$error":"#N/A"},"اليكون م","اورجوروك",{"$error":"#N/A"}]
["اليمير بخاخ انف","اورسوفالك 20 كبسولة",{"$error":"#N/A"},"اليمير ب","اورسوفال",{"$error":"#N/A"}]
["ام اس ام  اقراص س ج","اوركابريد 10 مل معلق قطرة",{"$error":"#N/A"},"ام اس ام","اوركابري",{"$error":"#N/A"}]
["امبرودوكسى اقراص","اورنيتات محلول وريدى 5 امبول",{"$error":"#N/A"},"امبرودوك","اورنيتات",{"$error":"#N/A"}]
["امبروكسول 30مجم اقراص","اورنيداز 500 مجم 10 قرص",{"$error":"#N/A"},"امبروكسو","اورنيداز",{"$error":"#N/A"}]
["امبروكسول شراب","اورنيداز 500 مجم 10 قرص",{"$error":"#N/A"},"امبروكسو","اورنيداز",{"$error":"#N/A"}]
["امبروكسول نقط","اورنيهيباريت 6 اكياس",{"$error":"#N/A"},"امبروكسو","اورنيهيب",{"$error":"#N/A"}]
["امبسيللين500كبسول@","اوسبن 1000 اقراص",{"$error":"#N/A"},"امبسيللي","اوسبن 10",{"$error":"#N/A"}]
["امبيسيللين 500 كبسول ش مصر","اوستيوسيرين 50 مجم 20 كبسولة",{"$error":"#N/A"},"امبيسيلل","اوستيوسي",{"$error":"#N/A"}]
["امبيكتام750مجم امبول","اوستيوكير شراب 120 مل فيتابيوتكس",{"$error":"#N/A"},"امبيكتام","اوستيوكي",{"$error":"#N/A"}]
["امرى ك حقن","اوستيوكير شراب 120 مل فيتابيوتكس",{"$error":"#N/A"},"امرى ك ح","اوستيوكي",{"$error":"#N/A"}]
["امريز اقراص","اوستيونات 70 مجم 4قرص",{"$error":"#N/A"},"امريز اق","اوستيونا",{"$error":"#N/A"}]
["امريفلوكان كبسول","اوفراماكس 1 جرام عضل",{"$error":"#N/A"},"امريفلوك","اوفراماك",{"$error":"#N/A"}]
["املا سيرم شعر","اوفراماكس 1 جرام عضل",{"$error":"#N/A"},"املا سير","اوفراماك",{"$error":"#N/A"}]
["املوديبين 10مجم اقر اص","اوفراماكس 1 جرام وريد",{"$error":"#N/A"},"املوديبي","اوفراماك",{"$error":"#N/A"}]
["املوديبين 5مجم اقر اص","اوفراماكس 250 مجم  عضل",{"$error":"#N/A"},"املوديبي","اوفراماك",{"$error":"#N/A"}]
["املوفلوكسين 250/250 20كبسول","اوفلام 50 لاكتاب  20 قرص",{"$error":"#N/A"},"املوفلوك","اوفلام 5",{"$error":"#N/A"}]
["اموسار50مجم3شريط","اوكسا للاستحلاب 20 قطعه برتقال",{"$error":"#N/A"},"اموسار50","اوكسا لل",{"$error":"#N/A"}]
["اموسريبرال بلس اقراص","اوكسازوليد 100 مجم 150 مل معلق",{"$error":"#N/A"},"اموسريبر","اوكسازول",{"$error":"#N/A"}]
["اموكسيسللين 500 مجم التنشيط@+","اوكسيمت نقط اطفال 15 ملل",{"$error":"#N/A"},"اموكسيسل","اوكسيمت ",{"$error":"#N/A"}]
["اموكسيل 250 مجم شراب","اوكسيمت نقط كبار 15 ملل",{"$f":"VLOOKUP(D1026,E:E,1,FALSE)","v":{"$error":"#N/A"}},"اموكسيل ","اوكسيمت ",{"$f":"VLOOKUP(\"*\"&C1026&\"*\",$B$2:$B$2000,1,0)","v":{"$error":"#N/A"}}]
["اموكسيل 500مجم كبسول","اوكسيميتازولين بخاخة للانف 20 مل",{"$error":"#N/A"},{"$f":"LEFT(A1027,8)","v":"اموكسيل "},{"$f":"LEFT(B1027,8)","v":"اوكسيميت"},{"$error":"#N/A"}]
["اموكسيلينيك 457 مجم شراب","اوكيو جارد  30 كبسولة",{"$error":"#N/A"},"اموكسيلي","اوكيو جا",{"$error":"#N/A"}]
["اميبازول اقراص","اولابكس 10 مجم 30 قرص",{"$error":"#N/A"},"اميبازول","اولابكس ",{"$error":"#N/A"}]
["اميبرامين اقراص","اولابكس 10 مجم 30 قرص",{"$error":"#N/A"},"اميبرامي","اولابكس ",{"$error":"#N/A"}]
["اميبريستون 24مجم كبسول","اولانزابين 7.5 مجم 14 قرص",{"$error":"#N/A"},"اميبريست","اولانزاب",{"$error":"#N/A"}]
["اميبريستون 8 مجم اقراص","اولفنت 125 مللى شراب",{"$error":"#N/A"},"اميبريست","اولفنت 1",{"$error":"#N/A"}]
["اميتربتين50مجم اقراص","اولفين 100اس ار كبسول",{"$error":"#N/A"},"اميتربتي","اولفين 1",{"$error":"#N/A"}]
["اميجراويست اقراص","اولميسبيرونوفا 25-20 مجم 30 قرص",{"$error":"#N/A"},"اميجراوي","اولميسبي",{"$error":"#N/A"}]
["اميكابيوتك 100مجم امبول","اولوبات قطرة 5 مللى",{"$error":"#N/A"},"اميكابيو","اولوبات ",{"$error":"#N/A"}]
["اميكابيوتك 500  امبول","اولوبات قطرة 5 مللى",{"$error":"#N/A"},"اميكابيو","اولوبات ",{"$error":"#N/A"}]
["اميكاسكيف  1 جم  عضل","اولوباليت محلول للعين 5 مللى",{"$error":"#N/A"},"اميكاسكي","اولوبالي",{"$error":"#N/A"}]
["اميكاسكيف500مجم امبول","اولوبتانول نقط عين 5 مل",{"$error":"#N/A"},"اميكاسكي","اولوبتان",{"$error":"#N/A"}]
["اميكاسين 500 فيال","اولوهيستين محلول للعين 5 مللى",{"$error":"#N/A"},"اميكاسين","اولوهيست",{"$error":"#N/A"}]
["اميكاسين سبراى 100مل كبير","اوليبتينا 12.5 مجم 30 قرص",{"$error":"#N/A"},"اميكاسين","اوليبتين",{"$error":"#N/A"}]
["اميلو بلس اقراص/ $","اوليبتينا 6.25 مجم 30 قرص",{"$error":"#N/A"},"اميلو بل","اوليبتين",{"$error":"#N/A"}]
["اميلو10مجم 20قرص","اومت سى 60 مللى",{"$error":"#N/A"},"اميلو10م","اومت سى ",{"$error":"#N/A"}]
["امينو 18 كبسول","اومنيتروب 10 مجم محلول حقن 1 خرطوش ثلاجة",{"$error":"#N/A"},"امينو 18","اومنيترو",{"$error":"#N/A"}]
["امينوفلو كبسول","اومنيسف 125 مجم 40 مل",{"$error":"#N/A"},"امينوفلو","اومنيسف ",{"$error":"#N/A"}]
["امينوماش زنك+فيتامين سى اقراص","اومنيفورا 8 امبول",{"$error":"#N/A"},"امينوماش","اومنيفور",{"$error":"#N/A"}]
["اميوران اقراص","اوميباك 40 مجم 14 كبسولة",{"$error":"#N/A"},"اميوران ","اوميباك ",{"$error":"#N/A"}]
["ان بى سبراى","اوميجادوكس 3-1000 مجم 30 كبسولة",{"$error":"#N/A"},"ان بى سب","اوميجادو",{"$error":"#N/A"}]
["ان بى كريم","اوميز 10 مجم 14 كبسولة",{"$error":"#N/A"},"ان بى كر","اوميز 10",{"$error":"#N/A"}]
["ان كلير بخاخ 200 مل","اوميز 20 مجم 14 كبسولة",{"$error":"#N/A"},"ان كلير ","اوميز 20",{"$error":"#N/A"}]
["ان كلير غسول 250 مل","اوميز 40 مجم 10 كبسولة",{"$error":"#N/A"},"ان كلير ","اوميز 40",{"$error":"#N/A"}]
["انابرامين 50 مجم اقراص","اوميهلث 7 كبسولة",{"$error":"#N/A"},"انابرامي","اوميهلث ",{"$error":"#N/A"}]
["انابرامين 75 مجم اقراص","اوندالينز 4 مجم 5 فيلم سريع الذوبان",{"$error":"#N/A"},"انابرامي","اوندالين",{"$error":"#N/A"}]
["انافرانيل 25مجم اقراص","اونداميتيك 4 مجم 5 امبول",{"$error":"#N/A"},"انافراني","اونداميت",{"$error":"#N/A"}]
["انافرانيل 75مجم اس ار كبسول","اونداميتيك 8 مجم 5 امبول",{"$error":"#N/A"},"انافراني","اونداميت",{"$error":"#N/A"}]
["انالابريل 20مجم اقراص 3/ 21","اونوفيت 120 مللي شراب",{"$error":"#N/A"},"انالابري","اونوفيت ",{"$error":"#N/A"}]
["انالجيكس ابلونج  اقراص","اونوكرون 60 مجم ام ار 30 قرص",{"$error":"#N/A"},"انالجيكس","اونوكرون",{"$error":"#N/A"}]
["اناللرج اقراص علب صغيرة@","اي كير 14 كبسولة",{"$error":"#N/A"},"اناللرج ","اي كير 1",{"$error":"#N/A"}]
["اناللرج شراب","ايبا اكت لوسيون للشعر 120 مللى",{"$error":"#N/A"},"اناللرج ","ايبا اكت",{"$error":"#N/A"}]
["انالوكس كريم","ايباتركس شامبو 200 مللى",{"$error":"#N/A"},"انالوكس ","ايباتركس",{"$error":"#N/A"}]
["انتروفير امبول+","ايباستين برج 10 مجم 10 قرص",{"$error":"#N/A"},"انتروفير","ايباستين",{"$error":"#N/A"}]
["انتروكين   اقراص","ايبدرا 300 وحدة 5 كارتلج ثلاجة",{"$error":"#N/A"},"انتروكين","ايبدرا 3",{"$error":"#N/A"}]
["انتريستو 100 اقراص","ايبدرا سولو ستار ثلاجة",{"$error":"#N/A"},"انتريستو","ايبدرا س",{"$error":"#N/A"}]
["انتريستو 200مجم 56اقراص","ايبراتروبيوم ميلان 0.25 مجم",{"$error":"#N/A"},"انتريستو","ايبراترو",{"$error":"#N/A"}]
["انتريستو50مجم28قرص","ايبوتين 4000 وحدة فيال سيديكو ثلاجة",{"$error":"#N/A"},"انتريستو","ايبوتين ",{"$error":"#N/A"}]
["انتوسيد اقراص","ايتم شامبو ان 60 مل",{"$error":"#N/A"},"انتوسيد ","ايتم شام",{"$error":"#N/A"}]
["انتوسيد اقراص علبه صغيرة","ايتوبرايد 50 مجم 30 قرص",{"$error":"#N/A"},"انتوسيد ","ايتوبراي",{"$error":"#N/A"}]
["انتوسيد مركب بواكى","ايجى جروث 1 كيس 200 جرام",{"$error":"#N/A"},"انتوسيد ","ايجى جرو",{"$error":"#N/A"}]
["انتى ار اتش (روفلاك) ثلاجة#","ايجيكوسات 100 مللى",{"$error":"#N/A"},"انتى ار ","ايجيكوسا",{"$error":"#N/A"}]
["انتيجرول 10مجم 30 قرص","ايراستيبكس 20 مجم 30 قرص",{"$error":"#N/A"},"انتيجرول","ايراستيب",{"$error":"#N/A"}]
["انتيجرول 5 مجم 30 قرص","ايراستيبكس 40 مجم 30 قرص",{"$error":"#N/A"},"انتيجرول","ايراستيب",{"$error":"#N/A"}]
["انتيفلام 50مجم 20قرص","ايرالونير 50 مجم 20 قرص",{"$error":"#N/A"},"انتيفلام","ايرالوني",{"$error":"#N/A"}]
["انتيفير  شراب  ","ايرن كوزموفير 5 امبول  لا يرتجع",{"$error":"#N/A"},"انتيفير ","ايرن كوز",{"$error":"#N/A"}]
["انتيفير 120قرص","ايروفانافيل 200 مجم 4 قرص",{"$error":"#N/A"},"انتيفير ","ايروفانا",{"$error":"#N/A"}]
["انجكتامول محلول","ايرولامين 30 كبسولة",{"$error":"#N/A"},"انجكتامو","ايرولامي",{"$error":"#N/A"}]
["انجيلور5/500 اقراص 3شريط","ايرونوجلور 30 كبسولة",{"$error":"#N/A"},"انجيلور5","ايرونوجل",{"$error":"#N/A"}]
["انجيوبرادين 5 مجم","ايرونوجلور ماكس 30 كبسولة",{"$error":"#N/A"},"انجيوبرا","ايرونوجل",{"$error":"#N/A"}]
["انجيوفوكس 25 مجم بديل ايفوكس","ايزامول سى 20  قرص",{"$error":"#N/A"},"انجيوفوك","ايزامول ",{"$error":"#N/A"}]
["انجيوفوكس 50 مجم بديل ايفوكس","ايزموبمب 20 مجم 14 قرص",{"$error":"#N/A"},"انجيوفوك","ايزموبمب",{"$error":"#N/A"}]
["اندرال 10 مجم  اقراص","ايزو جيل هاند جيل 75 مل",{"$error":"#N/A"},"اندرال 1","ايزو جيل",{"$error":"#N/A"}]
["اندرال 40 مجم  اقراص","ايزوبرينوزين 500 مجم 8 قرص",{"$error":"#N/A"},"اندرال 4","ايزوبرين",{"$error":"#N/A"}]
["اندروكيور50مجم20قرص","ايزوتريتينوين 10 مجم 10 كبسولة",{"$error":"#N/A"},"اندروكيو","ايزوتريت",{"$error":"#N/A"}]
["اندرويستات120 اقراص","ايزوتريتينوين 20 مجم 10 كبسولة",{"$error":"#N/A"},"اندرويست","ايزوتريت",{"$error":"#N/A"}]
["اندرويستات80مجم كبسول","ايزوجيست 20 مجم 14 كبسولة",{"$error":"#N/A"},"اندرويست","ايزوجيست",{"$error":"#N/A"}]
["اندوجابلين 75مجم كبسول ","ايزوجيست 40 مجم 7 كبسولة",{"$error":"#N/A"},"اندوجابل","ايزوجيست",{"$error":"#N/A"}]
["اندوجلسيميك 1 جم 20 قرص","ايزوروميديرم جيل 30 جرام",{"$error":"#N/A"},"اندوجلسي","ايزورومي",{"$error":"#N/A"}]
["اندولول 10مجم اقراص","ايزيلين شراب",{"$error":"#N/A"},"اندولول ","ايزيلين ",{"$error":"#N/A"}]
["انرفيتا  كبسول","ايسوبتن 5 مجم 5 امبول وريدى",{"$error":"#N/A"},"انرفيتا ","ايسوبتن ",{"$error":"#N/A"}]
["انسباجو 25 مجم اقراص","ايفاستين شراب 100 مل",{"$error":"#N/A"},"انسباجو ","ايفاستين",{"$error":"#N/A"}]
["انسودين 15 مجم اقراص","ايفرزين 6مجم 8قرص",{"$error":"#N/A"},"انسودين ","ايفرزين ",{"$error":"#N/A"}]
["انسودين 30مجم اقراص","ايفكتينكس 5 مجم 20 قرص",{"$f":"VLOOKUP(D1090,E:E,1,FALSE)","v":{"$error":"#N/A"}},"انسودين ","ايفكتينك",{"$f":"VLOOKUP(\"*\"&C1090&\"*\",$B$2:$B$2000,1,0)","v":{"$error":"#N/A"}}]
["انسولتارد بنفل100محدة ثلاجة#","ايفنتول شراب 120 مل",{"$error":"#N/A"},{"$f":"LEFT(A1091,8)","v":"انسولتار"},{"$f":"LEFT(B1091,8)","v":"ايفنتول "},{"$error":"#N/A"}]
["انسولين اكت رابيد فيال ثلاجة#","ايفيبرونت 120 مللى شراب",{"$error":"#N/A"},"انسولين ","ايفيبرون",{"$error":"#N/A"}]
["انسولين جيت  4مل 70/30 ثلاجة#","ايفيجاد 75 مجم 30 كبسولة",{"$error":"#N/A"},"انسولين ","ايفيجاد ",{"$error":"#N/A"}]
["انسولين جيت 10مل  ار  وحده ثلاجة$","ايفيجاد 75 مجم 30 كبسولة",{"$error":"#N/A"},"انسولين ","ايفيجاد ",{"$error":"#N/A"}]
["انسولين جيت 10مل  ان  وحده ثلاجة$","ايفيدنت جيل 100 جرام",{"$error":"#N/A"},"انسولين ","ايفيدنت ",{"$error":"#N/A"}]
["انسولين جيت 10مل 100 وحده ثلاجة$","ايفيروسبان 100 مللى شراب",{"$error":"#N/A"},"انسولين ","ايفيروسب",{"$error":"#N/A"}]
["انسولين جيت 10مل 70/30  ثلاجة# $","ايفيرينز محلول منظف 250 مل",{"$error":"#N/A"},"انسولين ","ايفيرينز",{"$error":"#N/A"}]
["انسياتم 40مجم اقراص","ايكاندرا بلس 50-1000 مجم 30 قرص سعر مخفض",{"$error":"#N/A"},"انسياتم ","ايكاندرا",{"$error":"#N/A"}]
["انسياتم 80مجم اقراص","ايكتوهيلو نقط عين  20امبول 0.35 مل",{"$error":"#N/A"},"انسياتم ","ايكتوهيل",{"$error":"#N/A"}]
["انشلارين شراب","ايما ايتوبرايد 50 مجم 30 قرص",{"$error":"#N/A"},"انشلارين","ايما ايت",{"$error":"#N/A"}]
["انفاجوى مرهم","ايمباكوزا 10 مجم 30 قرص",{"$error":"#N/A"},"انفاجوى ","ايمباكوز",{"$error":"#N/A"}]
["انفانز فيال1جم","ايمباكوزا 25 مجم 30 قرص",{"$error":"#N/A"},"انفانز ف","ايمباكوز",{"$error":"#N/A"}]
["انفكس اقراص","ايموسوفت 15 جرام كريم",{"$error":"#N/A"},"انفكس اق","ايموسوفت",{"$error":"#N/A"}]
["انفلاكام 10 اقراص فواره","ايموسوفت كريم 30 جم",{"$error":"#N/A"},"انفلاكام","ايموسوفت",{"$error":"#N/A"}]
["انفلاكام 10 مجم كبسول","ايموسوفت كريم 30 جم",{"$error":"#N/A"},"انفلاكام","ايموسوفت",{"$error":"#N/A"}]
["انفلاكام 20 اقراص فواره","ايموفيت 15جم0 كريم",{"$error":"#N/A"},"انفلاكام","ايموفيت ",{"$error":"#N/A"}]
["انفلاكام 20 مجم كبسول","ايموكس 500 مجم كبسول  2 شريط",{"$error":"#N/A"},"انفلاكام","ايموكس 5",{"$error":"#N/A"}]
["انفلاكام امبول","ايموكس 500 مجم كبسول  2 شريط",{"$error":"#N/A"},"انفلاكام","ايموكس 5",{"$error":"#N/A"}]
["انفلاكام جيل","ايموكسكلاف 156مجم. شراب",{"$error":"#N/A"},"انفلاكام","ايموكسكل",{"$error":"#N/A"}]
["انفلوبروب بخاخ65مل","ايموكسكلاف 156مجم. شراب",{"$error":"#N/A"},"انفلوبرو","ايموكسكل",{"$error":"#N/A"}]
["انفلوفاك مصل انفلونزا #ثلاجة","ايموكسكلاف 1جرام 10 قرص",{"$error":"#N/A"},"انفلوفاك","ايموكسكل",{"$error":"#N/A"}]
["انفيستا سيرم","ايموكسكلاف 228.5 مجم 75 مل",{"$error":"#N/A"},"انفيستا ","ايموكسكل",{"$error":"#N/A"}]
["انفيستابديل الزيت","ايموكسكلاف 312مجم. شراب",{"$error":"#N/A"},"انفيستاب","ايموكسكل",{"$error":"#N/A"}]
["انفينيتى ترطيب","ايموكسكلاف 457 مجم. 70 مللى شراب",{"$error":"#N/A"},"انفينيتى","ايموكسكل",{"$error":"#N/A"}]
["انفينيتى صن بلوك","ايموكسكلاف 625مجم ق.",{"$error":"#N/A"},"انفينيتى","ايموكسكل",{"$error":"#N/A"}]
["انفينيتى كريم تفتيح","ايميرست 4 مجم 2 امبول",{"$error":"#N/A"},"انفينيتى","ايميرست ",{"$error":"#N/A"}]
["انليت اير 4م اكياس $","ايميوفرين 1 عبوة 10 كيس",{"$error":"#N/A"},"انليت اي","ايميوفري",{"$error":"#N/A"}]
["انماكس حقنة شرجية","ايميوفرين 30 كبسولة",{"$error":"#N/A"},"انماكس ح","ايميوفري",{"$error":"#N/A"}]
["انوفا اقراص+","اينيماكس 120مل.",{"$error":"#N/A"},"انوفا اق","اينيماكس",{"$error":"#N/A"}]
["انونا زيت شعر ","ايه زد جلوبين 30 كبسولة",{"$error":"#N/A"},"انونا زي","ايه زد ج",{"$error":"#N/A"}]
["انونا سيرم للشعر","باتانول 0.1 % 5 مل قطرة عين",{"$error":"#N/A"},"انونا سي","باتانول ",{"$error":"#N/A"}]
["انونا لوسيون للشعر","بارادانتينوكس معجون اسنان بالفلوريد 75جر",{"$error":"#N/A"},"انونا لو","بارادانت",{"$error":"#N/A"}]
["انوهيب .4.5 امبول","بارادانتينوكس معجون سنان اكسترافريش75",{"$error":"#N/A"},"انوهيب .","بارادانت",{"$error":"#N/A"}]
["انوهيب .5مجم امبول","باراسيتامول 1 % 100 مل فيال",{"$error":"#N/A"},"انوهيب .","باراسيتا",{"$error":"#N/A"}]
["انوهيب 0.7  حقن","باراسيتامول 120 مل. شراب",{"$error":"#N/A"},"انوهيب 0","باراسيتا",{"$error":"#N/A"}]
["انوهيب 0.9 حقن","باراسيتامول 500 مجم 20  قرص النصر",{"$error":"#N/A"},"انوهيب 0","باراسيتا",{"$error":"#N/A"}]
["انوهيب 3.5 حقن","باراسيتامول 500 مجم 20 قرص العربية",{"$error":"#N/A"},"انوهيب 3","باراسيتا",{"$error":"#N/A"}]
["انيجى 20/10 اقراص","بارامول لبوس ثلاجة",{"$error":"#N/A"},"انيجى 20","بارامول ",{"$error":"#N/A"}]
["انيجى 40/10اقراص","باركنتريت 1 مجم 20 قرص",{"$error":"#N/A"},"انيجى 40","باركنتري",{"$error":"#N/A"}]
["انيما كورت  حقنة  شرجية","باروكستين 12.5 مجم ممتد المفعول 30 قرص",{"$error":"#N/A"},"انيما كو","باروكستي",{"$error":"#N/A"}]
["اوبتى بروست 20 قرص","باسكينتا 100 مجم 30 كبسولة",{"$error":"#N/A"},"اوبتى بر","باسكينتا",{"$error":"#N/A"}]
["اوبتى جارد قطرة","باكتيركس 1.5 جم 1 فيال",{"$error":"#N/A"},"اوبتى جا","باكتيركس",{"$error":"#N/A"}]
["اوبتى كالم شراب","باكستين 20 مجم 10 قرص",{"$error":"#N/A"},"اوبتى كا","باكستين ",{"$error":"#N/A"}]
["اوبتى كف شراب","باكستين 40 مجم 10 قرص",{"$error":"#N/A"},"اوبتى كف","باكستين ",{"$error":"#N/A"}]
["اوبتيديكس قطرة","بالانسيرك 16 مجم 20 قرص",{"$error":"#N/A"},"اوبتيديك","بالانسير",{"$error":"#N/A"}]
["اوبتيف قطرة+","بالتة تحميل",{"$error":"#N/A"},"اوبتيف ق","بالتة تح",{"$error":"#N/A"}]
["اوبى زنك كبسول","بالمونال-ن شراب 120 مللى",{"$error":"#N/A"},"اوبى زنك","بالمونال",{"$error":"#N/A"}]
["اوبيندازول اقراص","بالميكورت 0.5 مل 20عبوة  استنشاق دريمكس",{"$error":"#N/A"},"اوبينداز","بالميكور",{"$error":"#N/A"}]
["اوتال نقط","بالوموتاكس 0.5 جم فيال",{"$error":"#N/A"},"اوتال نق","بالوموتا",{"$error":"#N/A"}]
["اوترى اطفال 20قرص","بالوموتاكس 1 جم فيال",{"$error":"#N/A"},"اوترى اط","بالوموتا",{"$error":"#N/A"}]
["اوترى كبار 20قرص","بامبيديل 120 مللي شراب",{"$error":"#N/A"},"اوترى كب","بامبيديل",{"$error":"#N/A"}]
["اوتوسبت قطرة","بانادول ميجرين 30 قرص",{"$error":"#N/A"},"اوتوسبت ","بانادول ",{"$error":"#N/A"}]
["اوداكس نقط","بانثينول 20جم. كريم",{"$error":"#N/A"},"اوداكس ن","بانثينول",{"$error":"#N/A"}]
["اوراب فورت 4 مجم اقراص","بانثينول كريم 2% 50 جرام",{"$error":"#N/A"},"اوراب فو","بانثينول",{"$error":"#N/A"}]
["اوراستاتين نقط بديل ميوكوستاتين ","بانوكس 20 كبسولة",{"$error":"#N/A"},"اوراستات","بانوكس 2",{"$error":"#N/A"}]
["اوراسين مضمضة صغير","باور بى كومبليكس 6 امبول",{"$error":"#N/A"},"اوراسين ","باور بى ",{"$error":"#N/A"}]
["اورافريش مضمضه","باور كابس 20 كبسولة",{"$error":"#N/A"},"اورافريش","باور كاب",{"$error":"#N/A"}]
["اورافين غرغرة","باور كولد اند فلو 20 قرص",{"$error":"#N/A"},"اورافين ","باور كول",{"$error":"#N/A"}]
["اورامكس محلول مطهر للفم","باوريكتا 20 مجم 4 قرص",{"$error":"#N/A"},"اورامكس ","باوريكتا",{"$error":"#N/A"}]
["اوراميكس مضمضه اطفال بى","باى الكوفان 20 قرص",{"$error":"#N/A"},"اوراميكس","باى الكو",{"$error":"#N/A"}]
["اورثوجلوب اقراص","باى الكوفان 30 قرص",{"$error":"#N/A"},"اورثوجلو","باى الكو",{"$error":"#N/A"}]
["اورثوفيسك  امبول","باى بروفينيد 150 مجم 20 قرص",{"$error":"#N/A"},"اورثوفيس","باى بروف",{"$error":"#N/A"}]
["اورجا لايت كريم","باى بروفينيد 150 مجم 20 قرص",{"$error":"#N/A"},"اورجا لا","باى بروف",{"$error":"#N/A"}]
["اورجالايت بلاس كريم","باى كيتوجيسيك 150 مجم 20 قرص",{"$f":"VLOOKUP(D1154,E:E,1,FALSE)","v":{"$error":"#N/A"}},"اورجالاي","باى كيتو",{"$f":"VLOOKUP(\"*\"&C1154&\"*\",$B$2:$B$2000,1,0)","v":{"$error":"#N/A"}}]
["اورجوفاسيتين40جم","بدياشور كومبليت شيكولاتة 400 جرام",{"$error":"#N/A"},{"$f":"LEFT(A1155,8)","v":"اورجوفاس"},{"$f":"LEFT(B1155,8)","v":"بدياشور "},{"$error":"#N/A"}]
["اورفينادرين بلاس 20قرص","بديكورت كبسول 400 ميكرو",{"$error":"#N/A"},"اورفيناد","بديكورت ",{"$error":"#N/A"}]
["اوركاتيرز بلاس قطرة","براديبيكت 5 مجم 28 قرص",{"$error":"#N/A"},"اوركاتير","براديبيك",{"$error":"#N/A"}]
["اورلى 3شريط@","براكسيلان 200 مجم 30 قرص",{"$error":"#N/A"},"اورلى 3ش","براكسيلا",{"$error":"#N/A"}]
["اورلى ستايل كبسول","بران 60 كبسولة  ميباكو",{"$error":"#N/A"},"اورلى ست","بران 60 ",{"$error":"#N/A"}]
["اوروفكس اتش مضمضة","برناسورس مرهم 2.5 مجم 15 جرام",{"$error":"#N/A"},"اوروفكس ","برناسورس",{"$error":"#N/A"}]
["اوروفكس سموكرز","برناسورس مرهم 2.5 مجم 30 جرام",{"$error":"#N/A"},"اوروفكس ","برناسورس",{"$error":"#N/A"}]
["اوروفكس مضمضة برتقال","برنتلكس 20 مجم 14 قرص",{"$error":"#N/A"},"اوروفكس ","برنتلكس ",{"$error":"#N/A"}]
["اوروفكس مضمضة تفاح اخضر","برنكوفاكسيوم  10 كيس",{"$error":"#N/A"},"اوروفكس ","برنكوفاك",{"$error":"#N/A"}]
["اوروفكس مضمضة ديليكت","برنكوفاكسيوم  10 كيس",{"$error":"#N/A"},"اوروفكس ","برنكوفاك",{"$error":"#N/A"}]
["اوروفكس مضمضة فراولة","برو اس 20 قرص",{"$error":"#N/A"},"اوروفكس ","برو اس 2",{"$error":"#N/A"}]
["اوروفكس مضمضة نعناع","بروباكتسين 2% كريم 15 جرام",{"$error":"#N/A"},"اوروفكس ","بروباكتس",{"$error":"#N/A"}]
["اوروفكس مضمضمة قرنفل","بروباميثون كريم 20 جرام",{"$error":"#N/A"},"اوروفكس ","بروباميث",{"$error":"#N/A"}]
["اوروفكس مضمضمة موز","بروبريك 125 مللى شراب",{"$error":"#N/A"},"اوروفكس ","بروبريك ",{"$error":"#N/A"}]
["اوريكس محلول مطهر للفم","بروبريك 20 مجم 10 قرص",{"$error":"#N/A"},"اوريكس م","بروبريك ",{"$error":"#N/A"}]
["اورينت ان كريم","بروتلوس 2 جرام  14 كيس",{"$error":"#N/A"},"اورينت ا","بروتلوس ",{"$error":"#N/A"}]
["اوستويورين كبسول","بروتولوك 40 مجم 14 قرص",{"$error":"#N/A"},"اوستويور","بروتولوك",{"$error":"#N/A"}]
["اوستيرشيل فيتافيجورناتشورال","بروتيكا سبراى 120 مللى",{"$error":"#N/A"},"اوستيرشي","بروتيكا ",{"$error":"#N/A"}]
["اوستيرشيل كالسيوم20قرص","بروتيكا لوسيون 120 مللى",{"$error":"#N/A"},"اوستيرشي","بروتيكا ",{"$error":"#N/A"}]
["اوستيوفورت كريم","بروجيست 100 مجم 24 كبسولة",{"$error":"#N/A"},"اوستيوفو","بروجيست ",{"$error":"#N/A"}]
["اوسكاد 30اقراص","بروستاكيور50مجم. 2ش*10ك",{"$error":"#N/A"},"اوسكاد 3","بروستاكي",{"$error":"#N/A"}]
["اوفلام25اقراص","بروفين 600مجم 30 قرص",{"$error":"#N/A"},"اوفلام25","بروفين 6",{"$error":"#N/A"}]
["اوفلوكوند قطرة","بروفينيد 100مجم. لبوس",{"$error":"#N/A"},"اوفلوكون","بروفينيد",{"$error":"#N/A"}]
["اوفيتريل 250 حقن","بروكاسوفت 2 مجم 14 قرص",{"$error":"#N/A"},"اوفيتريل","بروكاسوف",{"$error":"#N/A"}]
["اوفيونهيبيتا28قرص","بروكتو فور 15 جم كريم",{"$error":"#N/A"},"اوفيونهي","بروكتو ف",{"$error":"#N/A"}]
["اوكافا دش","بروكسيمول 40 قرص",{"$error":"#N/A"},"اوكافا د","بروكسيمو",{"$error":"#N/A"}]
["اوكتاترون كبسول ","بروكسيمول فوار",{"$error":"#N/A"},"اوكتاترو","بروكسيمو",{"$error":"#N/A"}]
["اوكسا اقراص استحلاب","بروكورلان 7.5 مجم 28 قرص",{"$error":"#N/A"},"اوكسا اق","بروكورلا",{"$error":"#N/A"}]
["اوكسليبتال شراب","برون كير 120 مللى شراب",{"$error":"#N/A"},"اوكسليبت","برون كير",{"$error":"#N/A"}]
["اوكسميرا مضمضه 120مم النيل","برونتوبلس 20 قرص",{"$error":"#N/A"},"اوكسميرا","برونتوبل",{"$error":"#N/A"}]
["اوكسى بروجيست امبول ","برونتوجيست 10 امبولة",{"$error":"#N/A"},"اوكسى بر","برونتوجي",{"$error":"#N/A"}]
["اوكسى بول مرهم بديل تيراميسين","برونتوجيست 200 مجم 30 لبوسة",{"$error":"#N/A"},"اوكسى بو","برونتوجي",{"$error":"#N/A"}]
["اوكسى تتراسيد كبسول","برونتوجيست 400 مجم  30 لبوسة",{"$error":"#N/A"},"اوكسى تت","برونتوجي",{"$error":"#N/A"}]
["اوكسى تروبيل كبسول","برونشيكم 100 ملى شراب",{"$error":"#N/A"},"اوكسى تر","برونشيكم",{"$error":"#N/A"}]
["اوكسى توب اقراص","برونشيكم 100 ملى شراب",{"$error":"#N/A"},"اوكسى تو","برونشيكم",{"$error":"#N/A"}]
["اوكسى فرى20قطعه","برونشيكم 100 ملى شراب",{"$error":"#N/A"},"اوكسى فر","برونشيكم",{"$error":"#N/A"}]
["اوكسيبول مرهم بديل تيراميسين","برونكوبرو نقط 30 مللي",{"$error":"#N/A"},"اوكسيبول","برونكوبر",{"$error":"#N/A"}]
["اوكسيجركس اقراص","برونكوتيرول 120 مللى شراب",{"$error":"#N/A"},"اوكسيجرك","برونكوتي",{"$error":"#N/A"}]
["اوكسيدا فوار زنك بديل اكت زنك","بريانيل سى ار 30 قرص",{"$error":"#N/A"},"اوكسيدا ","بريانيل ",{"$error":"#N/A"}]
["اوكسيلادين شراب سعر جديد","بريانيل سى ار 30 قرص",{"$error":"#N/A"},"اوكسيلاد","بريانيل ",{"$error":"#N/A"}]
["اوكيوزولين قطرة","بريدسول شراب 50 مللى",{"$error":"#N/A"},"اوكيوزول","بريدسول ",{"$error":"#N/A"}]
["اوكيوسول 20  قطرة","بريدسول فورت شراب",{"$error":"#N/A"},"اوكيوسول","بريدسول ",{"$error":"#N/A"}]
["اوكيوكاربين1%قطرة/الاسكندرية ","بريدونا جيل 30 جرام",{"$error":"#N/A"},"اوكيوكار","بريدونا ",{"$error":"#N/A"}]
["اوكيوكاربين2%قطرة/الاسكندرية","بريدونا سوسينج جيل 120 جرام",{"$error":"#N/A"},"اوكيوكار","بريدونا ",{"$error":"#N/A"}]
["اولازين 10مجم اقراص","بريستافلام 100مجم 20قرص",{"$error":"#N/A"},"اولازين ","بريستافل",{"$error":"#N/A"}]
["اولبيثينا 12.5 مجم اقراص","بريستو 20 قطعة",{"$error":"#N/A"},"اولبيثين","بريستو 2",{"$error":"#N/A"}]
["اولفن 100 مجم اقراص@","بريستيمود 50 مجم 20 قرص",{"$error":"#N/A"},"اولفن 10","بريستيمو",{"$error":"#N/A"}]
["اولفن 25 مجم اقراص س ج","بريسمافين 100 مجم 30 قرص",{"$error":"#N/A"},"اولفن 25","بريسمافي",{"$error":"#N/A"}]
["اولفن 50 اقراص@","بريسمافين 50 مجم 30 قرص",{"$error":"#N/A"},"اولفن 50","بريسمافي",{"$error":"#N/A"}]
["اولفن 6 امبول/@","بريسوثيوفال 160-25مجم 14 قرص",{"$error":"#N/A"},"اولفن 6 ","بريسوثيو",{"$error":"#N/A"}]
["اولفن جيل 50جم كبير","بريفاكوند محلول معقم للعين 15 مل",{"$error":"#N/A"},"اولفن جي","بريفاكون",{"$error":"#N/A"}]
["اولفن جيل صغير","بريفيكس سبراى 120 مللى",{"$error":"#N/A"},"اولفن جي","بريفيكس ",{"$error":"#N/A"}]
["اولمبيرج 10مجم","بريكسال 5 مجم 30 قرص",{"$error":"#N/A"},"اولمبيرج","بريكسال ",{"$error":"#N/A"}]
["اولمبيرج 20 مجم","بريليانت 100 مجم 8 قرص",{"$error":"#N/A"},"اولمبيرج","بريليانت",{"$error":"#N/A"}]
["اولميساب بلس 20/12.5مجم 20قرص","بريليك 90 مجم 56 قرص دريمكس سعر جديد",{"$error":"#N/A"},"اولميساب","بريليك 9",{"$error":"#N/A"}]
["اولميساب بلس 40/12.5مجم 20قرص","بريما جروث 8 كيس شكولاته كبار",{"$error":"#N/A"},"اولميساب","بريما جر",{"$error":"#N/A"}]
["اولوهستين قطرة+","بريمو بلس لوسيون 120 مللى",{"$error":"#N/A"},"اولوهستي","بريمو بل",{"$error":"#N/A"}]
["اولويز الترا دبل طويل اخضر بالقطعة ","بريموكسيزار 400 مجم 5 قرص",{"$error":"#N/A"},"اولويز ا","بريموكسي",{"$error":"#N/A"}]
["اولويز الترا دبل طويل جدا اخضر قطعه","بريموندين 5 مللى قطرة",{"$error":"#N/A"},"اولويز ا","بريموندي",{"$error":"#N/A"}]
["اولويز الترا طويل اخضر بالقطعة","بريموندين 5 مللى قطرة",{"$error":"#N/A"},"اولويز ا","بريموندي",{"$error":"#N/A"}]
["اولويز الترا طويل جدا اخضر بالقطعة","بريمونوكوند 5 مللى قطرة",{"$error":"#N/A"},"اولويز ا","بريمونوك",{"$error":"#N/A"}]
["اولويز ماكسى دوبل طويل بالقطعة","بريمونوكوند بلس 5 مللى قطرة",{"$error":"#N/A"},"اولويز م","بريمونوك",{"$error":"#N/A"}]
["اولويز ماكسى طويل بالقطعة","برين اوكس  20 كبسولة",{"$error":"#N/A"},"اولويز م","برين اوك",{"$error":"#N/A"}]
["اولويز ماكسي دوبل طويل جدا بالقطعة","برين باور ( جنكو بيلوبا ) 30 كبسولة",{"$f":"VLOOKUP(D1218,E:E,1,FALSE)","v":{"$error":"#N/A"}},"اولويز م","برين باو",{"$f":"VLOOKUP(\"*\"&C1218&\"*\",$B$2:$B$2000,1,0)","v":{"$error":"#N/A"}}]
["اوليترا كريم 60 مجم","بسكيت  الوان احمر",{"$error":"#N/A"},{"$f":"LEFT(A1219,8)","v":"اوليترا "},{"$f":"LEFT(B1219,8)","v":"بسكيت  ا"},{"$error":"#N/A"}]
["اوليجا شاور جيل  ","بسكيت  الوان اخضر",{"$error":"#N/A"},"اوليجا ش","بسكيت  ا",{"$error":"#N/A"}]
["اوليزون كريم 30 جم","بسكيت  الوان اسود",{"$error":"#N/A"},"اوليزون ","بسكيت  ا",{"$error":"#N/A"}]
["اوليفر لوسيون","بسكيت  الوان اصفر",{"$error":"#N/A"},"اوليفر ل","بسكيت  ا",{"$error":"#N/A"}]
["اوليكراز150 كبسول","بسكيت الوان برتقالى",{"$error":"#N/A"},"اوليكراز","بسكيت ال",{"$error":"#N/A"}]
["اوميبرال  14 كبسولة","بلانكا كريم 50 جرام",{"$error":"#N/A"},"اوميبرال","بلانكا ك",{"$error":"#N/A"}]
["اوميت سى سبراي","بلاور",{"$error":"#N/A"},"اوميت سى","بلاور",{"$error":"#N/A"}]
["اوميجاتون شراب","بلنديل 2.5 مجم 30 قرص استرازنيكا",{"$error":"#N/A"},"اوميجاتو","بلنديل 2",{"$error":"#N/A"}]
["اوميجاجين","بلنديل 5 مجم 30 قرص استرازنيكا",{"$error":"#N/A"},"اوميجاجي","بلنديل 5",{"$error":"#N/A"}]
["اوميجار كبسول","بلنديل 5 مجم 30 قرص استرازنيكا",{"$error":"#N/A"},"اوميجار ","بلنديل 5",{"$error":"#N/A"}]
["اوميجاسترازول  20 مجم كبسول","بلوريف كريم 1 % 30 جرام",{"$error":"#N/A"},"اوميجاست","بلوريف ك",{"$error":"#N/A"}]
["اوميجاسيز شراب","بلوك الفا 0.4 مجم ام ار 30 قرص",{"$error":"#N/A"},"اوميجاسي","بلوك الف",{"$error":"#N/A"}]
["اوميجافاست شراب","بلوكاتنس 160/10 مجم 28 قرص",{"$error":"#N/A"},"اوميجافا","بلوكاتنس",{"$error":"#N/A"}]
["اوميجافيت1جم فوار","بلوكاتنس 160/5 مجم 28 قرص",{"$error":"#N/A"},"اوميجافي","بلوكاتنس",{"$error":"#N/A"}]
["اوميجافيت500فوار","بلوكاتنس 160/5 مجم 28 قرص",{"$error":"#N/A"},"اوميجافي","بلوكاتنس",{"$error":"#N/A"}]
["اوميكاربكس 40م اقراص","بلوكيم 50 مجم 15 قرص",{"$error":"#N/A"},"اوميكارب","بلوكيم 5",{"$error":"#N/A"}]
["اوميكاربكس20مجم كبسول","بليتال 100 مجم 20 قرص",{"$error":"#N/A"},"اوميكارب","بليتال 1",{"$error":"#N/A"}]
["اون تارجيت كريم","بليجو امبول للشعر 6 امبول",{"$error":"#N/A"},"اون تارج","بليجو ام",{"$error":"#N/A"}]
["اوناج كريم/عشبه","بليجو شامبو 250 مل",{"$error":"#N/A"},"اوناج كر","بليجو شا",{"$error":"#N/A"}]
["اوناج لوشن/عشبه","بليجو شامبو 250 مل",{"$error":"#N/A"},"اوناج لو","بليجو شا",{"$error":"#N/A"}]
["اونبريز 150 مجم اقراص استنشاق","بليجو لوسيون للشعر 150 مل",{"$error":"#N/A"},"اونبريز ","بليجو لو",{"$error":"#N/A"}]
["اونبريز 300مجم استنشاق","بليجيكا قطرة 10 مللى",{"$error":"#N/A"},"اونبريز ","بليجيكا ",{"$error":"#N/A"}]
["اونجليزا 5 مجم اقراص","بليجيكا قطرة 10 مللى",{"$error":"#N/A"},"اونجليزا","بليجيكا ",{"$error":"#N/A"}]
["اونكس كريم","بنتافلو شراب 100 مللي",{"$error":"#N/A"},"اونكس كر","بنتافلو ",{"$error":"#N/A"}]
["اونو سليكا كريم للندبات 50 جم","بنتامكس 120 مللى شراب",{"$error":"#N/A"},"اونو سلي","بنتامكس ",{"$error":"#N/A"}]
["اى -يست كبسول","بوباى افتر صن جيل 200 جرام",{"$error":"#N/A"},"اى -يست ","بوباى اف",{"$error":"#N/A"}]
["اى روش شامبو","بوباى تان اويل 200 مل",{"$error":"#N/A"},"اى روش ش","بوباى تا",{"$error":"#N/A"}]
["اى كير كبسول","بوباى تنتيد كريم 60 جرام صن سكرين 80",{"$error":"#N/A"},"اى كير ك","بوباى تن",{"$error":"#N/A"}]
["ايبا كير كريم","بوباى صن سكرين جيل كبار اس بى اف 50",{"$error":"#N/A"},"ايبا كير","بوباى صن",{"$error":"#N/A"}]
["ايباجلو كريم 20جم+","بوباى صن سكرين لوسيون 120 مل اس بى اف 45",{"$error":"#N/A"},"ايباجلو ","بوباى صن",{"$error":"#N/A"}]
["ايباجلو كريم كبير","بوباى صن سكرين لوسيون اطفال اس بى اف 30",{"$error":"#N/A"},"ايباجلو ","بوباى صن",{"$error":"#N/A"}]
["ايباسوفت جيل","بوتاسيف 100مجم 20 قرص",{"$error":"#N/A"},"ايباسوفت","بوتاسيف ",{"$error":"#N/A"}]
["ايبافكس سيرم","بوتاسيوم-ام شراب",{"$error":"#N/A"},"ايبافكس ","بوتاسيوم",{"$error":"#N/A"}]
["ايبافيكس شامبو بالكيراتين","بوتاسيوم-ام شراب",{"$error":"#N/A"},"ايبافيكس","بوتاسيوم",{"$error":"#N/A"}]
["ايباموست كريم","بوتاسيوم-ام شراب",{"$error":"#N/A"},"ايباموست","بوتاسيوم",{"$error":"#N/A"}]
["ايبانتين شراب","بوتافين 25 مجم 20 قرص",{"$error":"#N/A"},"ايبانتين","بوتافين ",{"$error":"#N/A"}]
["ايبانتين100مجم كبسول","بوداسيف 100 مجم 60 مللى",{"$error":"#N/A"},"ايبانتين","بوداسيف ",{"$error":"#N/A"}]
["ايبانتين50مجم كبسول","بوداسيف 100 مجم 60 مللى",{"$error":"#N/A"},"ايبانتين","بوداسيف ",{"$error":"#N/A"}]
["ايبريزين اقراص","بوديكسان 1مجم 2 مل معلق للاستنشاق",{"$error":"#N/A"},"ايبريزين","بوديكسان",{"$error":"#N/A"}]
["ايبريزين شراب","بوديكورت 200 بخاخة",{"$error":"#N/A"},"ايبريزين","بوديكورت",{"$error":"#N/A"}]
["ايبكسا اقراص","بورجازون كريم 20جرام",{"$error":"#N/A"},"ايبكسا ا","بورجازون",{"$error":"#N/A"}]
["ايبوبروفين شراب","بورجازون مرهم 20جرام",{"$error":"#N/A"},"ايبوبروف","بورجازون",{"$error":"#N/A"}]
["ايبوفين شراب","بوسبار 10مجم. 20قرص",{"$error":"#N/A"},"ايبوفين ","بوسبار 1",{"$error":"#N/A"}]
["ايتافللين  لبوس  اطفال","بوسكوبان 10 مجم 20 قرص سانوفى",{"$error":"#N/A"},"ايتافللي","بوسكوبان",{"$error":"#N/A"}]
["ايتافللين شراب","بوسكوبان مركب 20 قرص",{"$error":"#N/A"},"ايتافللي","بوسكوبان",{"$error":"#N/A"}]
["ايتافللين لبوس كبار","بوفابن 10 كيس",{"$error":"#N/A"},"ايتافللي","بوفابن 1",{"$error":"#N/A"}]
["ايتافيللين امبول","بولدستوب لوشن 100 مللى",{"$error":"#N/A"},"ايتافيلل","بولدستوب",{"$error":"#N/A"}]
["ايتافيللين فينوبارباتون شراب","بولى تار شامبو 125 مللى",{"$error":"#N/A"},"ايتافيلل","بولى تار",{"$error":"#N/A"}]
["ايتوتاكسيم 1جم فيال+ س ج","بولى مير كبار هيبرتونيك 3% 100 سبراى",{"$error":"#N/A"},"ايتوتاكس","بولى مير",{"$error":"#N/A"}]
["ايتودولاك 300مجم اقراص","بوليدرم كريم 20جم",{"$error":"#N/A"},"ايتودولا","بوليدرم ",{"$error":"#N/A"}]
["ايتودولاك 600مجم اقراص","بولين فورت 20 كبسولة",{"$error":"#N/A"},"ايتودولا","بولين فو",{"$error":"#N/A"}]
["ايتودين 200 كبسول","بون كير 250 ميكروجرام  30 كبسولة",{"$error":"#N/A"},"ايتودين ","بون كير ",{"$error":"#N/A"}]
["ايتودين 300 كبسول","بون كير 500 ميكروجرام  30 كبسولة",{"$error":"#N/A"},"ايتودين ","بون كير ",{"$error":"#N/A"}]
["ايتوماش 50مجم30قرص","بون وان 0.25 ميكروجرام 30 قرص",{"$error":"#N/A"},"ايتوماش ","بون وان ",{"$error":"#N/A"}]
["ايثوكسا شراب","بون وان 0.25 ميكروجرام 30 قرص",{"$error":"#N/A"},"ايثوكسا ","بون وان ",{"$error":"#N/A"}]
["ايثوكسا شراب","بون وان 0.5 ميكوجرام",{"$error":"#N/A"},"ايثوكسا ","بون وان ",{"$error":"#N/A"}]
["ايثونيك سبراى","بون وان 1 ميكروجرام 30 قرص",{"$error":"#N/A"},"ايثونيك ","بون وان ",{"$error":"#N/A"}]
["ايجى ترون اكياس","بون وان 1 ميكروجرام 30 قرص",{"$error":"#N/A"},"ايجى ترو","بون وان ",{"$error":"#N/A"}]
["ايجى فاست كريم","بونبروف 150 مجم 3 قرص",{"$error":"#N/A"},"ايجى فاس","بونبروف ",{"$error":"#N/A"}]
["ايجيدرونيت اقراص","بى اند بى كريم ملطف120 مللى",{"$error":"#N/A"},"ايجيدرون","بى اند ب",{"$error":"#N/A"}]
["ايرستابكس 20مجم اقراص","بى فلير صابونة 100 جرام",{"$error":"#N/A"},"ايرستابك","بى فلير ",{"$error":"#N/A"}]
["ايرستابكس 20مجم/12.5 بلس اقراص","بى ك ميرز 100 مجم 30 قرص",{"$error":"#N/A"},"ايرستابك","بى ك مير",{"$error":"#N/A"}]
["ايرستابكس 40/12.5 بلس اقراص $","بى كوم 2 مللى 6 امبولة",{"$error":"#N/A"},"ايرستابك","بى كوم 2",{"$error":"#N/A"}]
["ايرستابكس 40مجم اقراص $","بى كوم 2 مللى 6 امبولة",{"$f":"VLOOKUP(D1282,E:E,1,FALSE)","v":{"$error":"#N/A"}},"ايرستابك","بى كوم 2",{"$f":"VLOOKUP(\"*\"&C1282&\"*\",$B$2:$B$2000,1,0)","v":{"$error":"#N/A"}}]
["ايرستابكس تريو 10/40/25","بى كير كريم 30 جرام",{"$error":"#N/A"},{"$f":"LEFT(A1283,8)","v":"ايرستابك"},{"$f":"LEFT(B1283,8)","v":"بى كير ك"},{"$error":"#N/A"}]
["ايرستابكس تريو 12.5/5/20","بي.بي.سى سبراى",{"$error":"#N/A"},"ايرستابك","بي.بي.سى",{"$error":"#N/A"}]
["ايرستابكس كو5/40 اقراص","بي.بي.سى سبراى",{"$error":"#N/A"},"ايرستابك","بي.بي.سى",{"$error":"#N/A"}]
["ايرستابكس40/10 كو اقراص","بيافين كريم 40 جرام",{"$error":"#N/A"},"ايرستابك","بيافين ك",{"$error":"#N/A"}]
["ايرستابكس5/20 كو اقراص","بيبانتين كريم",{"$error":"#N/A"},"ايرستابك","بيبانتين",{"$error":"#N/A"}]
["ايروسبكت اقراص","بيبانتين كريم",{"$error":"#N/A"},"ايروسبكت","بيبانتين",{"$error":"#N/A"}]
["ايريس اقراص 2 شريط ","بيبزول 20 مجم ام ار  14 كبسولة ستاند",{"$error":"#N/A"},"ايريس اق","بيبزول 2",{"$error":"#N/A"}]
["ايزالين مس","بيبوسبان شراب 100 مل",{"$error":"#N/A"},"ايزالين ","بيبوسبان",{"$error":"#N/A"}]
["ايزليزبين 400 مجم 20 قرص","بيبون كبسول ميباكو 30 كبسولة",{"$error":"#N/A"},"ايزليزبي","بيبون كب",{"$error":"#N/A"}]
["ايزليزيبين 800مجم اقراص","بيبى جوى جامبو ستريتش 58 حفاضه مقاس3+2ح",{"$error":"#N/A"},"ايزليزيب","بيبى جوى",{"$error":"#N/A"}]
["ايزوبتو ماكسترول قطرة@","بيبى فيت نقط 30 مللى",{"$error":"#N/A"},"ايزوبتو ","بيبى فيت",{"$error":"#N/A"}]
["ايزوبتو ماكسيدكس قطرة+","بيبى كالم درينك 200 جرام",{"$error":"#N/A"},"ايزوبتو ","بيبى كال",{"$error":"#N/A"}]
["ايزوبتوسيتابريد قطرة","بيبى كريم 30 جم امون",{"$error":"#N/A"},"ايزوبتوس","بيبى كري",{"$error":"#N/A"}]
["ايزوبتوسيتاميد قطرة","بيبى كريم 30 جم امون",{"$error":"#N/A"},"ايزوبتوس","بيبى كري",{"$error":"#N/A"}]
["ايزوبتوفينيكول قطرة ثلاجة #+","بيبى كريم 60 جم امون",{"$error":"#N/A"},"ايزوبتوف","بيبى كري",{"$error":"#N/A"}]
["ايزوبروتوكول 20مجم كبسول","بيبى كريم 60 جم امون",{"$error":"#N/A"},"ايزوبروت","بيبى كري",{"$error":"#N/A"}]
["ايزوبروتوكول 40مجم كبسول","بيبى كير كريم 30 جرام",{"$error":"#N/A"},"ايزوبروت","بيبى كير",{"$error":"#N/A"}]
["ايزوجاست 20 مجم 7 قرص","بيبيلاك 1 لبن مدعم بالحديد 400 جرام",{"$error":"#N/A"},"ايزوجاست","بيبيلاك ",{"$error":"#N/A"}]
["ايزوجاست 40مجم 7 كبسول","بيبيلاك 1 لبن مدعم بالحديد 400 جرام",{"$error":"#N/A"},"ايزوجاست","بيبيلاك ",{"$error":"#N/A"}]
["ايزوجاست20ملى 14 كبسوله","بيبيلاك 2 لبن 400 جرام",{"$error":"#N/A"},"ايزوجاست","بيبيلاك ",{"$error":"#N/A"}]
["ايزوجيردازول 40 مجم 14 كبسولة","بيبيلاك اف ال لبن 400 جرام",{"$error":"#N/A"},"ايزوجيرد","بيبيلاك ",{"$error":"#N/A"}]
["ايزوميفنيكول نقط ثلاجة#","بيتادين محلول مطهر 10 % 60 مل",{"$error":"#N/A"},"ايزوميفن","بيتادين ",{"$error":"#N/A"}]
["ايزى سليم كبسول العامرية+","بيتادين منظف جراحى 1 لتر",{"$error":"#N/A"},"ايزى سلي","بيتادين ",{"$error":"#N/A"}]
["ايزى سويت عرض 3ق علبة12ق","بيتادين منظف جراحى 200 مللى",{"$error":"#N/A"},"ايزى سوي","بيتادين ",{"$error":"#N/A"}]
["ايزى سويت قطع علبة 24ق ","بيتادين منظف جراحى 4لتر",{"$error":"#N/A"},"ايزى سوي","بيتادين ",{"$error":"#N/A"}]
["ايزى سيلز  اقراص استحلاب نعناع ","بيتازون 12قرص",{"$error":"#N/A"},"ايزى سيل","بيتازون ",{"$error":"#N/A"}]
["ايزى سيلز اقراص استحلاب برتقال","بيتاسيرك 16 مجم 60 قرص ابوت",{"$error":"#N/A"},"ايزى سيل","بيتاسيرك",{"$error":"#N/A"}]
["ايزى سيلز اقراص استحلاب عسل وليمون","بيتاسيرك 24 مجم 40 قرص",{"$error":"#N/A"},"ايزى سيل","بيتاسيرك",{"$error":"#N/A"}]
["ايزيس  شاى اخضر بالنعناع$","بيتاسيرك 24 مجم 40 قرص",{"$error":"#N/A"},"ايزيس  ش","بيتاسيرك",{"$error":"#N/A"}]
["ايزيس تيليو@ $","بيتافيوسين 15 جرام كريم",{"$error":"#N/A"},"ايزيس تي","بيتافيوس",{"$error":"#N/A"}]
["ايزيس شاى اخضر@ $","بيتاكاروتين فورت 20 كبسولة ميباكو",{"$error":"#N/A"},"ايزيس شا","بيتاكارو",{"$error":"#N/A"}]
["ايزيس شاى رجيم","بيتاكلوترى كريم 15 جرام",{"$error":"#N/A"},"ايزيس شا","بيتاكلوت",{"$error":"#N/A"}]
["ايزيس عسل برسيم 350 جم","بيتاكور  30ق 80 مجم",{"$error":"#N/A"},"ايزيس عس","بيتاكور ",{"$error":"#N/A"}]
["ايزيس قرفة $","بيتاكور  30ق 80 مجم",{"$error":"#N/A"},"ايزيس قر","بيتاكور ",{"$error":"#N/A"}]
["ايزيس قرفة وجنزبيل $","بيتاليرج 30 قرص",{"$error":"#N/A"},"ايزيس قر","بيتاليرج",{"$error":"#N/A"}]
["ايزيس كاموميل $","بيتاميثازون 20 جرام  كريم",{"$error":"#N/A"},"ايزيس كا","بيتاميثا",{"$error":"#N/A"}]
["ايزيس كراوية $","بيتميجا 50 مجم 30 قرص",{"$error":"#N/A"},"ايزيس كر","بيتميجا ",{"$error":"#N/A"}]
["ايزيس كركديه وقرفة","بيتوبتك 5 مل قطرة عين",{"$error":"#N/A"},"ايزيس كر","بيتوبتك ",{"$error":"#N/A"}]
["ايزيس كركديه@ $","بيتولفكس  2 امبولة",{"$error":"#N/A"},"ايزيس كر","بيتولفكس",{"$error":"#N/A"}]
["ايزيس ليمون بالجنزبيل $","بيتولفكس  2 امبولة",{"$error":"#N/A"},"ايزيس لي","بيتولفكس",{"$error":"#N/A"}]
["ايزيس نعناع@ $","بيتولفكس  2 امبولة",{"$error":"#N/A"},"ايزيس نع","بيتولفكس",{"$error":"#N/A"}]
["ايزيس ينسون وليمون $","بيتولفكس 2 سرنجة معدة للحقن",{"$error":"#N/A"},"ايزيس ين","بيتولفكس",{"$error":"#N/A"}]
["ايزيس ينسون@ $","بيتولفكس 2 سرنجة معدة للحقن",{"$error":"#N/A"},"ايزيس ين","بيتولفكس",{"$error":"#N/A"}]
["ايس باج  10لترفريون","بيراكتام 1.5 جم فيال يوبى فارما",{"$error":"#N/A"},"ايس باج ","بيراكتام",{"$error":"#N/A"}]
["ايس باج 5لترفريون","بيرال شراب 125 مللي",{"$error":"#N/A"},"ايس باج ","بيرال شر",{"$error":"#N/A"}]
["ايس بوكس 5 لتر","بيرال لبوس اطفال",{"$error":"#N/A"},"ايس بوكس","بيرال لب",{"$error":"#N/A"}]
["ايس بوكس10  لتر","بيرجاتون 30 قرص",{"$error":"#N/A"},"ايس بوكس","بيرجاتون",{"$error":"#N/A"}]
["ايس هيت لزقه بديل كيفن تك","بيرفكت كير محلول عدسات 2 عبوة 120 مل",{"$error":"#N/A"},"ايس هيت ","بيرفكت ك",{"$error":"#N/A"}]
["ايفا  امبولات شعر","بيزبون 2 قرص",{"$error":"#N/A"},"ايفا  ام","بيزبون 2",{"$error":"#N/A"}]
["ايفا بشرة جليسرين وسط 55 جم","بيزوكارد 10 مجم 3 شريط",{"$error":"#N/A"},"ايفا بشر","بيزوكارد",{"$error":"#N/A"}]
["ايفا كريم شعر بالعسل100جم","بيزوكارد 2.5 مجم 30 قرص",{"$error":"#N/A"},"ايفا كري","بيزوكارد",{"$error":"#N/A"}]
["ايفالكس شراب","بيستول 10 مجم 20 قرص",{"$error":"#N/A"},"ايفالكس ","بيستول 1",{"$error":"#N/A"}]
["ايفالكس كبسول ","بيستول 10 مجم 20 قرص",{"$error":"#N/A"},"ايفالكس ","بيستول 1",{"$error":"#N/A"}]
["ايفكسور 150مجم اكس اركبسول","بيستول بلس 2.5 /6.25 مجم 20 قرص",{"$error":"#N/A"},"ايفكسور ","بيستول ب",{"$error":"#N/A"}]
["ايفكسور 75 اكس ار اقراص","بيستول بلس 5 /6.25 مجم 20 قرص",{"$error":"#N/A"},"ايفكسور ","بيستول ب",{"$error":"#N/A"}]
["ايفورتيل اقراص","بيستول بلس 5/ 12.5 مجم 20 قرص",{"$error":"#N/A"},"ايفورتيل","بيستول ب",{"$error":"#N/A"}]
["ايفورتيل نقط@","بيسكالدين 300 مجم 15 كبسولة",{"$error":"#N/A"},"ايفورتيل","بيسكالدي",{"$error":"#N/A"}]
["ايفوكس 25مجم كبسول","بيسلفون اقراص 20 قرص",{"$error":"#N/A"},"ايفوكس 2","بيسلفون ",{"$error":"#N/A"}]
["ايفوكس 40مجم اقراص","بيسلفون اكسير 115 مللى",{"$error":"#N/A"},"ايفوكس 4","بيسلفون ",{"$error":"#N/A"}]
["ايفوكس20مجم كبسول","بيسولوك 2.5 مجم 20 قرص",{"$error":"#N/A"},"ايفوكس20","بيسولوك ",{"$error":"#N/A"}]
["ايفوكسر 150 اكس ار 14ق","بيسولوك 5 مجم 20 قرص",{"$error":"#N/A"},"ايفوكسر ","بيسولوك ",{"$error":"#N/A"}]
["ايفوكسر 75 مجم 14 ق","بيسولوك 5 مجم 20 قرص",{"$error":"#N/A"},"ايفوكسر ","بيسولوك ",{"$error":"#N/A"}]
["ايكس كير غسول مهبلى بطيخ","بيليفير 450 مجم 20 كبسولة",{"$error":"#N/A"},"ايكس كير","بيليفير ",{"$error":"#N/A"}]
["ايكس كير غسول مهبلى خوخ","بيليكول 24 كبسولة",{"$f":"VLOOKUP(D1346,E:E,1,FALSE)","v":{"$error":"#N/A"}},"ايكس كير","بيليكول ",{"$f":"VLOOKUP(\"*\"&C1346&\"*\",$B$2:$B$2000,1,0)","v":{"$error":"#N/A"}}]
["ايكس كير غسول مهبلى نعناع","بيليكول 24 كبسولة",{"$error":"#N/A"},{"$f":"LEFT(A1347,8)","v":"ايكس كير"},{"$f":"LEFT(B1347,8)","v":"بيليكول "},{"$error":"#N/A"}]
["ايكوتو اقراص كالسيوم سيف لايف","بيماتوسويكس قطرة 3 ملل",{"$error":"#N/A"},"ايكوتو ا","بيماتوسو",{"$error":"#N/A"}]
["ايكوساب كبسول","بيماستريم 7 قرص",{"$error":"#N/A"},"ايكوساب ","بيماستري",{"$error":"#N/A"}]
["ايلاستسين دى اس كبسولات","بيمفاست 1 جرام 1 فيال",{"$error":"#N/A"},"ايلاستسي","بيمفاست ",{"$error":"#N/A"}]
["ايلاف كريم","بيمفاست 2 جرام 1 فيال + 2 مذيب",{"$error":"#N/A"},"ايلاف كر","بيمفاست ",{"$error":"#N/A"}]
["ايلوكورتين كريم","بين ريليفر 30 كبسولة",{"$error":"#N/A"},"ايلوكورت","بين ريلي",{"$error":"#N/A"}]
["ايلون شامبو كرايتين","بينادول 30  قرص",{"$error":"#N/A"},"ايلون شا","بينادول ",{"$error":"#N/A"}]
["ايلون كريم كريتين","بينادول 30  قرص",{"$error":"#N/A"},"ايلون كر","بينادول ",{"$error":"#N/A"}]
["ايليجودوسين 8مجم 30قرص","بينو بالم 30 جرام",{"$error":"#N/A"},"ايليجودو","بينو بال",{"$error":"#N/A"}]
["ايليكويس2.5م","بيو جاينرز  510 جرام شيكولاتة",{"$error":"#N/A"},"ايليكويس","بيو جاين",{"$error":"#N/A"}]
["ايليكويس5م","بيو جاينرز  510 جرام فانيليا",{"$error":"#N/A"},"ايليكويس","بيو جاين",{"$error":"#N/A"}]
["ايماكاردين اقراص","بيوتاسيد 10 مجم 20 قرص",{"$error":"#N/A"},"ايماكارد","بيوتاسيد",{"$error":"#N/A"}]
["ايمايروكس اكياس = لاكتوفيرين","بيوتاسيد 20 مجم 6 امبول",{"$error":"#N/A"},"ايمايروك","بيوتاسيد",{"$error":"#N/A"}]
["ايمديور اقراص","بيوتى جيل 30 جم",{"$error":"#N/A"},"ايمديور ","بيوتى جي",{"$error":"#N/A"}]
["ايملا كريم","بيوتين فورت 60 كبسولة",{"$error":"#N/A"},"ايملا كر","بيوتين ف",{"$error":"#N/A"}]
["ايمولون اقراص","تابوسين 100 مجم 10 كبسولات",{"$error":"#N/A"},"ايمولون ","تابوسين ",{"$error":"#N/A"}]
["ايندوميثاسين 50 مجم كبسول@","تادانيرفى 5 مجم 20 فيلم سريع الذوبان",{"$error":"#N/A"},"ايندوميث","تادانيرف",{"$error":"#N/A"}]
["ايندوميثاسين لبوس العربيه@","تارج 160 مجم 14 كبسولة",{"$error":"#N/A"},"ايندوميث","تارج 160",{"$error":"#N/A"}]
["ايه اى جى ايزوميبرازول اقراص","تارج 40 مجم 15 قرص",{"$error":"#N/A"},"ايه اى ج","تارج 40 ",{"$error":"#N/A"}]
["ايه ون بيبى كريم","تارجوفلكسين 750 مجم 5 قرص",{"$error":"#N/A"},"ايه ون ب","تارجوفلك",{"$error":"#N/A"}]
["ايوبروست قطرة ثلاجة#","تاروليمس مرهم 15 جرام",{"$error":"#N/A"},"ايوبروست","تاروليمس",{"$error":"#N/A"}]
["ايوفيد كريم ","تاريفان 200مجم  10 قرص",{"$error":"#N/A"},"ايوفيد ك","تاريفان ",{"$error":"#N/A"}]
["ايوكال جل صغير30مجم $","تاريفلوكس 200 مجم 10 قرص",{"$error":"#N/A"},"ايوكال ج","تاريفلوك",{"$error":"#N/A"}]
["ايوكال جل كبير 50مجم $","تاريفلوكس 400 مجم 10 قرص",{"$error":"#N/A"},"ايوكال ج","تاريفلوك",{"$error":"#N/A"}]
["ايوكال زيت مساج","تاريفيد 200 مجم. 10 قرص",{"$error":"#N/A"},"ايوكال ز","تاريفيد ",{"$error":"#N/A"}]
["ايوكال كريم 50 مجم  كبير $","تاف ديو نقط 2.5 مل",{"$error":"#N/A"},"ايوكال ك","تاف ديو ",{"$error":"#N/A"}]
["ايوكال كريم30جرام صغير $",null,{"$error":"#N/A"},"ايوكال ك","",{"$error":"#N/A"}]
["ب 12 متخزن 5 امبول",null,{"$error":"#N/A"},"ب 12 متخ","",{"$error":"#N/A"}]